Workbook

Sheet TitlePage
A1: Title page
C6: Treflan HFP, Soil Incorporation :Trifluralin
E17: WorksheetMaker Version | F17: 6.00.07
A51: 2011-05-28

Sheet Disclaimer
A1: DISCLAIMER

Sheet General Notes
A1: General Notes
B2: Prepared by: | C2: Patrick R Durkin
B3: Program Version: | C3: 6.00.07
B4: Database Used: | C4: FS WsMkr V06-00-01.mdb
B5: Template Workbook: | C5: FS WsMkr V06-00-01.mdb
B6: Base Workbook: | C6: FS WSMkr Blank V06-00-01.xlsm
A8: Color Codes in WorksheetMaker
A13: Color Codes used in Workbook for Front Matter, Data and Calculation Worksheets
B14: Green shading | C14: This is a default value or a user specified a value. You can change these values as you see fit but you should have a reason for doing so.
B15: Yellow shading | C15: This is a source for a link in other parts of the workbook. If you have good reason to change the value, you should note the change (with your reason) in the “Revisions” page.
B16: Blue shading | C16: This cell is linked to another cell in the workbook. Do not change this value. If you change any of these values, the workbook may not update correctly.
B17: Blue shading blue border | C17: This cell is linked to a Program parameter in Worksheet A01. Do not change this value. If you want the value to change, go to Worksheet A01 and change the value in that worksheet.
B18: Purple Shading | C18: Indicates (for information only) that the typical of order of Lower and Upper values is intentionally reversed. This is only used in the second (label) column.
B19: Italics, no shading | C19: The value in this cell is generated by a formula (the number that you see is the result of an equation). This cell is linked only to other cells in the worksheet. Do not change this value.
A25: Color Codes used in Workbook for Risk Characterization Worksheets
B26: HQ ≥ 2 | C26: For hazard quotient greater than 2, the number is in bold font with a red background and rounded to the nearest integer.
B27: HQ > 1 but < 2 | C27: For hazard quotient greater than 1 but less than two, the number is in bold font with a white background and rounded to one significant place after the decimal.
B28: HQ ≥ 0.1 but <1 | C28: For hazard quotient greater than 0.1 but less than one, the number is in regular font with a white background and rounded to one significant place after the decimal.
B29: HQ < 0.1 | C29: For hazard quotient less than 0.1, the number is in regular font with a white background. The number is expressed in scientific notation and rounded to one significant place -- e.g., 2E-02 rather than 0.02.
B55: Prepared by: | C55: Patrick R Durkin
B56: Program Version: | C56: 6.00.07
B57: Database Used: | C57: FS WsMkr V06-00-01.mdb
B58: Template Workbook: | C58: FS WsMkr V06-00-01.mdb
B59: Base Workbook: | C59: FS WSMkr Blank V06-00-01.xlsm

Sheet Chemical Notes
A1: Chemical specific notes
A2: Risk Assessment: | D2: SERA TR-052-26-03a
A3: Report Date: | D3: 2011-09-20
A6: The area below is an embedded MS Word Document. Add chemical-specific notes as appropriate.

Sheet Revisions
A1: Revision Histroy
A8: The area below is an embedded MS Word Document. Add revision notes as appropriate.

Sheet Contents
B1: Table of Contents | C1: Toc
A2: Work-sheet No. | B2: Worksheet Title
A3: TitlePage | B3: Title page
A4: Disclaimer | B4: DISCLAIMER
A5: General Notes | B5: General Notes
A6: Chemical Notes | B6: Chemical specific notes
A7: Revisions | B7: Revision Histroy
A8: Contents
A9: A01 | B9: Program Data: Application rates, application volumns, and concentrations in field solutions
A10: A02a | B10: General reference values and exposure factors used in worksheets.
A11: A02b | B11: General reference values and exposure factors used in worksheets.
A12: A02c | B12: General reference values and exposure factors used in worksheets.
A13: A02d | B13: General reference values and exposure factors used in worksheets.
A14: A03 | B14: Consumption values used in worksheets
A15: B01 | B15: Chemical and Physical Properties for Trifluralin
A16: B02 | B16: Toxicity values for Trifluralin
A17: B03a | B17: Calculation of Zero-Order Dermal Permeability Rate (Kp) in cm/hour
A18: B03b | B18: Calculation of First-Order Dermal Absorption Rate
A19: B04Rt | B19: Estimates of Water Contamination Rates -- i.e., the concentration in ambient water per pound applied per acre
A20: B04a | B20: Expected Concentrations in Surface Water
A21: B04b | B21: Pond: Concentration of pesticide (liquid formulation) in pond water after an accidental spill
A22: B05a | B22: Concentration of Pesticide in Contaminated Seeds
A23: B05b | B23: Concentration of Pesticide in Contaminated Broadleaf Vegetation
A24: B05c | B24: Concentration of Pesticide in Contaminated Short Grass
A25: B05d | B25: Concentration of Pesticide in Contaminated Long Grass
A26: C01 | B26: Exposure estimates for Ground Boom Worker based on the amount of material handled per day
A27: C02a | B27: Accidental Dermal Exposure Assessment Using Zero-Order Absorption, Worker, Surface Area, Hands, for 1 minute(s)
A28: C02b | B28: Accidental Dermal Exposure Assessment Using Zero-Order Absorption, Worker, Surface Area, Hands, for 60 minute(s)
A29: C03a | B29: Accidental Dermal Exposure Assessment Using First-Order Absorption, Worker, Surface Area, Hands, for 60 minute(s)
A30: C03b | B30: Accidental Dermal Exposure Assessment Using First-Order Absorption, Worker, Surface Area, Lower legs, for 60 minute(s)
A31: D03 | B31: Custom Worksheet for the Consumption of Sunflower Seeds by an Adult Female, Acute exposure.
A32: D05 | B32: Consumption of contaminated water by Child, Accidental Spill
A33: D06 | B33: Consumption of contaminated water by Child, Peak Conentrations
A34: D07 | B34: Consumption of contaminated water by Adult Male, Longer-term Conentrations
A35: D08a | B35: Consumption of Contaminated Fish (Accidental Spill), Adult Male, acute exposure
A36: D08b | B36: Consumption of Contaminated Fish (Accidental Spill), Subsistence Populations, acute exposure
A37: D09a | B37: Consumption of Contaminated Fish (Longer-term), Adult Male, chronic exposure
A38: D09b | B38: Consumption of Contaminated Fish (Longer-term), Subsistence Populations, chronic exposure
A39: D09c | B39: Consumption of Contaminated Fish (Peak Exposure), Adult Male, acute exposure
A40: D09d | B40: Consumption of Contaminated Fish (Peak Exposure), Subsistence Populations, acute exposure
A41: D10 | B41: Swimming Exposure Assessment Using Zero-Order Absorption, Adult Female, Surface Area, Whole body, for 60 minute(s)
A42: E01 | B42: Worksheet E01: Summary of Worker Exposure Assessments
A43: E02 | B43: Worksheet E01: Summary of Worker Hazard Quotients (Toxicity)
A44: E03 | B44: Worksheet E03: Summary of Exposure Assessments for the General Public
A45: E04 | B45: Worksheet E03: Summary of Hazard Quotients (Toxicity) for the General Public
A46: E05 | B46: Worksheet E05: Summary of Hazard Quotients Based on a Cancer Risk of 1 in 1-Million.
A47: F02a | B47: Consumption of contaminated water by Mammal, small, Accidental Spill
A48: F02b | B48: Consumption of contaminated water by Mammal, 400 g, Accidental Spill
A49: F02c | B49: Consumption of contaminated water by Mammal, carnivorous, Accidental Spill
A50: F02d | B50: Consumption of contaminated water by Mammal, large, Accidental Spill
A51: F02e | B51: Consumption of contaminated water by Bird, small, Accidental Spill
A52: F02f | B52: Consumption of contaminated water by Bird, large, Accidental Spill
A53: F03a | B53: Acute scenario for the consumption of Contaminated Fish ( Accidental Spill) by Mammal, large carnivorous
A54: F03b | B54: Acute scenario for the consumption of Contaminated Fish ( Accidental Spill) by Mammal, carnivorous
A55: F03c | B55: Acute scenario for the consumption of Contaminated Fish ( Accidental Spill) by Bird, piscivorous
A56: F04a | B56: Consumption of Seeds by a Small Mammal after Acute exposure.
A57: F04b | B57: Consumption of Seeds by a 400 gMammal after Acute exposure.
A58: F04c | B58: Consumption of Seeds by a large Mammal after Acute exposure.
A59: F04d | B59: Consumption of Seeds by a Small Bird after Acute exposure.
A60: F04e | B60: Consumption of Seeds by a Large Bird after Acute exposure.
A61: F05a | B61: Consumption of Broadleaf Vegetation by a Mammal, small after Acute exposure.
A62: F05b | B62: Consumption of Broadleaf Vegetation by a Mammal, 400 g after Acute exposure.
A63: F05c | B63: Consumption of Broadleaf Vegetation by a Mammal, large after Acute exposure.
A64: F05d | B64: Consumption of Broadleaf Vegetation by a Bird, small after Acute exposure.
A65: F05e | B65: Consumption of Broadleaf Vegetation by a Bird, large after Acute exposure.
A66: F06a | B66: Consumption of contaminated water by Mammal, small, Peak Concentrations
A67: F06b | B67: Consumption of contaminated water by Mammal, 400 g, Peak Concentrations
A68: F06c | B68: Consumption of contaminated water by Mammal, carnivorous, Peak Concentrations
A69: F06d | B69: Consumption of contaminated water by Mammal, large, Peak Concentrations
A70: F06e | B70: Consumption of contaminated water by Bird, small, Peak Concentrations
A71: F06f | B71: Consumption of contaminated water by Bird, large, Peak Concentrations
A72: F09a | B72: Acute scenario for the consumption of Contaminated Fish (Peak) by Mammal, large carnivorous
A73: F09b | B73: Acute scenario for the consumption of Contaminated Fish (Peak) by Mammal, carnivorous
A74: F09c | B74: Acute scenario for the consumption of Contaminated Fish (Peak) by Bird, piscivorous
A75: F10a | B75: Consumption of Seeds by a Small Mammal after Chronic exposure.
A76: F10b | B76: Consumption of Seeds by a 400 g Mammal after Chronic exposure.
A77: F10c | B77: Consumption of Seeds by a Large Mammal after Chronic exposure.
A78: F10d | B78: Consumption of Seeds by a Small Bird after Chronic exposure.
A79: F10e | B79: Consumption of Seeds by a Large Bird after Chronic exposure.
A80: F11a | B80: Consumption of Broadleaf Vegetation by a Small Mammal after Chronic exposure.
A81: F11b | B81: Consumption of Broadleaf Vegetation by a 400 g Mammal after Chronic exposure.
A82: F11c | B82: Consumption of Broadleaf Vegetation by a Large Mammal after Chronic exposure.
A83: F11d | B83: Consumption of Broadleaf Vegetation by a Small Bird after Chronic exposure.
A84: F11e | B84: Consumption of Broadleaf Vegetation by a Large Bird after Chronic exposure.
A85: F12a | B85: Consumption of contaminated water by Mammal, small, Longer-term Concentrations
A86: F12b | B86: Consumption of contaminated water by Mammal, 400 g, Longer-term Concentrations
A87: F12c | B87: Consumption of contaminated water by Mammal, carnivorous, Longer-term Concentrations
A88: F12d | B88: Consumption of contaminated water by Mammal, large, Longer-term Concentrations
A89: F12e | B89: Consumption of contaminated water by Bird, small, Longer-term Concentrations
A90: F12f | B90: Consumption of contaminated water by Bird, large, Longer-term Concentrations
A91: F13a | B91: Chronic scenario for the consumption of Contaminated Fish (Longer-term) by Mammal, large carnivorous
A92: F13b | B92: Chronic scenario for the consumption of Contaminated Fish (Longer-term) by Mammal, carnivorous
A93: F13c | B93: Chronic scenario for the consumption of Contaminated Fish (Longer-term) by Bird, piscivorous
A94: G01 | B94: Summary of Exposure Assessments for the Terrestrial Animals
A95: G02 | B95: Summary of Hazard Quotients (Toxicity) for the Terrestrial Animals
A96: G03 | B96: Worksheet G03: Summary of Hazard Quotients for Aquatic Species
A97: G04 | B97: Summary of Exposure Assessment and Risk Characterization for Terrestrial Plants from Runoff
A98: G06a | B98: Potential exposure of non-target plants through the use of contaminated irrigation water based on estimates concentrations in ambient water.
A99: G06b | B99: Summary of Exposure Assessment and Risk Characterization for Sensitive and Tolerant Terrestrial Plants from Wind Erosion at the Specified Application Rate.
A100: G07a | B100: Consumption of Fruit by a Herbivorous Insect, Acute exposure.
A101: G07b | B101: Consumption of Broadleaf/Small Insects by a Herbivorous Insect, Acute exposure.
A102: G07c | B102: Consumption of Short grass by a Herbivorous Insect, Acute exposure.
A103: G07d | B103: Consumption of Tall Grass by a Herbivorous Insect, Acute exposure.
A104: G08a | B104: Summary of Exposure Assessments for the Herbivorous or Predatory Insects
A105: G08b | B105: Summary of Hazard Quotients (Toxicity) for the Herbivorous or Predatory Insects
A106: References | B106: References cited in workbook

Sheet A01
A1: Program Data: Application rates, application volumns, and concentrations in field solutions
A2: Parameter/Assumption | B2: Code / Range | C2: Equation/ Value | D2: Units | E2: Reference/ Equation
A3: Application Rate | B3: ApRt | C3: 1 | D3: lb/acre | E3: Program Input
A4: Application Volume | B4: ApVol
B5: Central | C5: 10 | D5: gal/acre | E5: Program Input
B6: Upper | C6: 40 | E6: Program Input
B7: Lower | C7: 5 | E7: Program Input
A8: Concentration in field solution (lb/gal) | B8: Concppg | C8: ApRt (lb/acre) / ApVol (gal/acre) | E8: Note 1
B9: Central | C9: =IF(C5>0, C$3/C5, "N/A") -> 0.1 | D9: lb/gal | E9: Eq
B10: Lower | C10: =IF(C6>0, C$3/C6, "N/A") -> 0.025 | E10: Eq
B11: Upper | C11: =IF(C7>0, C$3/C7, "N/A") -> 0.2 | E11: Eq
A12: Conversion Factor for lbs/gal to mg/mL | B12: CnvF | C12: 119.8 | D12: mg/mL per lb/gal
A13: Concentration in field solution (mg/mL) | B13: FldConc | C13: Concppg * CnvF | E13: Note 2
B14: Central | C14: =IF(C5>0, DigitRound( C9*C$12, C$17), "NA") -> 12 | D14: mg/mL | E14: Eq
B15: Lower | C15: =IF(C6>0, DigitRound( C10*C$12, C$17), "NA") -> 3 | E15: Eq
B16: Upper | C16: =IF(C7>0, DigitRound( C11*C$12, C$17), "NA") -> 24 | E16: Eq
A17: Number of significant figures used for FldConc. | B17: NSig | C17: 2
A20: Number of Applications | B20: nApps | C20: 1 | D20: Unitless | E20: Program Input
A21: Application Interval | B21: ApIntv | C21: 1 | D21: Days | E21: Program Input
A22: Standard Values/Options for Scenarios
A23: Surface area of pond for spill | B23: PondSA_M | C23: 1000 | D23: Sq. Meters | E23: Risk assessment.
A24: Pond depth | B24: PondDepthM | C24: 1 | D24: Meters | E24: Risk assessment.
A25: Stream flow rate for drift scenario | B25: StreamFlowLD | C25: 710000 | D25: Liters/day | E25: Risk assessment.
A26: Stream length for drift scenario | B26: StreamLengthFt | C26: 1038 | D26: Feet | E26: Risk assessment.
A27: Stream width for drift scenario | B27: StreamWidthFt | C27: 6 | D27: Feet | E27: Risk assessment.
A28: Duration for longer-term exposures | B28: SubChDays | C28: 90 | D28: Days | E28: Risk assessment.
A29: Duration for swimming scenarios | B29: SwimMin | C29: 60 | D29: Minutes | E29: Risk assessment.
A30: Protection factor for workers based on PPE. | B30: WrkProtectFact
B31: Central | C31: 0 | E31: Risk assessment.
B32: Lower | C32: 0
B33: Upper | C33: 0
A34: Toxic Equivalency Factor for formulation | B34: TEF
B35: Central | C35: 1 | E35: Risk assessment.
B36: Lower | C36: 1
B37: Upper | C37: 1
A38: Amount spilled into ponds | B38: PondSpillVolGal
B39: Central | C39: 100 | D39: Gal | E39: Risk assessment.
B40: Lower | C40: 20
B41: Upper | C41: 200
A42: Bioconcentration from soil to plans for broadleaf/forage plants and small insects | B42: Soil2VegBCFBLT
B43: Central | C43: 0.081 | D43: ppm comodity per ppm soil | E43: Risk assessment.
B44: Lower | C44: 0.062
B45: Upper | C45: 0.18
A46: Bioconcentration from soil to plans for short grass | B46: Soil2VegBCFSGT
B47: Central | C47: 0.0017 | D47: ppm comodity per ppm soil | E47: Risk assessment.
B48: Lower | C48: 0.0011
B49: Upper | C49: 0.0023
A50: Bioconcentration from soil to plans for tall grass | B50: Soil2VegBCFTGT
B51: Central | C51: 0.0017 | D51: ppm comodity per ppm soil | E51: Risk assessment.
B52: Lower | C52: 0.0011
B53: Upper | C53: 0.0023
A54: Bioconcentration from soil to plans for fruit | B54: Soil2VegBCFFRT
B55: Central | C55: 0.009 | D55: ppm comodity per ppm soil | E55: Risk assessment.
B56: Lower | C56: 0.0026
B57: Upper | C57: 0.021
A58: Worker Exposure Rate | B58: WrkExpRate
B59: Central | C59: 3.1e-07 | D59: Mg/kg bw per lb | E59: Risk assessment.
B60: Lower | C60: 3.1e-07
B61: Upper | C61: 3.1e-07
A62: Number of acres that the worker will treat per hour. | B62: WrkAcPerHr
B63: Central | C63: 16 | D63: Acres/hr | E63: Risk assessment.
B64: Lower | C64: 11
B65: Upper | C65: 21
A66: Number of hours of worker exposure per day. | B66: WrkHsPerDy
B67: Central | C67: 7 | D67: Hrs/day | E67: Risk assessment.
B68: Lower | C68: 6
B69: Upper | C69: 8

Sheet A02a
A1: General reference values and exposure factors used in worksheets.
A3: Receptor | B3: Factor | C3: Value | D3: Units | E3: Reference | F3: Reference Note
A4: Adult Female | B4: Body weight | C4: 64 | D4: kg | E4: U.S. EPA/ORD 1985 | F4: page 5, Table 2-2
A5: Adult Female | B5: Surface Area, Feet and lower Legs | C5: 2915 | D5: cm2 | E5: U.S. EPA/ORD 1992 | F5: p. 8-11, Table 8-3, total for feet and lower legs
A6: Adult Female | B6: Surface Area, Wearing shorts and T-shirt | C6: 5300 | D6: cm2 | E6: U.S. EPA/ORD 1992 | F6: p. 8-11, Table 8-3, total for arms, hands, lower legs, and feet.
A7: Adult Female | B7: Surface Area, Whole body | C7: 16900 | D7: cm2 | E7: U.S. EPA/ORD 1997 | F7: p. 6-13, Table 6-3, whole body, 50th percentile
A8: Adult Male | B8: Body weight | C8: 70 | D8: kg | E8: ICRP 1975 | F8: p. 13.
A9: Subsistence Populations | B9: Body weight | C9: 70 | D9: kg | E9: ICRP 1975 | F9: p. 13
A10: Worker, Aerial Spray | B10: Absorbed dose rate, central estimate | C10: 3e-05 | D10: (mg/kg bw)/(lbs handled per day) | E10: SERA 2007 | F10: Acres treated per hour
A11: Worker, Aerial Spray | B11: Absorbed dose rate, lower range | C11: 1e-06 | D11: (mg/kg bw)/(lbs handled per day) | E11: SERA 2007 | F11: Acres treated per hour
A12: Worker, Aerial Spray | B12: Absorbed dose rate, upper range | C12: 0.0001 | D12: (mg/kg bw)/(lbs handled per day) | E12: SERA 2007 | F12: Acres treated per hour
A13: Worker, Aerial Spray | B13: Hours of application per day, central estimate | C13: 7 | D13: Hours per day | E13: USDA 1989a | F13: N/A
A14: Worker, Aerial Spray | B14: Hours of application per day, lower range | C14: 6 | D14: Hours per day | E14: USDA 1989a | F14: N/A
A15: Worker, Aerial Spray | B15: Hours of application per day, upper range | C15: 8 | D15: Hours per day | E15: USDA 1989a | F15: N/A
A16: Worker, Aerial Spray | B16: Acres treated per hour, central estimate | C16: 70 | D16: acres/hour | E16: USDA 1989a | F16: Acres treated per hour
A17: Worker, Aerial Spray | B17: Acres treated per hour, lower range | C17: 40 | D17: acres/hour | E17: USDA 1989a | F17: Acres treated per hour
A18: Worker, Aerial Spray | B18: Acres treated per hour, upper range | C18: 100 | D18: acres/hour | E18: USDA 1989a | F18: Acres treated per hour
A19: Worker, Backpack | B19: Absorbed dose rate, central estimate | C19: 0.003 | D19: (mg/kg bw)/(lbs handled per day) | E19: SERA 2007 | F19: Acres treated per hour
A20: Worker, Backpack | B20: Absorbed dose rate, lower range | C20: 0.0003 | D20: (mg/kg bw)/(lbs handled per day) | E20: SERA 2007 | F20: Acres treated per hour
A21: Worker, Backpack | B21: Absorbed dose rate, upper range | C21: 0.01 | D21: (mg/kg bw)/(lbs handled per day) | E21: SERA 2007 | F21: Acres treated per hour
A22: Worker, Backpack | B22: Hours of application per day, central estimate | C22: 7 | D22: Hours per day | E22: USDA 1989a | F22: N/A
A23: Worker, Backpack | B23: Hours of application per day, lower range | C23: 6 | D23: Hours per day | E23: USDA 1989a | F23: N/A
A24: Worker, Backpack | B24: Hours of application per day, upper range | C24: 8 | D24: Hours per day | E24: USDA 1989a | F24: N/A
A25: Worker, Backpack | B25: Acres treated per hour, central estimate | C25: 0.625 | D25: acres/hour | E25: USDA 1989a | F25: Acres treated per hour
A26: Worker, Backpack | B26: Acres treated per hour, lower range | C26: 0.25 | D26: acres/hour | E26: USDA 1989a | F26: Acres treated per hour
A27: Worker, Backpack | B27: Acres treated per hour, upper range | C27: 1 | D27: acres/hour | E27: USDA 1989a | F27: Acres treated per hour
A28: Child | B28: Body weight | C28: 13.3 | D28: kg | E28: U.S. EPA/ORD 1996 | F28: p. 7-1, Table 7-2
A29: Child | B29: Surface Area, Whole body | C29: 6030 | D29: cm2 | E29: U.S. EPA/ORD 1996 | F29: p. 6-15, Table 6-6, 50th percentile.
A30: Worker, Ground Spray | B30: Absorbed dose rate, central estimate | C30: 0.0002 | D30: (mg/kg bw)/(lbs handled per day) | E30: SERA 2007 | F30: Acres treated per hour
A31: Worker, Ground Spray | B31: Absorbed dose rate, lower range | C31: 1e-05 | D31: (mg/kg bw)/(lbs handled per day) | E31: SERA 2007 | F31: Acres treated per hour
A32: Worker, Ground Spray | B32: Absorbed dose rate, upper range | C32: 0.0009 | D32: (mg/kg bw)/(lbs handled per day) | E32: SERA 2007 | F32: Acres treated per hour
A33: Worker, Ground Spray | B33: Hours of application per day, central estimate | C33: 7 | D33: Hours per day | E33: USDA 1989a | F33: N/A
A34: Worker, Ground Spray | B34: Hours of application per day, lower range | C34: 6 | D34: Hours per day | E34: USDA 1989a | F34: N/A
A35: Worker, Ground Spray | B35: Hours of application per day, upper range | C35: 8 | D35: Hours per day | E35: USDA 1989a | F35: N/A
A36: Worker, Ground Spray | B36: Acres treated per hour, central estimate | C36: 16 | D36: acres/hour | E36: USDA 1989a | F36: Acres treated per hour
A37: Worker, Ground Spray | B37: Acres treated per hour, lower range | C37: 11 | D37: acres/hour | E37: USDA 1989a | F37: Acres treated per hour
A38: Worker, Ground Spray | B38: Acres treated per hour, upper range | C38: 21 | D38: acres/hour | E38: USDA 1989a | F38: Acres treated per hour
A39: Worker | B39: Body weight | C39: 70 | D39: kg | E39: ICRP 1975 | F39: p. 13
A40: Worker | B40: Surface Area, Hands | C40: 840 | D40: cm2 | E40: U.S. EPA/ORD 1992 | F40: p. 8-11
A41: Worker | B41: Surface Area, Lower legs | C41: 2070 | D41: cm2 | E41: U.S. EPA/ORD 1992 | F41: p. 8-11

Sheet A02b
A1: General reference values and exposure factors used in worksheets.
A3: Receptor | B3: Factor | C3: Value | D3: Units | E3: Reference | F3: Reference Note
A4: Amphibian | B4: Kilocalories, alpha parameter for allometric equation | C4: 0.054 | D4: BW(g),Kcal (kcal/day) | E4: U.S. EPA/ORD 1993 | F4: p. 3-7, equation 3-14
A5: Amphibian | B5: Kilocalories, beta parameter for allometric equation | C5: 0.799 | D5: BW(g),Kcal (kcal/day) | E5: U.S. EPA/ORD 1993 | F5: p. 3-7, equation 3-14
A6: Amphibian, bull frog | B6: Food consumption, alpha parameter for allometric equation | C6: 1.09 | D6: BW(g),FC(g) | E6: SERA 2010 | F6: Figure 15
A7: Amphibian, bull frog | B7: Food consumption, beta parameter for allometric equation | C7: 0.1723 | D7: BW(g),FC(g) | E7: SERA 2010 | F7: Figure 15
A8: Bird, NOS | B8: Food consumption, alpha parameter for allometric equation | C8: 0.648 | D8: BW(g),FC(g) | E8: U.S. EPA/ORD 1993 | F8: Eq. 3-3, p. 3-4, all birds
A9: Bird, NOS | B9: Food consumption, beta parameter for allometric equation | C9: 0.651 | D9: BW(g),FC(g) | E9: U.S. EPA/ORD 1993 | F9: Eq. 3-3, p. 3-4, all birds
A10: Bird, carnivorous | B10: Body weight | C10: 0.64 | D10: kg | E10: Dunning 1993 | F10: p. 97. Female Spotted Owl (Strix occidentalis). Range of 548 to 760 g.
A11: Bird, carnivorous | B11: Kilocalories, alpha parameter for allometric equation | C11: 1.146 | D11: BW(g),KCal(kcal/day) | E11: U.S. EPA/ORD 1993 | F11: Eq. 3-37, nonpasserines
A12: Bird, carnivorous | B12: Kilocalories, beta parameter for allometric equation | C12: 0.749 | D12: BW(g),KCal(kcal/day) | E12: U.S. EPA/ORD 1993 | F12: Eq. 3-37, nonpasserines
A13: Bird, carnivorous | B13: Water consumption, alpha parameter for allometric equation | C13: 0.059 | D13: BW(kg), WC(L) | E13: U.S. EPA/ORD 1993 | F13: Eq. 3-15, p. 3-8
A14: Bird, carnivorous | B14: Water consumption, beta parameter for allometric equation | C14: 0.67 | D14: BW(kg), WC(L) | E14: U.S. EPA/ORD 1993 | F14: Eq. 3-15, p. 3-8
A15: Bird, large | B15: Body weight | C15: 4 | D15: kg | E15: Default | F15: Canada goose
A16: Bird, large | B16: Kilocalories, alpha parameter for allometric equation | C16: 1.146 | D16: BW(g),KCal(kcal/day) | E16: U.S. EPA/ORD 1993 | F16: Eq. 3-37, non-passerines
A17: Bird, large | B17: Kilocalories, beta parameter for allometric equation | C17: 0.749 | D17: BW(g),KCal(kcal/day) | E17: U.S. EPA/ORD 1993 | F17: Eq. 3-37, non-passerines
A18: Bird, large | B18: Water consumption, alpha parameter for allometric equation | C18: 0.059 | D18: BW(kg), WC(L) | E18: U.S. EPA/ORD 1993 | F18: Eq. 3-15, p. 3-8
A19: Bird, large | B19: Water consumption, beta parameter for allometric equation | C19: 0.67 | D19: BW(kg), WC(L) | E19: U.S. EPA/ORD 1993 | F19: Eq. 3-15, p. 3-8
A20: Bird, non-Passerine | B20: Food consumption, alpha parameter for allometric equation | C20: 0.301 | D20: BW(g),FC(g) | E20: U.S. EPA/ORD 1993 | F20: Eq. 3-5, p. 3-5, non-passerines
A21: Bird, non-Passerine | B21: Food consumption, beta parameter for allometric equation | C21: 0.751 | D21: BW(g),FC(g) | E21: U.S. EPA/ORD 1993 | F21: Eq. 3-5, p. 3-5, non-passerines
A22: Bird, Passerine | B22: Food consumption, alpha parameter for allometric equation | C22: 0.398 | D22: BW(g),FC(g) | E22: U.S. EPA/ORD 1993 | F22: Eq. 3-4, p. 3-4, passerines
A23: Bird, Passerine | B23: Food consumption, beta parameter for allometric equation | C23: 0.85 | D23: BW(g),FC(g) | E23: U.S. EPA/ORD 1993 | F23: Eq. 3-4, p. 3-4, passerines
A24: Bird, piscivorous | B24: Body weight | C24: 2.4 | D24: kg | E24: Sibley 2000 | F24: p. 60. Great Blue Heron
A25: Bird, piscivorous | B25: Food consumption, alpha parameter for allometric equation | C25: 0.495 | D25: BW(g), FC(g) | E25: U.S. EPA/ORD 1993 | F25: Eq. 3-6, p. 3-5, seabird
A26: Bird, piscivorous | B26: Food consumption, beta parameter for allometric equation | C26: 0.704 | D26: BW(g), FC(g) | E26: U.S. EPA/ORD 1993 | F26: Eq. 3-6, p. 3-5, seabird
A27: Bird, piscivorous | B27: Kilocalories, alpha parameter for allometric equation | C27: 1.916 | D27: BW(g),KCal(kcal/day) | E27: U.S. EPA/ORD 1993 | F27: Eq. 3-38, p. 3-23, seabird
A28: Bird, piscivorous | B28: Kilocalories, beta parameter for allometric equation | C28: 0.704 | D28: BW(g),KCal(kcal/day) | E28: U.S. EPA/ORD 1993 | F28: Eq. 3-38, p. 3-23, seabird
A29: Bird, piscivorous | B29: Water consumption, alpha parameter for allometric equation | C29: 0.059 | D29: BW(kg), WC(L) | E29: U.S. EPA/ORD 1993 | F29: Eq. 3-15, p. 3-8
A30: Bird, piscivorous | B30: Water consumption, beta parameter for allometric equation | C30: 0.67 | D30: BW(kg), WC(L) | E30: U.S. EPA/ORD 1993 | F30: Eq. 3-15, p. 3-8
A31: Bird, small | B31: Body weight | C31: 0.01 | D31: kg | E31: Default | F31: N/A
A32: Bird, small | B32: Kilocalories, alpha parameter for allometric equation | C32: 3.12 | D32: BW(g),KCal(kcal/day) | E32: U.S. EPA/ORD 1993 | F32: Equation 3-36, passerines
A33: Bird, small | B33: Kilocalories, beta parameter for allometric equation | C33: 0.605 | D33: BW(g),KCal(kcal/day) | E33: U.S. EPA/ORD 1993 | F33: Equation 3-36, passerines
A34: Bird, small | B34: Water consumption, alpha parameter for allometric equation | C34: 0.059 | D34: BW(kg), WC(L) | E34: U.S. EPA/ORD 1993 | F34: Eq. 3-15, p. 3-8
A35: Bird, small | B35: Water consumption, beta parameter for allometric equation | C35: 0.67 | D35: BW(kg), WC(L) | E35: U.S. EPA/ORD 1993 | F35: Eq. 3-15, p. 3-8
A36: Honeybee | B36: Body weight | C36: 0.000116 | D36: kg | E36: Winston 1987 | F36: p. 54. Arithmetic average of range: 81 to 151 mg/bee.
A37: Honeybee | B37: Surface Area, Whole body | C37: 1.42 | D37: cm2 | E37: Humphery and Dykes 2008 | F37: Based on a bee with a body length of 1.44 cm.
A38: Mammal, Nos | B38: Food consumption, alpha parameter for allometric equation | C38: 0.235 | D38: BW(g),FC(g) | E38: U.S. EPA/ORD 1993 | F38: Eq. 3-7 ,p. 3-6, all mammals
A39: Mammal, Nos | B39: Food consumption, beta parameter for allometric equation | C39: 0.822 | D39: BW(g),FC(g) | E39: U.S. EPA/ORD 1993 | F39: Eq. 3-7 ,p. 3-6, all mammals
A40: Mammal, 400 g | B40: Body weight | C40: 0.4 | D40: kg | E40: Default | F40: N/A
A41: Mammal, 400 g | B41: Food consumption, alpha parameter for allometric equation | C41: 0.621 | D41: BW(g),FC(g) | E41: U.S. EPA/ORD 1993 | F41: Eq. 3-8, p. 3-6, equation for rodents
A42: Mammal, 400 g | B42: Food consumption, beta parameter for allometric equation | C42: 0.564 | D42: BW(g),FC(g) | E42: U.S. EPA/ORD 1993 | F42: Eq. 3-8, p. 3-6, equation for rodents
A43: Mammal, 400 g | B43: Kilocalories, alpha parameter for allometric equation | C43: 2.514 | D43: BW(g),KCal(kcal/day) | E43: U.S. EPA/ORD 1993 | F43: Equation 3-48, rodent
A44: Mammal, 400 g | B44: Kilocalories, beta parameter for allometric equation | C44: 0.507 | D44: BW(g),KCal(kcal/day) | E44: U.S. EPA/ORD 1993 | F44: Equation 3-48, rodent
A45: Mammal, 400 g | B45: Water consumption, alpha parameter for allometric equation | C45: 0.099 | D45: BW(kg),WC(L) | E45: U.S. EPA/ORD 1993 | F45: Eq. 3-17, p. 3-10, all mammals
A46: Mammal, 400 g | B46: Water consumption, beta parameter for allometric equation | C46: 0.9 | D46: BW(kg),WC(L) | E46: U.S. EPA/ORD 1993 | F46: Eq. 3-17, p. 3-10, all mammals
A47: Mammal, carnivorous | B47: Body weight | C47: 5 | D47: kg | E47: U.S. EPA/ORD 1993 | F47: p. 2-221. Central value for red fox with a range of 3 to 7 kg.
A48: Mammal, carnivorous | B48: Kilocalories, alpha parameter for allometric equation | C48: 0.6167 | D48: BW(g),KCal(kcal/day) | E48: U.S. EPA/ORD 1993 | F48: Equation 3-47, non-herbivore
A49: Mammal, carnivorous | B49: Kilocalories, beta parameter for allometric equation | C49: 0.862 | D49: BW(g),KCal(kcal/day) | E49: U.S. EPA/ORD 1993 | F49: Equation 3-47, non-herbivore
A50: Mammal, carnivorous | B50: Water consumption, alpha parameter for allometric equation | C50: 0.099 | D50: BW(kg),WC(L) | E50: U.S. EPA/ORD 1993 | F50: Eq. 3-17, p. 3-10, all mammals
A51: Mammal, carnivorous | B51: Water consumption, beta parameter for allometric equation | C51: 0.9 | D51: BW(kg), WC(L) | E51: U.S. EPA/ORD 1993 | F51: Eq. 3-17, p. 3-10, all mammals
A52: Mammal, large carnivorous | B52: Body weight | C52: 70 | D52: kg | E52: Reid 2006 | F52: pp. 451-453. Black bear or small grizzly.
A53: Mammal, large carnivorous | B53: Kilocalories, alpha parameter for allometric equation | C53: 0.6167 | D53: BW(g),KCal(kcal/day) | E53: U.S. EPA/ORD 1993 | F53: Equation 3-47, non-herbivore
A54: Mammal, large carnivorous | B54: Kilocalories, beta parameter for allometric equation | C54: 0.862 | D54: BW(g),KCal(kcal/day) | E54: U.S. EPA/ORD 1993 | F54: Equation 3-47, non-herbivore
A55: Mammal, large carnivorous | B55: Water consumption, alpha parameter for allometric equation | C55: 0.099 | D55: BW(kg),WC(L) | E55: U.S. EPA/ORD 1993 | F55: Eq. 3-17, p. 3-10, all mammals
A56: Mammal, large carnivorous | B56: Water consumption, beta parameter for allometric equation | C56: 0.9 | D56: BW(kg), WC(L) | E56: U.S. EPA/ORD 1993 | F56: Eq. 3-17, p. 3-10, all mammals
A57: Mammal, herbivorous | B57: Food consumption, alpha parameter for allometric equation | C57: 0.577 | D57: BW(g),FC(g) | E57: U.S. EPA/ORD 1993 | F57: Eq. 3-9, p. 3-6, equation for herbivores
A58: Mammal, herbivorous | B58: Food consumption, beta parameter for allometric equation | C58: 0.727 | D58: BW(g),FC(g) | E58: U.S. EPA/ORD 1993 | F58: Eq. 3-9, p. 3-6, equation for herbivores
A59: Mammal, herbivorous | B59: Kilocalories, alpha parameter for allometric equation | C59: 1.518 | D59: BW(g),KCal(kcal/day) | E59: U.S. EPA/ORD 1993 | F59: Equation 3-46, herbivores
A60: Mammal, herbivorous | B60: Kilocalories, beta parameter for allometric equation | C60: 0.73 | D60: BW(g),KCal(kcal/day) | E60: U.S. EPA/ORD 1993 | F60: Equation 3-46, herbivores
A61: Mammal, large | B61: Body weight | C61: 70 | D61: kg | E61: Default | F61: N/A
A62: Mammal, large | B62: Kilocalories, alpha parameter for allometric equation | C62: 1.518 | D62: BW(g),KCal(kcal/day) | E62: U.S. EPA/ORD 1993 | F62: p. 3-6, Eq. 3-10, herbivores
A63: Mammal, large | B63: Kilocalories, beta parameter for allometric equation | C63: 0.73 | D63: BW(g),KCal(kcal/day) | E63: U.S. EPA/ORD 1993 | F63: p. 3-6, Eq. 3-10, herbivores
A64: Mammal, large | B64: Water consumption, alpha parameter for allometric equation | C64: 0.099 | D64: BW(kg),WC(L) | E64: U.S. EPA/ORD 1993 | F64: Eq. 3-17, p. 3-10, all mammals
A65: Mammal, large | B65: Water consumption, beta parameter for allometric equation | C65: 0.9 | D65: BW(kg), WC(L) | E65: U.S. EPA/ORD 1993 | F65: Eq. 3-17, p. 3-10, all mammals
A66: Mammal, rabbit | B66: Body weight | C66: 1.3 | D66: kg | E66: Default | F66: N/A
A67: Mammal, rabbit | B67: Surface Area, alpha parameter for allometric equation | C67: 0.11 | D67: BW(kg),SA(m2) | E67: U.S. EPA/ORD 1993 | F67: p. 3-14, Eq. 3-22, for all mammals
A68: Mammal, rabbit | B68: Surface Area, beta parameter for allometric equation | C68: 0.65 | D68: BW(kg),SA(m2) | E68: U.S. EPA/ORD 1993 | F68: p. 3-14, Eq. 3-22, for all mammals
A69: Mammal, rodent | B69: Food consumption, alpha parameter for allometric equation | C69: 0.621 | D69: BW(g),FC(g) | E69: U.S. EPA/ORD 1993 | F69: Eq. 3-8, p. 3-6, equation for rodents
A70: Mammal, rodent | B70: Food consumption, beta parameter for allometric equation | C70: 0.584 | D70: BW(g),FC(g) | E70: U.S. EPA/ORD 1993 | F70: Eq. 3-8,p. 3-6, equation for rodents
A71: Mammal, small | B71: Body weight | C71: 0.02 | D71: kg | E71: Default | F71: N/A
A72: Mammal, small | B72: Caloric content (wet weight) | C72: 1.7 | D72: kcal/g (wet weight) | E72: U.S. EPA/ORD 1993 | F72: Table 4-1, p. 4-13. Value for small mammals. Wet weight.
A73: Mammal, small | B73: Food consumption, alpha parameter for allometric equation | C73: 0.621 | D73: BW(g),FC(g) | E73: U.S. EPA/ORD 1993 | F73: Eq. 3-8, p. 3-6, equation for rodents
A74: Mammal, small | B74: Food consumption, beta parameter for allometric equation | C74: 0.564 | D74: BW(g),FC(g) | E74: U.S. EPA/ORD 1993 | F74: Eq. 3-8, p. 3-6, equation for rodents
A75: Mammal, small | B75: Kilocalories, alpha parameter for allometric equation | C75: 2.514 | D75: BW(g),KCal(kcal/day) | E75: U.S. EPA/ORD 1993 | F75: Equation 3-48, rodent
A76: Mammal, small | B76: Kilocalories, beta parameter for allometric equation | C76: 0.507 | D76: BW(g),KCal(kcal/day) | E76: U.S. EPA/ORD 1993 | F76: Equation 3-48, rodent
A77: Mammal, small | B77: Surface Area, alpha parameter for allometric equation | C77: 0.11 | D77: BW(kg),SA(m2) | E77: U.S. EPA/ORD 1993 | F77: p. 3-14, Eq. 3-22, for all mammals
A78: Mammal, small | B78: Surface Area, beta parameter for allometric equation | C78: 0.65 | D78: BW(kg),SA(m2) | E78: U.S. EPA/ORD 1993 | F78: p. 3-14, Eq. 3-22, for all mammals
A79: Mammal, small | B79: Water consumption, alpha parameter for allometric equation | C79: 0.099 | D79: BW(kg),WC(L) | E79: U.S. EPA/ORD 1993 | F79: Eq. 3-17, p. 3-10, all mammals
A80: Mammal, small | B80: Water consumption, beta parameter for allometric equation | C80: 0.9 | D80: BW(kg),WC(L) | E80: U.S. EPA/ORD 1993 | F80: Eq. 3-17, p. 3-10, all mammals

Sheet A02c
A1: General reference values and exposure factors used in worksheets.
A3: Receptor | B3: Factor | C3: Value | D3: Units | E3: Reference | F3: Reference Note
A4: Small Insects | B4: Caloric content (wet weight) | C4: 1.5 | D4: kcal/g (wet weight) | E4: U.S. EPA/ORD 1993 | F4: Table 4-1, p. 4-13. Value for beetles. Wet weight
A5: Fish | B5: Caloric content (wet weight) | C5: 1.2 | D5: kcal/g (wet weight) | E5: U.S. EPA/ORD 1993 | F5: Table 4-1, p. 4-13. Value for bony fish. Wet weight
A6: Vegetation | B6: Caloric content (dry weight) | C6: 2.26 | D6: kcal/g | E6: U.S. EPA/ORD 1993 | F6: p. 3-5, Table 3-1
A7: Vegetation | B7: Water content (proportion) | C7: 0.85 | D7: unitless | E7: U.S. EPA/ORD 1993 | F7: p. 4-14
A8: VegRR | B8: Broadleaf/forage plants and small insects, central estimate | C8: 45 | D8: mg chem/kg veg | E8: Fletcher et al. 1994 | F8: Broadleaf/forage plants and small insects
A9: VegRR | B9: Broadleaf/forage plants and small insects, upper range | C9: 135 | D9: mg chem/kg veg | E9: Fletcher et al. 1994 | F9: Broadleaf/forage plants and small insects
A10: VegRR | B10: Fruits, pods, seeds, and large insects, central estimate | C10: 7 | D10: mg chem/kg veg | E10: Fletcher et al. 1994 | F10: Fruits, pods, seeds, and large insects
A11: VegRR | B11: Fruits, pods, seeds, and large insects, upper range | C11: 15 | D11: mg chem/kg veg | E11: Fletcher et al. 1994 | F11: Fruits, pods, seeds, and large insects
A12: VegRR | B12: Broadleaf plants and small insects, granular applications, central estimate | C12: 1.8 | D12: mg chem/kg veg | E12: SERA 2005 | F12: Broadleaf forage plants and contaminated insects after granular application
A13: VegRR | B13: Broadleaf plants and small insects, granular applications, upper range | C13: 5.4 | D13: mg chem/kg veg | E13: SERA 2005 | F13: Broadleaf forage plants and contaminated insects after granular application
A14: VegRR | B14: Fruits, granular applications, central estimate | C14: 0.28 | D14: mg chem/kg veg | E14: SERA 2005 | F14: Fruit after granular application
A15: VegRR | B15: Fruits, granular applications, upper range | C15: 0.6 | D15: mg chem/kg veg | E15: SERA 2005 | F15: Fruit after granular application
A16: VegRR | B16: Short grass, granular applications, lower range | C16: 1.2 | D16: mg chem/kg veg | E16: SERA 2005 | F16: Short grass after granular application
A17: VegRR | B17: Short grass, granular applications, upper range | C17: 9.6 | D17: mg chem/kg veg | E17: SERA 2005 | F17: Short grass after granular application
A18: VegRR | B18: Tall grass, granular applications, central estimate | C18: 1.44 | D18: mg chem/kg veg | E18: SERA 2005 | F18: Tall grass after granular application
A19: VegRR | B19: Tall grass, granular applications, upper range | C19: 4.4 | D19: mg chem/kg veg | E19: SERA 2005 | F19: Tall grass after granular application
A20: VegRR | B20: Short grass, central estimate | C20: 85 | D20: mg chem/kg veg | E20: Fletcher et al. 1994 | F20: Short grass
A21: VegRR | B21: Short grass, lower range | C21: 30 | D21: mg chem/kg veg | E21: SERA 2007 | F21: Short grass
A22: VegRR | B22: Short grass, upper range | C22: 240 | D22: mg chem/kg veg | E22: Fletcher et al. 1994 | F22: Short grass
A23: VegRR | B23: Tall grass, central estimate | C23: 36 | D23: mg chem/kg veg | E23: Fletcher et al. 1994 | F23: Tall grass
A24: VegRR | B24: Tall grass, upper range | C24: 110 | D24: mg chem/kg veg | E24: Fletcher et al. 1994 | F24: Tall grass

Sheet A02d
A1: General reference values and exposure factors used in worksheets.
A3: Receptor | B3: Factor | C3: Value | D3: Units | E3: Reference | F3: Reference Note
A4: Conversion Factors | B4: acrefoot2gal | C4: 325900 | D4: gal/acre-foot | E4: Budavari 1989 | F4: N/A
A5: Conversion Factors | B5: liters per gal | C5: 3.785 | D5: L/gal | E5: Budavari 1989 | F5: N/A
A6: Conversion Factors | B6: pound per milligram | C6: 453600 | D6: mg/lb | E6: Budavari 1989 | F6: N/A
A7: Conversion Factors | B7: lbac2mgcm2 | C7: 0.01121 | D7: mg/cm2 per lb/acre | E7: Budavari 1989 | F7: N/A
A8: Conversion Factors | B8: lbac2ugcm2 | C8: 11.21 | D8: ug/cm2 per lb/acre | E8: Budavari 1989 | F8: N/A
A9: Conversion Factors | B9: conversion for milligrams to pounds | C9: 2.204e-06 | D9: lb/mg | E9: Budavari 1989 | F9: N/A
A10: Conversion Factors | B10: conversion for milliliters to gallons | C10: 3785 | D10: ml/gal | E10: Budavari 1989 | F10: N/A
A11: Misc | B11: Liquid adhering to skin | C11: 0.008 | D11: mL/cm2 | E11: Mason and Johnson 1987 | F11: Weight of liquid adhering to surface of skin after a spill
A12: Misc | B12: Dislodgeable residue as proportion | C12: 0.1 | D12: none | E12: Harris and Solomon 1992 | F12: Estimate of dislodgeable residue as a proportion of application rate shortly after application based on 2,4-D.
A13: Standard Pond | B13: Depth | C13: 1 | D13: m | E13: Default | F13: Depth of pond
A14: Standard Pond | B14: Surface Area | C14: 1000 | D14: m^2 | E14: Default | F14: Surface Area
A15: Standard Pond | B15: Volume of Spill | C15: 200 | D15: gallons | E15: Default | F15: Volume of spill
A16: VegRR | B16: Broadleaf/forage plants and small insects, lower range | C16: 15 | D16: mg chem/kg veg | E16: SERA 2007 | F16: Broadleaf/forage plants and small insects
A17: VegRR | B17: Fruits, pods, seeds, and large insects, lower range | C17: 3.2 | D17: mg chem/kg veg | E17: SERA 2007 | F17: Fruits, pods, seeds, and large insects
A18: VegRR | B18: Broadleaf plants and small insects, granular applications, lower range | C18: 0.6 | D18: mg chem/kg veg | E18: SERA 2007 | F18: Broadleaf/forage plants after granular application
A19: VegRR | B19: Fruits, granular applications, lower range | C19: 0.13 | D19: mg chem/kg veg | E19: SERA 2007 | F19: Fruit after granular application
A20: VegRR | B20: Short grass, granular applications, central estimate | C20: 3.4 | D20: mg chem/kg veg | E20: SERA 2005 | F20: Short grass after granular application
A21: VegRR | B21: Short grass, granular applications, lower range | C21: 1.2 | D21: mg chem/kg veg | E21: SERA 2007 | F21: Short grass after granular application
A22: VegRR | B22: Tall grass, granular applications, lower range | C22: 0.48 | D22: mg chem/kg veg | E22: SERA 2007 | F22: Tall grass after granular application
A23: VegRR | B23: Short grass, lower range | C23: 30 | D23: mg chem/kg veg | E23: Fletcher et al. 1994 | F23: Short grass
A24: VegRR | B24: Tall grass, lower range | C24: 12 | D24: mg chem/kg veg | E24: SERA 2007 | F24: Tall grass

Sheet A03
A1: Consumption values used in worksheets
A3: Receptor | B3: Item | C3: Qualifier | D3: Modifier | E3: Value | F3: Units | G3: Reference | H3: Reference Note
A4: Adult Female | B4: Fish | C4: Amount | D4: central estimate | E4: 0.01 | F4: kg/day | G4: U.S. EPA/ORD 1996 | H4: p. 10-51, average of means from four studies rounded to one significant place.
A5: Adult Female | B5: Fish | C5: Amount | D5: upper range | E5: 0.158 | F5: kg/day | G5: Ruffle et al. 1994 | H5: N/A
A6: Adult Female | B6: Fruit | C6: Proportion of body weight | D6: central estimate | E6: 0.00168 | F6: kg fruit/kg bw/day | G6: U.S. EPA/ORD 1996 | H6: Table 9-3, p. 9-11, mean value.
A7: Adult Female | B7: Fruit | C7: Proportion of body weight | D7: lower range | E7: 0.00168 | F7: kg fruit/kg bw/day | G7: U.S. EPA/ORD 1996 | H7: Table 9-3, p. 9-11. The 5th percentile is given as zero. For these worksheets, the central estimate is used for the lower bound.
A8: Adult Female | B8: Fruit | C8: Proportion of body weight | D8: upper range | E8: 0.01244 | F8: kg fruit/kg bw/day | G8: U.S. EPA/ORD 1996 | H8: Table 9-3, p. 9-11, 95th percentile value.
A9: Adult Female | B9: Vegetation, home grown | C9: Proportion of body weight | D9: central estimate | E9: 0.00076 | F9: kg veg/kg bw/day | G9: U.S. EPA/ORD 1996 | H9: Table 12-15, p. 9-14, mean for individuals between 20 and 39 years old.
A10: Adult Female | B10: Vegetation, home grown | C10: Proportion of body weight | D10: lower range | E10: 8e-05 | F10: kg veg/kg bw/day | G10: U.S. EPA/ORD 1996 | H10: Table 12-15, p. 9-14, 5th percentile for individuals between 20 and 39 years old.
A11: Adult Female | B11: Vegetation, home grown | C11: Proportion of body weight | D11: upper range | E11: 0.00492 | F11: kg veg/kg bw/day | G11: U.S. EPA/ORD 1996 | H11: Table 12-15, p. 9-14, 95th percentile for individuals between 20 and 39 years old.
A12: Adult Female | B12: Vegetation | C12: Amount | D12: Extreme | E12: 0.454 | F12: kg food | G12: U.S. EPA/ORD 1996 | H12: 1 lb. The approximate mid range of the above typical and upper limits based on the 64 kg body weight.
A13: Adult Female | B13: Vegetation | C13: Proportion of body weight | D13: central estimate | E13: 0.0036 | F13: kg veg/kg bw/day | G13: U.S. EPA/ORD 1996 | H13: Table 9-12, p. 9-12, mean.
A14: Adult Female | B14: Vegetation | C14: Proportion of body weight | D14: lower range | E14: 0.00075 | F14: kg veg/kg bw/day | G14: U.S. EPA/ORD 1996 | H14: Table 9-12, p. 9-12, 5th percentile.
A15: Adult Female | B15: Vegetation | C15: Proportion of body weight | D15: upper range | E15: 0.01 | F15: kg veg/kg bw/day | G15: U.S. EPA/ORD 1996 | H15: Table 9-12, p. 9-12, 95th percentile.
A16: Adult Female | B16: Water | C16: Amount | D16: central estimate | E16: 2 | F16: L/day | G16: U.S. EPA/ORD 1996 | H16: p. 3-28, Table 3-30, midpoint of mean (1.4 L/day) and 90th percentile (2.4 L/day) rounded to one significant place.
A17: Adult Female | B17: Water | C17: Amount | D17: lower range | E17: 1.4 | F17: L/day | G17: U.S. EPA/ORD 1996 | H17: p. 3-28, Table 3-30, mean
A18: Adult Female | B18: Water | C18: Amount | D18: upper range | E18: 2.4 | F18: L/day | G18: U.S. EPA/ORD 1996 | H18: p. 3-28, Table 3-30, 90th percentile
A19: Adult Male | B19: Fish | C19: Amount | D19: central estimate | E19: 0.01 | F19: kg/day | G19: U.S. EPA/ORD 1996 | H19: p. 10-51, average of means from four studies rounded to one significant place.
A20: Adult Male | B20: Fish | C20: Amount | D20: upper range | E20: 0.158 | F20: kg/day | G20: Ruffle et al. 1994 | H20: N/A
A21: Adult Male | B21: Fruit | C21: Proportion of body weight | D21: central estimate | E21: 0.00168 | F21: unitless | G21: U.S. EPA/ORD 1996 | H21: Table 9-3, p. 9-11, mean value.
A22: Adult Male | B22: Fruit | C22: Proportion of body weight | D22: lower range | E22: 0.00168 | F22: unitless | G22: U.S. EPA/ORD 1996 | H22: Table 9-3, p. 9-11. The 5th percentile is given as zero. For these worksheets, the central estimate is used for the lower bound.
A23: Adult Male | B23: Fruit | C23: Proportion of body weight | D23: upper range | E23: 0.01244 | F23: unitless | G23: U.S. EPA/ORD 1996 | H23: Table 9-3, p. 9-11, 95th percentile value.
A24: Adult Male | B24: Vegetation, home grown | C24: Proportion of body weight | D24: central estimate | E24: 0.00076 | F24: unitless | G24: U.S. EPA/ORD 1996 | H24: Table 12-15, p. 9-14, mean for individuals between 20 and 39 years old.
A25: Adult Male | B25: Vegetation, home grown | C25: Proportion of body weight | D25: lower range | E25: 8e-05 | F25: unitless | G25: U.S. EPA/ORD 1996 | H25: Table 12-15, p. 9-14, 5th percentile for individuals between 20 and 39 years old.
A26: Adult Male | B26: Vegetation, home grown | C26: Proportion of body weight | D26: upper range | E26: 0.00492 | F26: unitless | G26: U.S. EPA/ORD 1996 | H26: Table 12-15, p. 9-14, 95th percentile for individuals between 20 and 39 years old.
A27: Adult Male | B27: Vegetation | C27: Amount | D27: Extreme | E27: 0.454 | F27: kg/day | G27: U.S. EPA/ORD 1996 | H27: 1 lb. The approximate mid range of the above typical and upper limits based on the 64 kg body weight.
A28: Adult Male | B28: Vegetation | C28: Proportion of body weight | D28: central estimate | E28: 0.0036 | F28: unitless | G28: U.S. EPA/ORD 1996 | H28: Table 9-12, p. 9-12, mean.
A29: Adult Male | B29: Vegetation | C29: Proportion of body weight | D29: lower range | E29: 0.00075 | F29: unitless | G29: U.S. EPA/ORD 1996 | H29: Table 9-12, p. 9-12, 5th percentile.
A30: Adult Male | B30: Vegetation | C30: Proportion of body weight | D30: upper range | E30: 0.01 | F30: unitless | G30: U.S. EPA/ORD 1996 | H30: Table 9-12, p. 9-12, 95th percentile.
A31: Adult Male | B31: Water | C31: Amount | D31: central estimate | E31: 2 | F31: L/day | G31: U.S. EPA/ORD 1996 | H31: p. 3-28, Table 3-30, midpoint of mean (1.4 L/day) and 90th percentile (2.4 L/day) rounded to one significant place.
A32: Adult Male | B32: Water | C32: Amount | D32: lower range | E32: 1.4 | F32: L/day | G32: U.S. EPA/ORD 1996 | H32: p. 3-28, Table 3-30, mean
A33: Adult Male | B33: Water | C33: Amount | D33: upper range | E33: 2.4 | F33: L/day | G33: U.S. EPA/ORD 1996 | H33: p. 3-28, Table 3-30, 90th percentile
A34: Subsistence Populations | B34: Fish | C34: Amount | D34: central estimate | E34: 0.081 | F34: kg/day | G34: U.S. EPA/ORD 1996 | H34: p. 10-51, median value of 94 individuals
A35: Subsistence Populations | B35: Fish | C35: Amount | D35: upper range | E35: 0.77 | F35: kg/day | G35: U.S. EPA/ORD 1996 | H35: p. 10-51, highest value of 94 individuals
A36: Child | B36: Water | C36: Amount | D36: central estimate | E36: 1 | F36: L/day | G36: U.S. EPA/ORD 1996 | H36: p. 3-28, Table 3-30, midpoint of mean (0.61L/day) and 90th percentile (1.5 L/day) rounded to one significant place.
A37: Child | B37: Water | C37: Amount | D37: lower range | E37: 0.61 | F37: L/day | G37: U.S. EPA/ORD 1996 | H37: p. 3-28, Table 3-30, mean
A38: Child | B38: Water | C38: Amount | D38: upper range | E38: 1.5 | F38: L/day | G38: U.S. EPA/ORD 1996 | H38: p. 3-28, Table 3-30, 90th percentile
A39: Herbivorous Insect | B39: Broadleaf/Small Insects | C39: Proportion of body weight | D39: central estimate | E39: 1.3 | F39: kg food/kg bw/day | G39: Waldbauer 1968 | H39: N/A
A40: Herbivorous Insect | B40: Broadleaf/Small Insects | C40: Proportion of body weight | D40: lower range | E40: 0.6 | F40: kg food/kg bw/day | G40: Reichle et al. 1973 | H40: N/A
A41: Herbivorous Insect | B41: Broadleaf/Small Insects | C41: Proportion of body weight | D41: upper range | E41: 2.2 | F41: kg food/kg bw/day | G41: Waldbauer 1968 | H41: N/A
A42: Herbivorous Insect | B42: Fruit | C42: Proportion of body weight | D42: central estimate | E42: 1.3 | F42: kg food/kg bw/day | G42: Waldbauer 1968 | H42: N/A
A43: Herbivorous Insect | B43: Fruit | C43: Proportion of body weight | D43: lower range | E43: 0.6 | F43: kg food/kg bw/day | G43: Reichle et al. 1973 | H43: N/A
A44: Herbivorous Insect | B44: Fruit | C44: Proportion of body weight | D44: upper range | E44: 2.2 | F44: kg food/kg bw/day | G44: Waldbauer 1968 | H44: N/A
A45: Herbivorous Insect | B45: Short grass | C45: Proportion of body weight | D45: central estimate | E45: 1.3 | F45: kg food/kg bw/day | G45: Waldbauer 1968 | H45: N/A
A46: Herbivorous Insect | B46: Short grass | C46: Proportion of body weight | D46: lower range | E46: 0.6 | F46: kg food/kg bw/day | G46: Reichle et al. 1973 | H46: N/A
A47: Herbivorous Insect | B47: Short grass | C47: Proportion of body weight | D47: upper range | E47: 2.2 | F47: kg food/kg bw/day | G47: Waldbauer 1968 | H47: N/A
A48: Herbivorous Insect | B48: Tall Grass | C48: Proportion of body weight | D48: central estimate | E48: 1.3 | F48: kg food/kg bw/day | G48: Waldbauer 1968 | H48: N/A
A49: Herbivorous Insect | B49: Tall Grass | C49: Proportion of body weight | D49: lower range | E49: 0.6 | F49: kg food/kg bw/day | G49: Reichle et al. 1973 | H49: N/A
A50: Herbivorous Insect | B50: Tall Grass | C50: Proportion of body weight | D50: upper range | E50: 2.2 | F50: kg food/kg bw/day | G50: Waldbauer 1968 | H50: N/A

Sheet B01
A1: Chemical and Physical Properties for Trifluralin
A3: Property | B3: Receptor | C3: Value | D3: Units | E3: Document Reference
A4: Bioconcentration Factor (BCF), edible, acute | B4: N/A | C4: 2041 | D4: L/kg fish | E4: Section 3.2.3.5
A5: Bioconcentration Factor (BCF), edible, chronic | B5: N/A | C5: 2041 | D5: L/kg fish | E5: Section 3.2.3.5
A6: Bioconcentration Factor (BCF), whole fish, acute | B6: N/A | C6: 15000 | D6: L/kg fish | E6: Section 3.2.3.5
A7: Bioconcentration Factor (BCF), whole fish, chronic | B7: N/A | C7: 15000 | D7: L/kg fish | E7: Section 3.2.3.5
A8: Kow (Octanol-water partition coefficient) | B8: N/A | C8: 186000 | D8: unitless | E8: U.S. EPA/OPP 2009a
A9: Molecular weight | B9: N/A | C9: 335.28 | D9: grams/mole | E9: Table 1
A10: Water Solubility | B10: N/A | C10: 0.3 | D10: mg/L | E10: Table 1
A11: First order dermal absorption rate (ka), central estimate | B11: N/A | C11: 0.0015 | D11: per hour | E11: Section 3.1.3.2.1
A12: First order dermal absorption rate (ka), lower range | B12: N/A | C12: 0.0013 | D12: per hour | E12: Section 3.1.3.2.1
A13: First order dermal absorption rate (ka), upper range | B13: N/A | C13: 0.0017 | D13: per hour | E13: Section 3.1.3.2.1
A14: Dermal permeability (Kp), central estimate | B14: N/A | C14: 0.001 | D14: cm/hour | E14: Section 3.1.3.2.2
A15: Dermal permeability (Kp), lower range | B15: N/A | C15: 0.001 | D15: cm/hour | E15: Section 3.1.3.2.2
A16: Dermal permeability (Kp), upper range | B16: N/A | C16: 0.001 | D16: cm/hour | E16: Section 3.1.3.2.2
A17: Halftime, central estimate | B17: Fruit | C17: 3 | D17: days | E17: Knisel and Davis 2000
A18: Halftime, lower range | B18: Fruit | C18: 3 | D18: days | E18: Knisel and Davis 2000
A19: Halftime, upper range | B19: Fruit | C19: 3 | D19: days | E19: Knisel and Davis 2000
A20: Halftime, central estimate | B20: Soil | C20: 169 | D20: days | E20: Table 7
A21: Halftime, lower range | B21: Soil | C21: 91 | D21: days | E21: Table 7
A22: Halftime, upper range | B22: Soil | C22: 246 | D22: days | E22: Table 7
A23: Halftime, central estimate | B23: Vegetation | C23: 3 | D23: days | E23: Knisel and Davis 2000
A24: Halftime, lower range | B24: Vegetation | C24: 3 | D24: days | E24: Knisel and Davis 2000
A25: Halftime, upper range | B25: Vegetation | C25: 3 | D25: days | E25: Knisel and Davis 2000

Sheet B02
A1: Toxicity values for Trifluralin
A3: Receptor | B3: Receptor | C3: Qualifier | D3: Endpoint | E3: Value | F3: Units | G3: Document Reference
A4: Human | B4: acute | C4: N/A | D4: Reference Dose (RfD) | E4: 1 | F4: mg/kg bw | G4: Table 15
A5: Human | B5: chronic | C5: N/A | D5: Reference Dose (RfD) | E5: 0.024 | F5: mg/kg bw/day | G5: Table 15
A6: Mammal, Nos | B6: acute | C6: N/A | D6: NOAEL | E6: 100 | F6: mg/kg bw | G6: Table 24
A7: Mammal, Nos | B7: chronic | C7: N/A | D7: NOAEL | E7: 2.4 | F7: mg/kg bw/day | G7: Table 24
A8: Bird, NOS | B8: acute | C8: N/A | D8: NOAEL | E8: 750 | F8: mg/kg bw | G8: Table 24
A9: Bird, NOS | B9: chronic | C9: N/A | D9: NOAEL | E9: 32 | F9: mg/kg bw/day | G9: Table 24
A10: Terrestrial plant | B10: Vegetative vigor | C10: sensitive species | D10: NOAEL | E10: 0.125 | F10: lb/acre | G10: Table 24
A11: Terrestrial plant | B11: Vegetative vigor | C11: tolerant species | D11: NOAEL | E11: 0.5 | F11: lb/acre | G11: Table 24
A12: Terrestrial plant | B12: Seedling Emergence | C12: sensitive species | D12: NOAEL | E12: 0.06 | F12: lb/acre | G12: Table 24
A13: Terrestrial plant | B13: Seedling Emergence | C13: tolerant species | D13: NOAEL | E13: 2 | F13: lb/acre | G13: Table 24
A14: Aquatic invertebrate | B14: acute | C14: sensitive species | D14: NOAEC* | E14: 0.013 | F14: mg/L | G14: Table 24
A15: Aquatic invertebrate | B15: acute | C15: tolerant species | D15: NOAEC* | E15: 1.3 | F15: mg/L | G15: Table 24
A16: Aquatic invertebrate | B16: chronic | C16: sensitive species | D16: NOAEC | E16: 0.0024 | F16: mg/L | G16: Table 24
A17: Aquatic invertebrate | B17: chronic | C17: tolerant species | D17: NOAEC | E17: 0.05 | F17: mg/L | G17: Table 24
A18: Fish | B18: acute | C18: sensitive species | D18: NOAEC | E18: 0.0013 | F18: mg/L | G18: Table 24
A19: Fish | B19: acute | C19: tolerant species | D19: NOAEC* | E19: 0.11 | F19: mg/L | G19: Table 24
A20: Fish | B20: chronic | C20: sensitive species | D20: NOAEC | E20: 0.0013 | F20: mg/L | G20: Table 24
A21: Fish | B21: chronic | C21: tolerant species | D21: NOAEC | E21: 0.0027 | F21: mg/L | G21: Table 24
A22: Algae | B22: N/A | C22: sensitive species | D22: NOAEC | E22: 0.0046 | F22: mg/L | G22: Table 24
A23: Algae | B23: N/A | C23: tolerant species | D23: NOAEC* | E23: 0.089 | F23: mg/L | G23: Table 24
A24: Macrophyte, aquatic | B24: N/A | C24: sensitive species | D24: NOAEC* | E24: 0.0025 | F24: mg/L | G24: Table 24
A25: Macrophyte, aquatic | B25: N/A | C25: tolerant species | D25: NOAEC | E25: 0.075 | F25: mg/L | G25: Table 24
A26: Human | B26: chronic | C26: N/A | D26: Dose associated with cancer risk of 1 in 1 million | E26: 0.00017 | F26: mg/kg bw/day | G26: Table 15
A27: Herbivorous Insect | B27: acute | C27: N/A | D27: >LD50 | E27: 430 | F27: mg/kg bw | G27: Table 24
A28: Amphibians | B28: acute | C28: tolerant species | D28: NOAEC* | E28: 0.005 | F28: mg/L | G28: Table 24

Sheet B03a
A1: Calculation of Zero-Order Dermal Permeability Rate (Kp) in cm/hour
A2: Short Title | B2: Calculation of Kp | E2: ChemDrmKp
A3: Parameter/Assumption | B3: Code / Range | C3: Equation/ Value | D3: Units | E3: Reference/Designation
A4: Molecular weight | B4: MW | C4: ='B01'!$C$9 -> 335.28 | D4: g/mole | E4: Table 1
A5: Ko/w | B5: Kow | C5: ='B01'!$C$8 -> 186000 | D5: unitless | E5: U.S. EPA/OPP 2009a
A6: Vector a[] | B6: a[1] | C6: 1
B7: a[2] | C7: =C4 -> 335.28
B8: a[3] | C8: =LOG10(C5) -> 5.269512944
A9: Transpose of a[] (a') | B9: =$C$6 -> 1 | C9: =$C$7 -> 335.28 | D9: =$C$8 -> 5.269512944
A10: X'X Cross Product Matrix | B10: X'X
B11: 0.055931 | C11: -9.41546e-05 | D11: -0.0103443
B12: -9.41546e-05 | C12: 5.978e-07 | D12: -2.22508e-05
B13: -0.0103443 | C13: -2.22508e-05 | D13: 0.00740677
A14: a'X'X a | B14: a'X'X a | C14: =MMULT(B9:D9,MMULT(B11:D13, C6:C8)) -> 0.07802185704
A15: Coefficients for model
A16: Intercept | B16: K0 | C16: -2.72576
A17: Coeff for Log10(Kow) | B17: K1 | C17: 0.706648
A18: Coeff for MW | B18: K2 | C18: -0.006151
A19: Standard deviation of model | B19: s | C19: 0.727129
A20: Critical value at 0.025 with 87 d.f. | B20: t0.025 | C20: 1.96
A21: Log10 of Estimated dermal permeability rate (Kp) | B21: Log(Kp) = | C21: K1 MW × K2 Log10(Kow) + K0
B22: Central | C22: =($C$18*$C$4) + ($C$17*LOG10($C$5)) + $C$16 -> -1.064376497 | E22: Eq
B23: Lower 95% CI | C23: =$C$22 - ($C$20 * $C$19 * ($C$14^0.5)) -> -1.462461373 | E23: Eq
B24: Upper 95% CI | C24: =$C$22 + ($C$20 * $C$19 * ($C$14^0.5)) -> -0.6662916205 | E24: Eq
A25: Estimated dermal permeability rate (Kp) | B25: Kp = | C25: 10Log(Kp)
B26: Central | C26: =10^C22 -> 0.08622307417 | D26: cm/hour | E26: Eq
B27: Lower 95% CI | C27: =10^C23 -> 0.034477727 | E27: Eq
B28: Upper 95% CI | C28: =10^C24 -> 0.2156296011 | E28: Eq

Sheet B03b
A1: Calculation of First-Order Dermal Absorption Rate
A2: Short Title | B2: Calculation of ka | E2: ChemDrmKa
A3: Parameter/Assumption | B3: Code / Range | C3: Equation/ Value | D3: Units | E3: Reference/Designation
A4: Molecular weight | B4: MW | C4: ='B01'!$C$9 -> 335.28 | D4: g/mole | E4: Table 1
A5: Ko/w | B5: Kow | C5: ='B01'!$C$8 -> 186000 | D5: unitless | E5: U.S. EPA/OPP 2009a
A6: Vector a[] | B6: a[1] | C6: 1
B7: a[2] | C7: =C4 -> 335.28
B8: a[3] | C8: =LOG10(C5) -> 5.269512944
A9: Transpose of a[] (a') | B9: =$C$6 -> 1 | C9: =$C$7 -> 335.28 | D9: =$C$8 -> 5.269512944
A10: X'X Cross Product Matrix | B10: X'X
B11: 0.307537 | C11: -0.00103089 | D11: 0.00822769
B12: -0.00103089 | C12: 4.377e-06 | D12: -9.44359e-05
B13: 0.00822769 | C13: -9.44359e-05 | D13: 0.0085286
A14: a'X'X a | B14: a'X'X a | C14: =MMULT(B9:D9,MMULT(B11:D13, C6:C8)) -> 0.09813413192
A15: Coefficients for model
A16: Intercept | B16: K0 | C16: -1.49615
A17: Coeff for Log10(Kow) | B17: K1 | C17: 0.233255
A18: Coeff for MW | B18: K2 | C18: -0.005657
A19: Standard deviation of model | B19: s | C19: 0.787218
A20: Critical value at 0.025 with 26 d.f. | B20: t0.025 | C20: 2.056
A21: Log10 of Estimated first-order absorption rate | B21: Log(ka) = | C21: K1 MW × K2 Log10(Kow) + K0
B22: Central | C22: =($C$18*$C$4) + ($C$17*LOG10($C$5)) + $C$16 -> -2.163688718 | E22: Eq
B23: Lower 95% CI | C23: =$C$22 - ($C$20 * $C$19 * ($C$14^0.5)) -> -2.670712311 | E23: Eq
B24: Upper 95% CI | C24: =$C$22 + ($C$20 * $C$19 * ($C$14^0.5)) -> -1.656665125 | E24: Eq
A25: Estimated first-order absorption rate | B25: ka = | C25: 10Log(ka)
B26: Central | C26: =10^C22 -> 0.006859797282 | D26: hour-1 | E26: Eq
B27: Lower 95% CI | C27: =10^C23 -> 0.002134458369 | E27: Eq
B28: Upper 95% CI | C28: =10^C24 -> 0.02204625747 | E28: Eq

Sheet B04Rt
A1: Estimates of Water Contamination Rates -- i.e., the concentration in ambient water per pound applied per acre
A2: Parameter/Assumption | B2: Code / Range | C2: Equation/ Value | D2: Units | E2: WCRV6
A3: Short-term peak concentrations | B3: Peak | E3: WCRV6
B4: Central | C4: 0.0006 | D4: mg/L
B5: Lower | C5: 2e-05
B6: Upper | C6: 0.0022
A7: Longer-term average concentrations | B7: Average
B8: Central | C8: 7.5e-05 | D8: mg/L
B9: Lower | C9: 2e-07
B10: Upper | C10: 0.0004
A11: User Specified Gleams-Driver File: | B11: None

Sheet B04a
A1: Expected Concentrations in Surface Water | E1: EECRtV6
A2: Parameter/Assumption | B2: Code / Range | C2: Equation/ Value | D2: Units | E2: EECRtV6
A3: Application Rate | B3: ApRt | C3: ='A01'!ApRt_C -> 1 | D3: lb/acre | E3: Worksheet A01
A4: Water Contamination Rates
A5: Short-term peak water contamination rates (WCR) | B5: Peak
B6: Central | C6: =B04Rt!$C$4 -> 0.0006 | D6: mg/L
B7: Lower | C7: =B04Rt!$C$5 -> 2e-05
B8: Upper | C8: =B04Rt!$C$6 -> 0.0022
A9: Longer-term average water contamination rates (WCR) | B9: Average
B10: Central | C10: =B04Rt!$C$8 -> 7.5e-05 | D10: mg/L
B11: Lower | C11: =B04Rt!$C$9 -> 2e-07
B12: Upper | C12: =B04Rt!$C$10 -> 0.0004
A13: EECs in Surface Water
A14: Short-term peak concentrations | B14: Peak
B15: Central | C15: =$C$3*C6 -> 0.0006 | D15: mg/L | E15: Eq
B16: Lower | C16: =$C$3*C7 -> 2e-05 | E16: Eq
B17: Upper | C17: 0.0022 | E17: Eq
A18: Longer-term average concentrations | B18: Average
B19: Central | C19: =$C$3*C10 -> 7.5e-05 | D19: mg/L | E19: Eq
B20: Lower | C20: =$C$3*C11 -> 2e-07 | E20: Eq
B21: Upper | C21: 0.0004 | E21: Eq

Sheet B04b
A1: Pond: Concentration of pesticide (liquid formulation) in pond water after an accidental spill
A2: Short Title | B2: Pond Spill | E2: PondSpillLiqV6
A3: Receptor | B3: Pond
A4: Duration | B4: Acute
A5: Parameter/Assumption | B5: Code / Range | C5: Equation/ Value | D5: Units | E5: Reference/Designation
A6: Surface Area of Pond | B6: SA | C6: ='A01'!C$23 -> 1000 | D6: m2 | E6: Worksheet A01
A7: Depth of Pond | B7: Depth | C7: ='A01'!C$24 -> 1 | D7: meter | E7: Worksheet A01
A8: Volume of Pond | B8: VPM | C8: =C6*C7 -> 1000 | D8: m3 | E8: Eq
B9: VPL | C9: =1000*C8 -> 1000000 | D9: liters | E9: Eq
A10: Concentration in solution | B10: Conc
B11: Central | C11: ='A01'!FldConc_C -> 12 | D11: mg/mL | E11: Worksheet A01
B12: Lower | C12: ='A01'!FldConc_L -> 3 | E12: Worksheet A01
B13: Upper | C13: ='A01'!FldConc_U -> 24 | E13: Worksheet A01
A14: Volume of Spill (gallons) | B14: VSGal
B15: Central | C15: ='A01'!C$39 -> 100 | D15: gallons | E15: Worksheet A01
B16: Lower | C16: ='A01'!C$40 -> 20 | E16: Worksheet A01
B17: Upper | C17: ='A01'!C$41 -> 200 | E17: Worksheet A01
A18: Conversion factor for gallons to liters | B18: Conv | C18: 3.785 | D18: liters/gal
A19: Volume of Spill (liters) | B19: VSLit | C19: VSGal x Conv
B20: Central | C20: =C15*C$18 -> 378.5 | D20: liters | E20: Eq
B21: Lower | C21: =C16*C$18 -> 75.7 | D21: liters | E21: Eq
B22: Upper | C22: =C17*C$18 -> 757 | D22: liters | E22: Eq
A23: Concentration in pond water at various times after as spill | B23: ConcWat | C23: Conc × 1000 mL/L × VSL ÷ VPL
A24: Time | B24: Central | C24: Lower | D24: Upper
A25: 0 | B25: =C11*1000*C20/C$9 -> 4.542 | C25: =C12*1000*C21/C$9 -> 0.2271 | D25: =C13*1000*C22/C$9 -> 18.168 | E25: mg/L

Sheet B05a
A1: Concentration of Pesticide in Contaminated Seeds
A2: Short Title | B2: Concentration in food item | E2: FoodConcSoilV6
A3: Material consumed | C3: Seeds | E3: Scenario parameter
A4: Parameter/Assumption | B4: Code / Range | C4: Equation/ Value | D4: Units | E4: Reference/Designation
A5: Application Information
A6: Application Rate (lbs/acre) | B6: ApRt | C6: ='A01'!ApRt_C -> 1 | D6: lb/acre | E6: Worksheet A01
A7: Number of applications | B7: n | C7: ='A01'!C$20 -> 1 | D7: unitless | E7: Worksheet A01
A8: Interval between applications | B8: intv | C8: ='A01'!C$21 -> 1 | D8: days | E8: Worksheet A01
A9: Acute Concentrations
A10: Soil to Vegetation Concentration Factors | B10: SoilBCF
B11: Central | C11: ='A01'!C$55 -> 0.009 | D11: mg/kg veg per mg/kg soil | E11: Worksheet A01
B12: Lower | C12: ='A01'!C$56 -> 0.0026 | E12: Worksheet A01
B13: Upper | C13: ='A01'!C$57 -> 0.021 | E13: Worksheet A01
A14: Concentration in Soil | B14: Soil
B15: Central | C15: 0.31 | D15: mg/kg soil | E15: Section 3.2.3.6.
B16: Lower | C16: 0.26 | E16: Section 3.2.3.6.
B17: Upper | C17: 0.38 | E17: Section 3.2.3.6.
A18: Concentration on commodity immediately after first application. | B18: C0 | C18: ApR × SoilBCF × Soil
B19: Central | C19: =C$6*C11*$C$15 -> 0.00279 | D19: mg/kg comodity | E19: Eq
B20: Lower | C20: =C$6*C12*$C$15 -> 0.000806 | E20: Eq
B21: Upper | C21: =C$6*C13*$C$15 -> 0.00651 | E21: Eq
A22: Half-life in soil | B22: Halflife
B23: Central | C23: ='B01'!$C$20 -> 169 | D23: Days | E23: Table 7
B24: Lower | C24: ='B01'!$C$21 -> 91 | E24: Table 7
B25: Upper | C25: ='B01'!$C$22 -> 246 | E25: Table 7
A26: Decay Coefficient | B26: k | C26: Ln(2)/Halflife
B27: Central | C27: =LN(2)/C23 -> 0.004101462607 | D27: Days-1 | E27: Eq
B28: Upper | C28: =LN(2)/C24 -> 0.007617001984 | D28: Note 1 | E28: Eq
B29: Lower | C29: =LN(2)/C25 -> 0.002817671466 | D29: Note 1 | E29: Eq
A30: Proportion remaining at end of each application interval | B30: p | C30: exp( -k × intv)
B31: Central | C31: =EXP(-C27*C$8) -> 0.9959069369 | D31: proportion | E31: Eq
B32: Lower | C32: =EXP(-C28*C$8) -> 0.9924119339 | E32: Eq
B33: Upper | C33: =EXP(-C29*C$8) -> 0.9971862944 | E33: Eq
A34: Concentration on commodity immediately after last application. | B34: Cn | C34: Cn = C0 × (1- pn) ÷ (1- p)
B35: Central | C35: =C19 * (1-C31^C$7)/(1-C31) -> 0.00279 | D35: mg/kg food item | E35: Eq
B36: Lower | C36: =C20 * (1-C32^C$7)/(1-C32) -> 0.000806 | E36: Eq
B37: Upper | C37: =C21 * (1-C33^C$7)/(1-C33) -> 0.00651 | E37: Eq
A38: Longer-term Concentrations
A39: Duration for time-weighted average exposure | B39: T | C39: ='A01'!C$28 -> 90 | D39: Days | E39: Worksheet A01
A40: Time-weighted average concentration on commodity over time, T, after the last application. | B40: ConcTWA | C40: Cn × (1-e-kT) ÷ (k T)
B41: Central | C41: =C35*(1-EXP(-C27*$C$39))/(C27*$C$39) -> 0.002332980814 | D41: mg/kg food item | E41: Eq
B42: Lower | C42: =C36*(1-EXP(-C28*$C$39))/(C28*$C$39) -> 0.0005833712945 | E42: Eq
B43: Upper | C43: 0.00575012912 | E43: Eq
A44: Maximum Time-weighted average concentration on commodity over time, T. | B44: ConcTWA | C44: See Documentation
B45: Central | C45: =IF($C$7=1, C41, MaxTWAWsFn(C19, $C$7, $C$8, $C$39, C27)) -> 0.002332980814 | D45: mg/kg food item | E45: Eq
B46: Lower | C46: =IF($C$7=1, C42, MaxTWAWsFn(C20, $C$7, $C$8, $C$39, C28)) -> 0.0005833712945 | E46: Eq
B47: Upper | C47: =IF($C$7=1, C43, MaxTWAWsFn(C21, $C$7, $C$8, $C$39, C29)) -> 0.00575012912 | E47: Eq

Sheet B05b
A1: Concentration of Pesticide in Contaminated Broadleaf Vegetation
A2: Short Title | B2: Concentration in food item | E2: FoodConcSoilV6
A3: Material consumed | C3: Broadleaf Vegetation | E3: Scenario parameter
A4: Parameter/Assumption | B4: Code / Range | C4: Equation/ Value | D4: Units | E4: Reference/Designation
A5: Application Information
A6: Application Rate (lbs/acre) | B6: ApRt | C6: ='A01'!ApRt_C -> 1 | D6: lb/acre | E6: Worksheet A01
A7: Number of applications | B7: n | C7: ='A01'!C$20 -> 1 | D7: unitless | E7: Worksheet A01
A8: Interval between applications | B8: intv | C8: ='A01'!C$21 -> 1 | D8: days | E8: Worksheet A01
A9: Acute Concentrations
A10: Soil to Vegetation Concentration Factors | B10: SoilBCF
B11: Central | C11: ='A01'!C$43 -> 0.081 | D11: mg/kg veg per mg/kg soil | E11: Worksheet A01
B12: Lower | C12: ='A01'!C$44 -> 0.062 | E12: Worksheet A01
B13: Upper | C13: ='A01'!C$45 -> 0.18 | E13: Worksheet A01
A14: Concentration in Soil | B14: Soil
B15: Central | C15: =B05a!$C$15 -> 0.31 | D15: mg/kg soil | E15: Section 3.2.3.6.
B16: Lower | C16: =B05a!$C$16 -> 0.26 | E16: Section 3.2.3.6.
B17: Upper | C17: =B05a!$C$17 -> 0.38 | E17: Section 3.2.3.6.
A18: Concentration on commodity immediately after first application. | B18: C0 | C18: ApR × SoilBCF × Soil
B19: Central | C19: =C$6*C11*$C$15 -> 0.02511 | D19: mg/kg comodity | E19: Eq
B20: Lower | C20: =C$6*C12*$C$15 -> 0.01922 | E20: Eq
B21: Upper | C21: =C$6*C13*$C$15 -> 0.0558 | E21: Eq
A22: Half-life in soil | B22: Halflife
B23: Central | C23: ='B01'!$C$20 -> 169 | D23: Days | E23: Table 7
B24: Lower | C24: ='B01'!$C$21 -> 91 | E24: Table 7
B25: Upper | C25: ='B01'!$C$22 -> 246 | E25: Table 7
A26: Decay Coefficient | B26: k | C26: Ln(2)/Halflife
B27: Central | C27: =LN(2)/C23 -> 0.004101462607 | D27: Days-1 | E27: Eq
B28: Upper | C28: =LN(2)/C24 -> 0.007617001984 | D28: Note 1 | E28: Eq
B29: Lower | C29: =LN(2)/C25 -> 0.002817671466 | D29: Note 1 | E29: Eq
A30: Proportion remaining at end of each application interval | B30: p | C30: exp( -k × intv)
B31: Central | C31: =EXP(-C27*C$8) -> 0.9959069369 | D31: proportion | E31: Eq
B32: Lower | C32: =EXP(-C28*C$8) -> 0.9924119339 | E32: Eq
B33: Upper | C33: =EXP(-C29*C$8) -> 0.9971862944 | E33: Eq
A34: Concentration on commodity immediately after last application. | B34: Cn | C34: Cn = C0 × (1- pn) ÷ (1- p)
B35: Central | C35: =C19 * (1-C31^C$7)/(1-C31) -> 0.02511 | D35: mg/kg food item | E35: Eq
B36: Lower | C36: =C20 * (1-C32^C$7)/(1-C32) -> 0.01922 | E36: Eq
B37: Upper | C37: =C21 * (1-C33^C$7)/(1-C33) -> 0.0558 | E37: Eq
A38: Longer-term Concentrations
A39: Duration for time-weighted average exposure | B39: T | C39: ='A01'!C$28 -> 90 | D39: Days | E39: Worksheet A01
A40: Time-weighted average concentration on commodity over time, T, after the last application. | B40: ConcTWA | C40: Cn × (1-e-kT) ÷ (k T)
B41: Central | C41: =C35*(1-EXP(-C27*$C$39))/(C27*$C$39) -> 0.02099682733 | D41: mg/kg food item | E41: Eq
B42: Lower | C42: =C36*(1-EXP(-C28*$C$39))/(C28*$C$39) -> 0.01391116164 | E42: Eq
B43: Upper | C43: 0.04928682103 | E43: Eq
A44: Maximum Time-weighted average concentration on commodity over time, T. | B44: ConcTWA | C44: See Documentation
B45: Central | C45: =IF($C$7=1, C41, MaxTWAWsFn(C19, $C$7, $C$8, $C$39, C27)) -> 0.02099682733 | D45: mg/kg food item | E45: Eq
B46: Lower | C46: =IF($C$7=1, C42, MaxTWAWsFn(C20, $C$7, $C$8, $C$39, C28)) -> 0.01391116164 | E46: Eq
B47: Upper | C47: =IF($C$7=1, C43, MaxTWAWsFn(C21, $C$7, $C$8, $C$39, C29)) -> 0.04928682103 | E47: Eq

Sheet B05c
A1: Concentration of Pesticide in Contaminated Short Grass
A2: Short Title | B2: Concentration in food item | E2: FoodConcSoilV6
A3: Material consumed | C3: Short Grass | E3: Scenario parameter
A4: Parameter/Assumption | B4: Code / Range | C4: Equation/ Value | D4: Units | E4: Reference/Designation
A5: Application Information
A6: Application Rate (lbs/acre) | B6: ApRt | C6: ='A01'!ApRt_C -> 1 | D6: lb/acre | E6: Worksheet A01
A7: Number of applications | B7: n | C7: ='A01'!C$20 -> 1 | D7: unitless | E7: Worksheet A01
A8: Interval between applications | B8: intv | C8: ='A01'!C$21 -> 1 | D8: days | E8: Worksheet A01
A9: Acute Concentrations
A10: Soil to Vegetation Concentration Factors | B10: SoilBCF
B11: Central | C11: ='A01'!C$47 -> 0.0017 | D11: mg/kg veg per mg/kg soil | E11: Worksheet A01
B12: Lower | C12: ='A01'!C$48 -> 0.0011 | E12: Worksheet A01
B13: Upper | C13: ='A01'!C$49 -> 0.0023 | E13: Worksheet A01
A14: Concentration in Soil | B14: Soil
B15: Central | C15: =B05a!$C$15 -> 0.31 | D15: mg/kg soil | E15: Section 3.2.3.6.
B16: Lower | C16: =B05a!$C$16 -> 0.26 | E16: Section 3.2.3.6.
B17: Upper | C17: =B05a!$C$17 -> 0.38 | E17: Section 3.2.3.6.
A18: Concentration on commodity immediately after first application. | B18: C0 | C18: ApR × SoilBCF × Soil
B19: Central | C19: =C$6*C11*$C$15 -> 0.000527 | D19: mg/kg comodity | E19: Eq
B20: Lower | C20: =C$6*C12*$C$15 -> 0.000341 | E20: Eq
B21: Upper | C21: =C$6*C13*$C$15 -> 0.000713 | E21: Eq
A22: Half-life in soil | B22: Halflife
B23: Central | C23: ='B01'!$C$20 -> 169 | D23: Days | E23: Table 7
B24: Lower | C24: ='B01'!$C$21 -> 91 | E24: Table 7
B25: Upper | C25: ='B01'!$C$22 -> 246 | E25: Table 7
A26: Decay Coefficient | B26: k | C26: Ln(2)/Halflife
B27: Central | C27: =LN(2)/C23 -> 0.004101462607 | D27: Days-1 | E27: Eq
B28: Upper | C28: =LN(2)/C24 -> 0.007617001984 | D28: Note 1 | E28: Eq
B29: Lower | C29: =LN(2)/C25 -> 0.002817671466 | D29: Note 1 | E29: Eq
A30: Proportion remaining at end of each application interval | B30: p | C30: exp( -k × intv)
B31: Central | C31: =EXP(-C27*C$8) -> 0.9959069369 | D31: proportion | E31: Eq
B32: Lower | C32: =EXP(-C28*C$8) -> 0.9924119339 | E32: Eq
B33: Upper | C33: =EXP(-C29*C$8) -> 0.9971862944 | E33: Eq
A34: Concentration on commodity immediately after last application. | B34: Cn | C34: Cn = C0 × (1- pn) ÷ (1- p)
B35: Central | C35: =C19 * (1-C31^C$7)/(1-C31) -> 0.000527 | D35: mg/kg food item | E35: Eq
B36: Lower | C36: =C20 * (1-C32^C$7)/(1-C32) -> 0.000341 | E36: Eq
B37: Upper | C37: =C21 * (1-C33^C$7)/(1-C33) -> 0.000713 | E37: Eq
A38: Longer-term Concentrations
A39: Duration for time-weighted average exposure | B39: T | C39: ='A01'!C$28 -> 90 | D39: Days | E39: Worksheet A01
A40: Time-weighted average concentration on commodity over time, T, after the last application. | B40: ConcTWA | C40: Cn × (1-e-kT) ÷ (k T)
B41: Central | C41: =C35*(1-EXP(-C27*$C$39))/(C27*$C$39) -> 0.0004406741538 | D41: mg/kg food item | E41: Eq
B42: Lower | C42: =C36*(1-EXP(-C28*$C$39))/(C28*$C$39) -> 0.0002468109323 | E42: Eq
B43: Upper | C43: 0.0006297760465 | E43: Eq
A44: Maximum Time-weighted average concentration on commodity over time, T. | B44: ConcTWA | C44: See Documentation
B45: Central | C45: =IF($C$7=1, C41, MaxTWAWsFn(C19, $C$7, $C$8, $C$39, C27)) -> 0.0004406741538 | D45: mg/kg food item | E45: Eq
B46: Lower | C46: =IF($C$7=1, C42, MaxTWAWsFn(C20, $C$7, $C$8, $C$39, C28)) -> 0.0002468109323 | E46: Eq
B47: Upper | C47: =IF($C$7=1, C43, MaxTWAWsFn(C21, $C$7, $C$8, $C$39, C29)) -> 0.0006297760465 | E47: Eq

Sheet B05d
A1: Concentration of Pesticide in Contaminated Long Grass
A2: Short Title | B2: Concentration in food item | E2: FoodConcSoilV6
A3: Material consumed | C3: Long Grass | E3: Scenario parameter
A4: Parameter/Assumption | B4: Code / Range | C4: Equation/ Value | D4: Units | E4: Reference/Designation
A5: Application Information
A6: Application Rate (lbs/acre) | B6: ApRt | C6: ='A01'!ApRt_C -> 1 | D6: lb/acre | E6: Worksheet A01
A7: Number of applications | B7: n | C7: ='A01'!C$20 -> 1 | D7: unitless | E7: Worksheet A01
A8: Interval between applications | B8: intv | C8: ='A01'!C$21 -> 1 | D8: days | E8: Worksheet A01
A9: Acute Concentrations
A10: Soil to Vegetation Concentration Factors | B10: SoilBCF
B11: Central | C11: ='A01'!C$51 -> 0.0017 | D11: mg/kg veg per mg/kg soil | E11: Worksheet A01
B12: Lower | C12: ='A01'!C$52 -> 0.0011 | E12: Worksheet A01
B13: Upper | C13: ='A01'!C$53 -> 0.0023 | E13: Worksheet A01
A14: Concentration in Soil | B14: Soil
B15: Central | C15: =B05a!$C$15 -> 0.31 | D15: mg/kg soil | E15: Section 3.2.3.6.
B16: Lower | C16: =B05a!$C$16 -> 0.26 | E16: Section 3.2.3.6.
B17: Upper | C17: =B05a!$C$17 -> 0.38 | E17: Section 3.2.3.6.
A18: Concentration on commodity immediately after first application. | B18: C0 | C18: ApR × SoilBCF × Soil
B19: Central | C19: =C$6*C11*$C$15 -> 0.000527 | D19: mg/kg comodity | E19: Eq
B20: Lower | C20: =C$6*C12*$C$15 -> 0.000341 | E20: Eq
B21: Upper | C21: =C$6*C13*$C$15 -> 0.000713 | E21: Eq
A22: Half-life in soil | B22: Halflife
B23: Central | C23: ='B01'!$C$20 -> 169 | D23: Days | E23: Table 7
B24: Lower | C24: ='B01'!$C$21 -> 91 | E24: Table 7
B25: Upper | C25: ='B01'!$C$22 -> 246 | E25: Table 7
A26: Decay Coefficient | B26: k | C26: Ln(2)/Halflife
B27: Central | C27: =LN(2)/C23 -> 0.004101462607 | D27: Days-1 | E27: Eq
B28: Upper | C28: =LN(2)/C24 -> 0.007617001984 | D28: Note 1 | E28: Eq
B29: Lower | C29: =LN(2)/C25 -> 0.002817671466 | D29: Note 1 | E29: Eq
A30: Proportion remaining at end of each application interval | B30: p | C30: exp( -k × intv)
B31: Central | C31: =EXP(-C27*C$8) -> 0.9959069369 | D31: proportion | E31: Eq
B32: Lower | C32: =EXP(-C28*C$8) -> 0.9924119339 | E32: Eq
B33: Upper | C33: =EXP(-C29*C$8) -> 0.9971862944 | E33: Eq
A34: Concentration on commodity immediately after last application. | B34: Cn | C34: Cn = C0 × (1- pn) ÷ (1- p)
B35: Central | C35: =C19 * (1-C31^C$7)/(1-C31) -> 0.000527 | D35: mg/kg food item | E35: Eq
B36: Lower | C36: =C20 * (1-C32^C$7)/(1-C32) -> 0.000341 | E36: Eq
B37: Upper | C37: =C21 * (1-C33^C$7)/(1-C33) -> 0.000713 | E37: Eq
A38: Longer-term Concentrations
A39: Duration for time-weighted average exposure | B39: T | C39: ='A01'!C$28 -> 90 | D39: Days | E39: Worksheet A01
A40: Time-weighted average concentration on commodity over time, T, after the last application. | B40: ConcTWA | C40: Cn × (1-e-kT) ÷ (k T)
B41: Central | C41: =C35*(1-EXP(-C27*$C$39))/(C27*$C$39) -> 0.0004406741538 | D41: mg/kg food item | E41: Eq
B42: Lower | C42: =C36*(1-EXP(-C28*$C$39))/(C28*$C$39) -> 0.0002468109323 | E42: Eq
B43: Upper | C43: 0.0006297760465 | E43: Eq
A44: Maximum Time-weighted average concentration on commodity over time, T. | B44: ConcTWA | C44: See Documentation
B45: Central | C45: =IF($C$7=1, C41, MaxTWAWsFn(C19, $C$7, $C$8, $C$39, C27)) -> 0.0004406741538 | D45: mg/kg food item | E45: Eq
B46: Lower | C46: =IF($C$7=1, C42, MaxTWAWsFn(C20, $C$7, $C$8, $C$39, C28)) -> 0.0002468109323 | E46: Eq
B47: Upper | C47: =IF($C$7=1, C43, MaxTWAWsFn(C21, $C$7, $C$8, $C$39, C29)) -> 0.0006297760465 | E47: Eq

Sheet C01
A1: Exposure estimates for Ground Boom Worker based on the amount of material handled per day
A2: Short Title | B2: General exposure | E2: WkGenExp
A3: Receptor | B3: Ground Boom Worker | E3: Worksheet A01
A4: Duration | B4: Chronic
A5: Parameter/Assumption | B5: Code / Range | C5: Equation/ Value | D5: Units | E5: Reference/Equation
A6: Application rates | B6: ApRt | C6: ='A01'!ApRt_C -> 1 | D6: lb/acre | E6: Worksheet A01
A7: Hours of application per day | B7: Hrs
B8: Central | C8: ='A01'!C$67 -> 7 | D8: hours | E8: Worksheet A01
B9: Lower | C9: ='A01'!C$68 -> 6 | E9: Worksheet A01
B10: Upper | C10: ='A01'!C$69 -> 8 | E10: Worksheet A01
A11: Acres treated per hour | B11: APH
B12: Central | C12: ='A01'!C$63 -> 16 | D12: acres/hour | E12: Worksheet A01
B13: Lower | C13: ='A01'!C$64 -> 11 | E13: Worksheet A01
B14: Upper | C14: ='A01'!C$65 -> 21 | E14: Worksheet A01
A15: Acres treated per day: | B15: ATD | C15: Hrs × APH
B16: Central | C16: =C8*C12 -> 112 | D16: acres/day | E16: Eq
B17: Lower | C17: =C9*C13 -> 66 | E17: Eq
B18: Upper | C18: =C10*C14 -> 168 | E18: Eq
A19: Toxic Equivalency Factor for formulation: (See risk assessment if this has a value other than 1.) | B19: TEF
B20: Central | C20: ='A01'!C$35 -> 1 | D20: unitless | E20: Worksheet A01
B21: Lower | C21: ='A01'!C$36 -> 1 | E21: Worksheet A01
B22: Upper | C22: ='A01'!C$37 -> 1 | E22: Worksheet A01
A23: Amount handled per day: | B23: Amnt | C23: ApRt × ATD × TEF
B24: Central | C24: =C$6*C16 *C20 -> 112 | D24: lb/day | E24: Eq
B25: Lower | C25: =C$6*C17 *C21 -> 66 | E25: Eq
B26: Upper | C26: =C$6*C18 *C22 -> 168 | E26: Eq
A27: Absorbed dose rate: | B27: ADR
B28: Central | C28: ='A01'!C$59 -> 3.1e-07 | D28: (mg agent/kg bw) ÷ (lbs agent handled per day) | E28: Worksheet A01
B29: Lower | C29: ='A01'!C$60 -> 3.1e-07 | E29: Worksheet A01
B30: Upper | C30: ='A01'!C$61 -> 3.1e-07 | E30: Worksheet A01
A31: Clothing Protection Factor | B31: Prot
B32: Central | C32: ='A01'!C$31 -> 0 | D32: Unitless (value between 0 [no protection] and 1 [complete protection]) | E32: Worksheet A01
B33: Upper | C33: ='A01'!C$33 -> 0 | E33: Worksheet A01
B34: Lower | C34: ='A01'!C$32 -> 0 | E34: Worksheet A01
A35: Absorbed dose | B35: Dose | C35: Amnt × ADR × (1-Prot)
B36: Central | C36: =C24*C28*(1-C32) -> 3.472e-05 | D36: mg/kg bw/day | E36: Eq
B37: Lower | C37: =C25*C29*(1-C33) -> 2.046e-05 | E37: Eq
B38: Upper | C38: =C26*C30*(1-C34) -> 5.208e-05 | E38: Eq

Sheet C02a
A1: Accidental Dermal Exposure Assessment Using Zero-Order Absorption, Worker, Surface Area, Hands, for 1 minute(s)
A2: Short Title | B2: Contaminated Gloves, 1 minute | E2: DrmZr
A3: Receptor | B3: Worker
A4: Duration | B4: Acute
A5: Surface Contaminated | B5: Surface Area, Hands
A6: Parameter/Assumption | B6: Code / Range | C6: Equation/ Value | D6: Units | E6: Reference/Designation
A7: Surface Area | B7: SA | C7: =A02a!$C$40 -> 840 | D7: cm2 | E7: U.S. EPA/ORD 1992
A8: Duration of Exposure | B8: T_min | C8: 1 | D8: minutes | E8: Scenario parameter
B9: T_hr | C9: =C8/60 -> 0.01666666667 | D9: hours | E9: Eq
A10: Body weight | B10: BW | C10: =A02a!$C$39 -> 70 | D10: kg | E10: ICRP 1975
A11: Concentration in solution (mg/mL) | B11: Conc
B12: Central | C12: ='A01'!FldConc_C -> 12 | D12: mg/mL | E12: Worksheet A01
B13: Lower | C13: ='A01'!FldConc_L -> 3 | E13: Worksheet A01
B14: Upper | C14: ='A01'!FldConc_U -> 24 | E14: Worksheet A01
A15: Toxic Equivalency Factor for formulation: (See risk assessment if this has a value other than 1.) | B15: TEF
B16: Central | C16: ='A01'!C$35 -> 1 | D16: Unitless | E16: Worksheet A01
B17: Lower | C17: ='A01'!C$36 -> 1 | E17: Worksheet A01
B18: Upper | C18: ='A01'!C$37 -> 1 | E18: Worksheet A01
A19: Dermal permeability | B19: Kp
B20: Central | C20: ='B01'!$C$14 -> 0.001 | D20: cm/hour | E20: Section 3.1.3.2.2
B21: Lower | C21: ='B01'!$C$15 -> 0.001 | E21: Section 3.1.3.2.2
B22: Upper | C22: ='B01'!$C$16 -> 0.001 | E22: Section 3.1.3.2.2
A23: Absorbed Dose | B23: Dose | C23: Kp × Conc × T_hr × SA x TEF ÷ BW
B24: Central | C24: =C20*C12*C$9*C$7*C16/C$10 -> 0.0024 | D24: mg/kg | E24: Eq
B25: Lower | C25: =C21*C13*C$9*C$7*C17/C$10 -> 0.0006 | D25: mg/kg | E25: Eq
B26: Upper | C26: =C22*C14*C$9*C$7*C18/C$10 -> 0.0048 | D26: mg/kg | E26: Eq

Sheet C02b
A1: Accidental Dermal Exposure Assessment Using Zero-Order Absorption, Worker, Surface Area, Hands, for 60 minute(s)
A2: Short Title | B2: Contaminated Gloves, 1 Hour | E2: DrmZr
A3: Receptor | B3: Worker
A4: Duration | B4: Acute
A5: Surface Contaminated | B5: Surface Area, Hands
A6: Parameter/Assumption | B6: Code / Range | C6: Equation/ Value | D6: Units | E6: Reference/Designation
A7: Surface Area | B7: SA | C7: =A02a!$C$40 -> 840 | D7: cm2 | E7: U.S. EPA/ORD 1992
A8: Duration of Exposure | B8: T_min | C8: 60 | D8: minutes | E8: Scenario parameter
B9: T_hr | C9: =C8/60 -> 1 | D9: hours | E9: Eq
A10: Body weight | B10: BW | C10: =A02a!$C$39 -> 70 | D10: kg | E10: ICRP 1975
A11: Concentration in solution (mg/mL) | B11: Conc
B12: Central | C12: ='A01'!FldConc_C -> 12 | D12: mg/mL | E12: Worksheet A01
B13: Lower | C13: ='A01'!FldConc_L -> 3 | E13: Worksheet A01
B14: Upper | C14: ='A01'!FldConc_U -> 24 | E14: Worksheet A01
A15: Toxic Equivalency Factor for formulation: (See risk assessment if this has a value other than 1.) | B15: TEF
B16: Central | C16: ='A01'!C$35 -> 1 | D16: Unitless | E16: Worksheet A01
B17: Lower | C17: ='A01'!C$36 -> 1 | E17: Worksheet A01
B18: Upper | C18: ='A01'!C$37 -> 1 | E18: Worksheet A01
A19: Dermal permeability | B19: Kp
B20: Central | C20: ='B01'!$C$14 -> 0.001 | D20: cm/hour | E20: Section 3.1.3.2.2
B21: Lower | C21: ='B01'!$C$15 -> 0.001 | E21: Section 3.1.3.2.2
B22: Upper | C22: ='B01'!$C$16 -> 0.001 | E22: Section 3.1.3.2.2
A23: Absorbed Dose | B23: Dose | C23: Kp × Conc × T_hr × SA x TEF ÷ BW
B24: Central | C24: =C20*C12*C$9*C$7*C16/C$10 -> 0.144 | D24: mg/kg | E24: Eq
B25: Lower | C25: =C21*C13*C$9*C$7*C17/C$10 -> 0.036 | D25: mg/kg | E25: Eq
B26: Upper | C26: =C22*C14*C$9*C$7*C18/C$10 -> 0.288 | D26: mg/kg | E26: Eq

Sheet C03a
A1: Accidental Dermal Exposure Assessment Using First-Order Absorption, Worker, Surface Area, Hands, for 60 minute(s)
A2: Short Title | B2: Spill on hands, 1 hour | E2: DrmFOA
A3: Receptor | B3: Worker
A4: Duration | B4: Acute
A5: Surface Contaminated | B5: Surface Area, Hands
A6: Parameter/Assumption | B6: Code / Range | C6: Equation/ Value | D6: Units | E6: Reference/Designation
A7: Surface Area | B7: SA | C7: =A02a!$C$40 -> 840 | D7: cm2 | E7: U.S. EPA/ORD 1992
A8: Duration of Exposure | C8: 60 | D8: minutes | E8: Scenario parameter
B9: T | C9: =C8/60 -> 1 | D9: hours | E9: Eq
A10: Body weight | B10: BW | C10: =A02a!$C$39 -> 70 | D10: kg | E10: ICRP 1975
A11: Liquid adhering to skin | B11: L | C11: =A02d!$C$11 -> 0.008 | D11: mL/cm2 | E11: Mason and Johnson 1987
A12: Concentration in solution | B12: Conc
B13: Central | C13: ='A01'!FldConc_C -> 12 | D13: mg/mL | E13: Worksheet A01
B14: Lower | C14: ='A01'!FldConc_L -> 3 | E14: Worksheet A01
B15: Upper | C15: ='A01'!FldConc_U -> 24 | E15: Worksheet A01
A16: First-order dermal absorption rates | B16: ka
B17: Central | C17: ='B01'!$C$11 -> 0.0015 | D17: hour-1 | E17: Section 3.1.3.2.1
B18: Lower | C18: ='B01'!$C$12 -> 0.0013 | E18: Section 3.1.3.2.1
B19: Upper | C19: ='B01'!$C$13 -> 0.0017 | E19: Section 3.1.3.2.1
A20: Toxic Equivalency Factor for formulation: (See risk assessment if this has a value other than 1.) | B20: TEF
B21: Central | C21: ='A01'!C$35 -> 1 | D21: Unitless | E21: Worksheet A01
B22: Lower | C22: ='A01'!C$36 -> 1 | E22: Worksheet A01
B23: Upper | C23: ='A01'!C$37 -> 1 | E23: Worksheet A01
A24: Amount Deposited on Skin | B24: Amnt | C24: L × SA × Conc x TEF
B25: Central | C25: =$C$11*$C$7*C13*C21 -> 80.64 | D25: mg | E25: Eq
B26: Lower | C26: =$C$11*$C$7*C14*C22 -> 20.16 | E26: Eq
B27: Upper | C27: =$C$11*$C$7*C15*C23 -> 161.28 | E27: Eq
A28: Skin Loading | B28: Loading
B29: Central | C29: =C25/C$7 -> 0.096 | D29: mg/cm2 | E29: Eq
B30: Lower | C30: =C26/C$7 -> 0.024 | E30: Eq
B31: Upper | C31: =C27/C$7 -> 0.192 | E31: Eq
A32: Proportion absorbed over period T | B32: Prop | C32: 1-exp(-ka T)
B33: Central | C33: =1-EXP(-C17 *$C$9) -> 0.001498875562 | D33: hour-1 | E33: Eq
B34: Lower | C34: =1-EXP(-C18 *$C$9) -> 0.001299155366 | E34: Eq
B35: Upper | C35: =1-EXP(-C19 *$C$9) -> 0.001698555818 | E35: Eq
A36: Absorbed Dose | B36: Dose | C36: Amnt × Prop ÷ BW
B37: Central | C37: =C25*C33/$C$10 -> 0.001726704648 | D37: mg/kg bw | E37: Eq
B38: Lower | C38: =C26*C34/$C$10 -> 0.0003741567454 | E38: Eq
B39: Upper | C39: =C27*C35/$C$10 -> 0.003913472606 | E39: Eq

Sheet C03b
A1: Accidental Dermal Exposure Assessment Using First-Order Absorption, Worker, Surface Area, Lower legs, for 60 minute(s)
A2: Short Title | B2: Spill on lower legs, 1 hour | E2: DrmFOA
A3: Receptor | B3: Worker
A4: Duration | B4: Acute
A5: Surface Contaminated | B5: Surface Area, Lower legs
A6: Parameter/Assumption | B6: Code / Range | C6: Equation/ Value | D6: Units | E6: Reference/Designation
A7: Surface Area | B7: SA | C7: =A02a!$C$41 -> 2070 | D7: cm2 | E7: U.S. EPA/ORD 1992
A8: Duration of Exposure | C8: 60 | D8: minutes | E8: Scenario parameter
B9: T | C9: =C8/60 -> 1 | D9: hours | E9: Eq
A10: Body weight | B10: BW | C10: =A02a!$C$39 -> 70 | D10: kg | E10: ICRP 1975
A11: Liquid adhering to skin | B11: L | C11: =A02d!$C$11 -> 0.008 | D11: mL/cm2 | E11: Mason and Johnson 1987
A12: Concentration in solution | B12: Conc
B13: Central | C13: ='A01'!FldConc_C -> 12 | D13: mg/mL | E13: Worksheet A01
B14: Lower | C14: ='A01'!FldConc_L -> 3 | E14: Worksheet A01
B15: Upper | C15: ='A01'!FldConc_U -> 24 | E15: Worksheet A01
A16: First-order dermal absorption rates | B16: ka
B17: Central | C17: ='B01'!$C$11 -> 0.0015 | D17: hour-1 | E17: Section 3.1.3.2.1
B18: Lower | C18: ='B01'!$C$12 -> 0.0013 | E18: Section 3.1.3.2.1
B19: Upper | C19: ='B01'!$C$13 -> 0.0017 | E19: Section 3.1.3.2.1
A20: Toxic Equivalency Factor for formulation: (See risk assessment if this has a value other than 1.) | B20: TEF
B21: Central | C21: ='A01'!C$35 -> 1 | D21: Unitless | E21: Worksheet A01
B22: Lower | C22: ='A01'!C$36 -> 1 | E22: Worksheet A01
B23: Upper | C23: ='A01'!C$37 -> 1 | E23: Worksheet A01
A24: Amount Deposited on Skin | B24: Amnt | C24: L × SA × Conc x TEF
B25: Central | C25: =$C$11*$C$7*C13*C21 -> 198.72 | D25: mg | E25: Eq
B26: Lower | C26: =$C$11*$C$7*C14*C22 -> 49.68 | E26: Eq
B27: Upper | C27: =$C$11*$C$7*C15*C23 -> 397.44 | E27: Eq
A28: Skin Loading | B28: Loading
B29: Central | C29: =C25/C$7 -> 0.096 | D29: mg/cm2 | E29: Eq
B30: Lower | C30: =C26/C$7 -> 0.024 | E30: Eq
B31: Upper | C31: =C27/C$7 -> 0.192 | E31: Eq
A32: Proportion absorbed over period T | B32: Prop | C32: 1-exp(-ka T)
B33: Central | C33: =1-EXP(-C17 *$C$9) -> 0.001498875562 | D33: hour-1 | E33: Eq
B34: Lower | C34: =1-EXP(-C18 *$C$9) -> 0.001299155366 | E34: Eq
B35: Upper | C35: =1-EXP(-C19 *$C$9) -> 0.001698555818 | E35: Eq
A36: Absorbed Dose | B36: Dose | C36: Amnt × Prop ÷ BW
B37: Central | C37: =C25*C33/$C$10 -> 0.004255093596 | D37: mg/kg bw | E37: Eq
B38: Lower | C38: =C26*C34/$C$10 -> 0.0009220291226 | E38: Eq
B39: Upper | C39: =C27*C35/$C$10 -> 0.009643914636 | E39: Eq

Sheet D03
A1: Custom Worksheet for the Consumption of Sunflower Seeds by an Adult Female, Acute exposure.
A2: Short Title | B2: Contaminated Fruit | E2: FdPropBwV6
A3: Receptor | B3: Adult Female
A4: Duration | B4: Acute | E4: Scenario parameter
A5: Material consumed | B5: Fruit
A6: Parameter/Assumption | B6: Code / Range | C6: Equation/ Value | D6: Units | E6: Reference/Designation
A7: Commodity
A8: Concentration on vegetation | B8: Conc
B9: Central | C9: =B05a!Acute_U -> 0.00651 | D9: mg/kg food | E9: Section 3.2.3.6.
B10: Lower | C10: =B05a!Acute_U -> 0.00651 | E10: Section 3.2.3.6.
B11: Upper | C11: =B05a!Acute_U -> 0.00651 | E11: Section 3.2.3.6.
A12: Receptor
A13: Amount consumed per day per unit body weight | B13: Amnt
B14: Central | C14: 0.0022 | D14: kg food/kg BW per day | E14: Section 3.2.3.6.
B15: Lower | C15: 0.0011 | E15: Section 3.2.3.6.
B16: Upper | C16: 0.0044 | E16: Section 3.2.3.6.
A17: Estimate
A18: Dose | B18: Dose | C18: Conc × Amnt
B19: Central | C19: =C14*C9 -> 1.4322e-05 | D19: mg/kg bw | E19: Eq
B20: Lower | C20: =C15*C10 -> 7.161e-06 | E20: Eq
B21: Upper | C21: =C16*C11 -> 2.8644e-05 | E21: Eq

Sheet D05
A1: Consumption of contaminated water by Child, Accidental Spill
A2: Short Title | B2: Accidental Spill | E2: WatAmntV6
A3: Receptor | B3: Child
A4: Duration | B4: Acute | E4: Scenario parameter
A5: Parameter/Assumption | B5: Code / Range | C5: Equation/ Value | D5: Units | E5: Reference/Designation
A6: Concentration in water | B6: ConcWat
B7: Central | C7: =B04b!Acute_C -> 4.542 | D7: mg/L | E7: ='B04b'!Acute_C
B8: Lower | C8: =B04b!Acute_L -> 0.2271 | E8: ='B04b'!Acute_L
B9: Upper | C9: =B04b!Acute_U -> 18.168 | E9: ='B04b'!Acute_U
A10: Receptor
A11: Amount of water consumed in one day | B11: Amnt
B12: Central | C12: ='A03'!$E$36 -> 1 | D12: liters/day | E12: U.S. EPA/ORD 1996
B13: Lower | C13: ='A03'!$E$37 -> 0.61 | E13: U.S. EPA/ORD 1996
B14: Upper | C14: ='A03'!$E$38 -> 1.5 | E14: U.S. EPA/ORD 1996
A15: Body weight | B15: BW | C15: =A02a!$C$28 -> 13.3 | D15: kg | E15: U.S. EPA/ORD 1996
A16: Dose | B16: Dose | C16: ConcWat × Amnt ÷ BW
B17: Central | C17: =C7*C12/C$15 -> 0.3415037594 | D17: mg/kg | E17: Eq
B18: Lower | C18: =C8*C13/C$15 -> 0.01041586466 | D18: mg/kg | E18: Eq
B19: Upper | C19: =C9*C14/C$15 -> 2.049022556 | D19: mg/kg | E19: Eq

Sheet D06
A1: Consumption of contaminated water by Child, Peak Conentrations
A2: Short Title | B2: Peak Conentrations | E2: WatAmntV6
A3: Receptor | B3: Child
A4: Duration | B4: Acute | E4: Scenario parameter
A5: Parameter/Assumption | B5: Code / Range | C5: Equation/ Value | D5: Units | E5: Reference/Designation
A6: Concentration in water | B6: ConcWat
B7: Central | C7: =B04a!Acute_C -> 0.0006 | D7: mg/L | E7: ='B04a'!Acute_C
B8: Lower | C8: =B04a!Acute_L -> 2e-05 | E8: ='B04a'!Acute_L
B9: Upper | C9: =B04a!Acute_U -> 0.0022 | E9: ='B04a'!Acute_U
A10: Receptor
A11: Amount of water consumed in one day | B11: Amnt
B12: Central | C12: ='A03'!$E$36 -> 1 | D12: liters/day | E12: U.S. EPA/ORD 1996
B13: Lower | C13: ='A03'!$E$37 -> 0.61 | E13: U.S. EPA/ORD 1996
B14: Upper | C14: ='A03'!$E$38 -> 1.5 | E14: U.S. EPA/ORD 1996
A15: Body weight | B15: BW | C15: =A02a!$C$28 -> 13.3 | D15: kg | E15: U.S. EPA/ORD 1996
A16: Dose | B16: Dose | C16: ConcWat × Amnt ÷ BW
B17: Central | C17: =C7*C12/C$15 -> 4.511278195e-05 | D17: mg/kg | E17: Eq
B18: Lower | C18: =C8*C13/C$15 -> 9.172932331e-07 | D18: mg/kg | E18: Eq
B19: Upper | C19: =C9*C14/C$15 -> 0.0002481203008 | D19: mg/kg | E19: Eq

Sheet D07
A1: Consumption of contaminated water by Adult Male, Longer-term Conentrations
A2: Short Title | B2: Longer-term Conentrations | E2: WatAmntV6
A3: Receptor | B3: Adult Male
A4: Duration | B4: Chronic | E4: Scenario parameter
A5: Parameter/Assumption | B5: Code / Range | C5: Equation/ Value | D5: Units | E5: Reference/Designation
A6: Concentration in water | B6: ConcWat
B7: Central | C7: =B04a!Chronic_C -> 7.5e-05 | D7: mg/L | E7: ='B04a'!Chronic_C
B8: Lower | C8: =B04a!Chronic_L -> 2e-07 | E8: ='B04a'!Chronic_L
B9: Upper | C9: =B04a!Chronic_U -> 0.0004 | E9: ='B04a'!Chronic_U
A10: Receptor
A11: Amount of water consumed in one day | B11: Amnt
B12: Central | C12: ='A03'!$E$31 -> 2 | D12: liters/day | E12: U.S. EPA/ORD 1996
B13: Lower | C13: ='A03'!$E$32 -> 1.4 | E13: U.S. EPA/ORD 1996
B14: Upper | C14: ='A03'!$E$33 -> 2.4 | E14: U.S. EPA/ORD 1996
A15: Body weight | B15: BW | C15: =A02a!$C$8 -> 70 | D15: kg | E15: ICRP 1975
A16: Dose | B16: Dose | C16: ConcWat × Amnt ÷ BW
B17: Central | C17: =C7*C12/C$15 -> 2.142857143e-06 | D17: mg/kg | E17: Eq
B18: Lower | C18: =C8*C13/C$15 -> 4e-09 | D18: mg/kg | E18: Eq
B19: Upper | C19: =C9*C14/C$15 -> 1.371428571e-05 | D19: mg/kg | E19: Eq

Sheet D08a
A1: Consumption of Contaminated Fish (Accidental Spill), Adult Male, acute exposure
A2: Short Title | B2: Fish consumption | E2: FishAmntV6
A3: Receptor | B3: Adult Male
A4: Duration | B4: acute
A5: Parameter/Assumption | B5: Code / Range | C5: Equation/ Value | D5: Units | E5: Reference/Designation
A6: Water
A7: Concentration in water | B7: ConcWat | C7: ApR × WCR
B8: Central | C8: =B04b!Acute_C -> 4.542 | D8: mg/L | E8: ='B04b'!Acute_C
B9: Lower | C9: =B04b!Acute_L -> 0.2271 | E9: ='B04b'!Acute_L
B10: Upper | C10: =B04b!Acute_U -> 18.168 | E10: ='B04b'!Acute_U
A11: Fish
A12: Bioconcentration factor | B12: BCF
B13: Central | C13: ='B01'!$C$4 -> 2041 | D13: L/kg | E13: Section 3.2.3.5
B14: Lower | C14: ='B01'!$C$4 -> 2041 | E14: Section 3.2.3.5
B15: Upper | C15: ='B01'!$C$4 -> 2041 | E15: Section 3.2.3.5
A16: Concentration in fish | B16: ConcFish | C16: ConcWat × BCF
B17: Central | C17: =C8*C13 -> 9270.222 | D17: mg/kg | E17: Eq
B18: Lower | C18: =C9*C14 -> 463.5111 | E18: Eq
B19: Upper | C19: =C10*C15 -> 37080.888 | E19: Eq
A20: Receptor
A21: Amount of fish consumed | B21: Amnt
B22: Central | C22: ='A03'!$E$20 -> 0.158 | D22: kg/day | E22: Ruffle et al. 1994
B23: Lower | C23: ='A03'!$E$20 -> 0.158 | E23: Ruffle et al. 1994
B24: Upper | C24: ='A03'!$E$20 -> 0.158 | E24: Ruffle et al. 1994
A25: Toxic Equivalency Factor for formulation: (See risk assessment if this has a value other than 1.) | B25: TEF
B26: Central | C26: ='A01'!C$35 -> 1 | D26: Unitless | E26: Worksheet A01
B27: Lower | C27: ='A01'!C$36 -> 1 | E27: Worksheet A01
B28: Upper | C28: ='A01'!C$37 -> 1 | E28: Worksheet A01
A29: Body weight | B29: BW | C29: =A02a!$C$8 -> 70 | D29: kg | E29: ICRP 1975
A30: Dose | B30: Dose | C30: ConcFish× Amnt x TEF ÷ BW
B31: Central | C31: =C17*C22*C26/C$29 -> 20.92421537 | D31: mg/kg | E31: Eq
B32: Lower | C32: =C18*C23*C27/C$29 -> 1.046210769 | D32: mg/kg | E32: Eq
B33: Upper | C33: =C19*C24*C28/C$29 -> 83.69686149 | D33: mg/kg | E33: Eq
E34: FishAmntV6

Sheet D08b
A1: Consumption of Contaminated Fish (Accidental Spill), Subsistence Populations, acute exposure
A2: Short Title | B2: Fish consumption | E2: FishAmntV6
A3: Receptor | B3: Subsistence Populations
A4: Duration | B4: acute
A5: Parameter/Assumption | B5: Code / Range | C5: Equation/ Value | D5: Units | E5: Reference/Designation
A6: Water
A7: Concentration in water | B7: ConcWat | C7: ApR × WCR
B8: Central | C8: =B04b!Acute_C -> 4.542 | D8: mg/L | E8: ='B04b'!Acute_C
B9: Lower | C9: =B04b!Acute_L -> 0.2271 | E9: ='B04b'!Acute_L
B10: Upper | C10: =B04b!Acute_U -> 18.168 | E10: ='B04b'!Acute_U
A11: Fish
A12: Bioconcentration factor | B12: BCF
B13: Central | C13: ='B01'!$C$4 -> 2041 | D13: L/kg | E13: Section 3.2.3.5
B14: Lower | C14: ='B01'!$C$4 -> 2041 | E14: Section 3.2.3.5
B15: Upper | C15: ='B01'!$C$4 -> 2041 | E15: Section 3.2.3.5
A16: Concentration in fish | B16: ConcFish | C16: ConcWat × BCF
B17: Central | C17: =C8*C13 -> 9270.222 | D17: mg/kg | E17: Eq
B18: Lower | C18: =C9*C14 -> 463.5111 | E18: Eq
B19: Upper | C19: =C10*C15 -> 37080.888 | E19: Eq
A20: Receptor
A21: Amount of fish consumed | B21: Amnt
B22: Central | C22: ='A03'!$E$35 -> 0.77 | D22: kg/day | E22: U.S. EPA/ORD 1996
B23: Lower | C23: ='A03'!$E$35 -> 0.77 | E23: U.S. EPA/ORD 1996
B24: Upper | C24: ='A03'!$E$35 -> 0.77 | E24: U.S. EPA/ORD 1996
A25: Toxic Equivalency Factor for formulation: (See risk assessment if this has a value other than 1.) | B25: TEF
B26: Central | C26: ='A01'!C$35 -> 1 | D26: Unitless | E26: Worksheet A01
B27: Lower | C27: ='A01'!C$36 -> 1 | E27: Worksheet A01
B28: Upper | C28: ='A01'!C$37 -> 1 | E28: Worksheet A01
A29: Body weight | B29: BW | C29: =A02a!$C$9 -> 70 | D29: kg | E29: ICRP 1975
A30: Dose | B30: Dose | C30: ConcFish× Amnt x TEF ÷ BW
B31: Central | C31: =C17*C22*C26/C$29 -> 101.972442 | D31: mg/kg | E31: Eq
B32: Lower | C32: =C18*C23*C27/C$29 -> 5.0986221 | D32: mg/kg | E32: Eq
B33: Upper | C33: =C19*C24*C28/C$29 -> 407.889768 | D33: mg/kg | E33: Eq
E34: FishAmntV6

Sheet D09a
A1: Consumption of Contaminated Fish (Longer-term), Adult Male, chronic exposure
A2: Short Title | B2: Fish consumption | E2: FishAmntV6
A3: Receptor | B3: Adult Male
A4: Duration | B4: chronic
A5: Parameter/Assumption | B5: Code / Range | C5: Equation/ Value | D5: Units | E5: Reference/Designation
A6: Water
A7: Concentration in water | B7: ConcWat | C7: ApR × WCR
B8: Central | C8: =B04a!Chronic_C -> 7.5e-05 | D8: mg/L | E8: ='B04a'!Chronic_C
B9: Lower | C9: =B04a!Chronic_L -> 2e-07 | E9: ='B04a'!Chronic_L
B10: Upper | C10: =B04a!Chronic_U -> 0.0004 | E10: ='B04a'!Chronic_U
A11: Fish
A12: Bioconcentration factor | B12: BCF
B13: Central | C13: ='B01'!$C$5 -> 2041 | D13: L/kg | E13: Section 3.2.3.5
B14: Lower | C14: ='B01'!$C$5 -> 2041 | E14: Section 3.2.3.5
B15: Upper | C15: ='B01'!$C$5 -> 2041 | E15: Section 3.2.3.5
A16: Concentration in fish | B16: ConcFish | C16: ConcWat × BCF
B17: Central | C17: =C8*C13 -> 0.153075 | D17: mg/kg | E17: Eq
B18: Lower | C18: =C9*C14 -> 0.0004082 | E18: Eq
B19: Upper | C19: =C10*C15 -> 0.8164 | E19: Eq
A20: Receptor
A21: Amount of fish consumed | B21: Amnt
B22: Central | C22: ='A03'!$E$19 -> 0.01 | D22: kg/day | E22: U.S. EPA/ORD 1996
B23: Lower | C23: ='A03'!$E$19 -> 0.01 | E23: U.S. EPA/ORD 1996
B24: Upper | C24: ='A03'!$E$19 -> 0.01 | E24: U.S. EPA/ORD 1996
A25: Toxic Equivalency Factor for formulation: (See risk assessment if this has a value other than 1.) | B25: TEF
B26: Central | C26: ='A01'!C$35 -> 1 | D26: Unitless | E26: Worksheet A01
B27: Lower | C27: ='A01'!C$36 -> 1 | E27: Worksheet A01
B28: Upper | C28: ='A01'!C$37 -> 1 | E28: Worksheet A01
A29: Body weight | B29: BW | C29: =A02a!$C$8 -> 70 | D29: kg | E29: ICRP 1975
A30: Dose | B30: Dose | C30: ConcFish× Amnt x TEF ÷ BW
B31: Central | C31: =C17*C22*C26/C$29 -> 2.186785714e-05 | D31: mg/kg | E31: Eq
B32: Lower | C32: =C18*C23*C27/C$29 -> 5.831428571e-08 | D32: mg/kg | E32: Eq
B33: Upper | C33: =C19*C24*C28/C$29 -> 0.0001166285714 | D33: mg/kg | E33: Eq
E34: FishAmntV6

Sheet D09b
A1: Consumption of Contaminated Fish (Longer-term), Subsistence Populations, chronic exposure
A2: Short Title | B2: Fish consumption | E2: FishAmntV6
A3: Receptor | B3: Subsistence Populations
A4: Duration | B4: chronic
A5: Parameter/Assumption | B5: Code / Range | C5: Equation/ Value | D5: Units | E5: Reference/Designation
A6: Water
A7: Concentration in water | B7: ConcWat | C7: ApR × WCR
B8: Central | C8: =B04a!Chronic_C -> 7.5e-05 | D8: mg/L | E8: ='B04a'!Chronic_C
B9: Lower | C9: =B04a!Chronic_L -> 2e-07 | E9: ='B04a'!Chronic_L
B10: Upper | C10: =B04a!Chronic_U -> 0.0004 | E10: ='B04a'!Chronic_U
A11: Fish
A12: Bioconcentration factor | B12: BCF
B13: Central | C13: ='B01'!$C$5 -> 2041 | D13: L/kg | E13: Section 3.2.3.5
B14: Lower | C14: ='B01'!$C$5 -> 2041 | E14: Section 3.2.3.5
B15: Upper | C15: ='B01'!$C$5 -> 2041 | E15: Section 3.2.3.5
A16: Concentration in fish | B16: ConcFish | C16: ConcWat × BCF
B17: Central | C17: =C8*C13 -> 0.153075 | D17: mg/kg | E17: Eq
B18: Lower | C18: =C9*C14 -> 0.0004082 | E18: Eq
B19: Upper | C19: =C10*C15 -> 0.8164 | E19: Eq
A20: Receptor
A21: Amount of fish consumed | B21: Amnt
B22: Central | C22: ='A03'!$E$34 -> 0.081 | D22: kg/day | E22: U.S. EPA/ORD 1996
B23: Lower | C23: ='A03'!$E$34 -> 0.081 | E23: U.S. EPA/ORD 1996
B24: Upper | C24: ='A03'!$E$34 -> 0.081 | E24: U.S. EPA/ORD 1996
A25: Toxic Equivalency Factor for formulation: (See risk assessment if this has a value other than 1.) | B25: TEF
B26: Central | C26: ='A01'!C$35 -> 1 | D26: Unitless | E26: Worksheet A01
B27: Lower | C27: ='A01'!C$36 -> 1 | E27: Worksheet A01
B28: Upper | C28: ='A01'!C$37 -> 1 | E28: Worksheet A01
A29: Body weight | B29: BW | C29: =A02a!$C$9 -> 70 | D29: kg | E29: ICRP 1975
A30: Dose | B30: Dose | C30: ConcFish× Amnt x TEF ÷ BW
B31: Central | C31: =C17*C22*C26/C$29 -> 0.0001771296429 | D31: mg/kg | E31: Eq
B32: Lower | C32: =C18*C23*C27/C$29 -> 4.723457143e-07 | D32: mg/kg | E32: Eq
B33: Upper | C33: =C19*C24*C28/C$29 -> 0.0009446914286 | D33: mg/kg | E33: Eq
E34: FishAmntV6

Sheet D09c
A1: Consumption of Contaminated Fish (Peak Exposure), Adult Male, acute exposure
A2: Short Title | B2: Fish consumption | E2: FishAmntV6
A3: Receptor | B3: Adult Male
A4: Duration | B4: acute
A5: Parameter/Assumption | B5: Code / Range | C5: Equation/ Value | D5: Units | E5: Reference/Designation
A6: Water
A7: Concentration in water | B7: ConcWat | C7: ApR × WCR
B8: Central | C8: =B04a!Acute_C -> 0.0006 | D8: mg/L | E8: ='B04a'!Acute_C
B9: Lower | C9: =B04a!Acute_L -> 2e-05 | E9: ='B04a'!Acute_L
B10: Upper | C10: =B04a!Acute_U -> 0.0022 | E10: ='B04a'!Acute_U
A11: Fish
A12: Bioconcentration factor | B12: BCF
B13: Central | C13: ='B01'!$C$4 -> 2041 | D13: L/kg | E13: Section 3.2.3.5
B14: Lower | C14: ='B01'!$C$4 -> 2041 | E14: Section 3.2.3.5
B15: Upper | C15: ='B01'!$C$4 -> 2041 | E15: Section 3.2.3.5
A16: Concentration in fish | B16: ConcFish | C16: ConcWat × BCF
B17: Central | C17: =C8*C13 -> 1.2246 | D17: mg/kg | E17: Eq
B18: Lower | C18: =C9*C14 -> 0.04082 | E18: Eq
B19: Upper | C19: =C10*C15 -> 4.4902 | E19: Eq
A20: Receptor
A21: Amount of fish consumed | B21: Amnt
B22: Central | C22: ='A03'!$E$20 -> 0.158 | D22: kg/day | E22: Ruffle et al. 1994
B23: Lower | C23: ='A03'!$E$20 -> 0.158 | E23: Ruffle et al. 1994
B24: Upper | C24: ='A03'!$E$20 -> 0.158 | E24: Ruffle et al. 1994
A25: Toxic Equivalency Factor for formulation: (See risk assessment if this has a value other than 1.) | B25: TEF
B26: Central | C26: ='A01'!C$35 -> 1 | D26: Unitless | E26: Worksheet A01
B27: Lower | C27: ='A01'!C$36 -> 1 | E27: Worksheet A01
B28: Upper | C28: ='A01'!C$37 -> 1 | E28: Worksheet A01
A29: Body weight | B29: BW | C29: =A02a!$C$8 -> 70 | D29: kg | E29: ICRP 1975
A30: Dose | B30: Dose | C30: ConcFish× Amnt x TEF ÷ BW
B31: Central | C31: =C17*C22*C26/C$29 -> 0.002764097143 | D31: mg/kg | E31: Eq
B32: Lower | C32: =C18*C23*C27/C$29 -> 9.213657143e-05 | D32: mg/kg | E32: Eq
B33: Upper | C33: =C19*C24*C28/C$29 -> 0.01013502286 | D33: mg/kg | E33: Eq
E34: FishAmntV6

Sheet D09d
A1: Consumption of Contaminated Fish (Peak Exposure), Subsistence Populations, acute exposure
A2: Short Title | B2: Fish consumption | E2: FishAmntV6
A3: Receptor | B3: Subsistence Populations
A4: Duration | B4: acute
A5: Parameter/Assumption | B5: Code / Range | C5: Equation/ Value | D5: Units | E5: Reference/Designation
A6: Water
A7: Concentration in water | B7: ConcWat | C7: ApR × WCR
B8: Central | C8: =B04a!Acute_C -> 0.0006 | D8: mg/L | E8: ='B04a'!Acute_C
B9: Lower | C9: =B04a!Acute_L -> 2e-05 | E9: ='B04a'!Acute_L
B10: Upper | C10: =B04a!Acute_U -> 0.0022 | E10: ='B04a'!Acute_U
A11: Fish
A12: Bioconcentration factor | B12: BCF
B13: Central | C13: ='B01'!$C$4 -> 2041 | D13: L/kg | E13: Section 3.2.3.5
B14: Lower | C14: ='B01'!$C$4 -> 2041 | E14: Section 3.2.3.5
B15: Upper | C15: ='B01'!$C$4 -> 2041 | E15: Section 3.2.3.5
A16: Concentration in fish | B16: ConcFish | C16: ConcWat × BCF
B17: Central | C17: =C8*C13 -> 1.2246 | D17: mg/kg | E17: Eq
B18: Lower | C18: =C9*C14 -> 0.04082 | E18: Eq
B19: Upper | C19: =C10*C15 -> 4.4902 | E19: Eq
A20: Receptor
A21: Amount of fish consumed | B21: Amnt
B22: Central | C22: ='A03'!$E$35 -> 0.77 | D22: kg/day | E22: U.S. EPA/ORD 1996
B23: Lower | C23: ='A03'!$E$35 -> 0.77 | E23: U.S. EPA/ORD 1996
B24: Upper | C24: ='A03'!$E$35 -> 0.77 | E24: U.S. EPA/ORD 1996
A25: Toxic Equivalency Factor for formulation: (See risk assessment if this has a value other than 1.) | B25: TEF
B26: Central | C26: ='A01'!C$35 -> 1 | D26: Unitless | E26: Worksheet A01
B27: Lower | C27: ='A01'!C$36 -> 1 | E27: Worksheet A01
B28: Upper | C28: ='A01'!C$37 -> 1 | E28: Worksheet A01
A29: Body weight | B29: BW | C29: =A02a!$C$9 -> 70 | D29: kg | E29: ICRP 1975
A30: Dose | B30: Dose | C30: ConcFish× Amnt x TEF ÷ BW
B31: Central | C31: =C17*C22*C26/C$29 -> 0.0134706 | D31: mg/kg | E31: Eq
B32: Lower | C32: =C18*C23*C27/C$29 -> 0.00044902 | D32: mg/kg | E32: Eq
B33: Upper | C33: =C19*C24*C28/C$29 -> 0.0493922 | D33: mg/kg | E33: Eq
E34: FishAmntV6

Sheet D10
A1: Swimming Exposure Assessment Using Zero-Order Absorption, Adult Female, Surface Area, Whole body, for 60 minute(s)
A2: Short Title | B2: Swimming | E2: DrmZrSwm
A3: Receptor | B3: Adult Female
A4: Duration | B4: Acute
A5: Surface Contaminated | B5: Surface Area, Whole body
A6: Parameter/Assumption | B6: Code / Range | C6: Equation/ Value | D6: Units | E6: Reference/Designation
A7: Application Rate | B7: ApRt | C7: ='A01'!ApRt_C -> 1 | D7: lb/acre | E7: Worksheet A01
A8: Surface Area | B8: SA | C8: =A02a!$C$7 -> 16900 | D8: cm2 | E8: U.S. EPA/ORD 1997
A9: Duration of Exposure | B9: T_min | C9: ='A01'!C$29 -> 60 | D9: minutes | E9: Worksheet A01
B10: T_hr | C10: =C9/60 -> 1 | D10: hours | E10: Eq
A11: Body weight | B11: BW | C11: =A02a!$C$4 -> 64 | D11: kg | E11: U.S. EPA/ORD 1985
A12: Water contamination rate | B12: WCR
B13: Central | C13: =B04Rt!$C$4 -> 0.0006 | D13: mg/L per lb/acre
B14: Lower | C14: =B04Rt!$C$5 -> 2e-05
B15: Upper | C15: =B04Rt!$C$6 -> 0.0022
A16: Concentration in water in mg/mL | B16: ConcWat | C16: ApR × WCR / 1000
B17: Central | C17: =C$7*C13/1000 -> 6e-07 | D17: mg/mL | E17: Eq
B18: Lower | C18: =C$7*C14/1000 -> 2e-08 | E18: Eq
B19: Upper | C19: =C$7*C15/1000 -> 2.2e-06 | E19: Eq
A20: Toxic Equivalency Factor for formulation: (See risk assessment if this has a value other than 1.) | B20: TEF
B21: Central | C21: ='A01'!C$35 -> 1 | D21: Unitless | E21: Worksheet A01
B22: Lower | C22: ='A01'!C$36 -> 1 | E22: Worksheet A01
B23: Upper | C23: ='A01'!C$37 -> 1 | E23: Worksheet A01
A24: Dermal permeability | B24: Kp
B25: Central | C25: ='B01'!$C$14 -> 0.001 | D25: cm/hour | E25: Section 3.1.3.2.2
B26: Lower | C26: ='B01'!$C$15 -> 0.001 | E26: Section 3.1.3.2.2
B27: Upper | C27: ='B01'!$C$16 -> 0.001 | E27: Section 3.1.3.2.2
A28: Absorbed Dose | B28: Dose | C28: Kp × Conc × T_hr × SA × TEF ÷ BW
B29: Central | C29: =C25*C17*C$10*C$8*C21/C$11 -> 1.584375e-07 | D29: mg/kg
B30: Lower | C30: =C26*C18*C$10*C$8*C22/C$11 -> 5.28125e-09 | D30: mg/kg
B31: Upper | C31: =C27*C19*C$10*C$8*C23/C$11 -> 5.809375e-07 | D31: mg/kg

Sheet E01
A1: Worksheet E01: Summary of Worker Exposure Assessments
A2: Application Rate: | B2: ='A01'!ApRt_C -> 1 | C2: lb a.i./acre | F2: E01aV5-1Wrkr
A3: Scenario | B3: Receptor | C3: mg/kg/day or mg/kg/event | F3: Detail Worksheet
C4: Central | D4: Lower | E4: Upper
A5: Accidental/Incidental Exposures
A6: Contaminated Gloves, 1 min. | B6: Worker | C6: ='C02a'!Dose_C -> 0.0024 | D6: ='C02a'!Dose_L -> 0.0006 | E6: ='C02a'!Dose_U -> 0.0048 | F6: C02a
A7: Contaminated Gloves, 1 hour | B7: Worker | C7: ='C02b'!Dose_C -> 0.144 | D7: ='C02b'!Dose_L -> 0.036 | E7: ='C02b'!Dose_U -> 0.288 | F7: C02b
A8: Spill on Hands, 1 hour | B8: Worker | C8: ='C03a'!Dose_C -> 0.001726704648 | D8: ='C03a'!Dose_L -> 0.0003741567454 | E8: ='C03a'!Dose_U -> 0.003913472606 | F8: C03a
A9: Spill on lower legs, 1 hour | B9: Worker | C9: ='C03b'!Dose_C -> 0.004255093596 | D9: ='C03b'!Dose_L -> 0.0009220291226 | E9: ='C03b'!Dose_U -> 0.009643914636 | F9: C03b
A10: General Exposures
B11: Worker | C11: ='C01'!Dose_C -> 3.472e-05 | D11: ='C01'!Dose_L -> 2.046e-05 | E11: ='C01'!Dose_U -> 5.208e-05 | F11: C01

Sheet E02
A1: Worksheet E01: Summary of Worker Hazard Quotients (Toxicity)
A2: Application Rate: | B2: ='A01'!ApRt_C -> 1 | C2: lb a.i./acre | F2: E01aV5-1Wrkr
A3: Scenario | B3: Receptor | C3: Hazard Quotients | F3: Toxicity Value
C4: Central | D4: Lower | E4: Upper
A5: Accidental/Incidental Exposures
A6: Contaminated Gloves, 1 min. | B6: Worker | C6: ='C02a'!$C$24/$F$6 -> 0.0024 | D6: ='C02a'!$C$25/$F$6 -> 0.0006 | E6: ='C02a'!$C$26/$F$6 -> 0.0048 | F6: ='B02'!$E$4 -> 1
A7: Contaminated Gloves, 1 hour | B7: Worker | C7: ='C02b'!$C$24/$F$7 -> 0.144 | D7: ='C02b'!$C$25/$F$7 -> 0.036 | E7: ='C02b'!$C$26/$F$7 -> 0.288 | F7: ='B02'!$E$4 -> 1
A8: Spill on Hands, 1 hour | B8: Worker | C8: ='C03a'!$C$37/$F$8 -> 0.001726704648 | D8: ='C03a'!$C$38/$F$8 -> 0.0003741567454 | E8: ='C03a'!$C$39/$F$8 -> 0.003913472606 | F8: ='B02'!$E$4 -> 1
A9: Spill on lower legs, 1 hour | B9: Worker | C9: ='C03b'!$C$37/$F$9 -> 0.004255093596 | D9: ='C03b'!$C$38/$F$9 -> 0.0009220291226 | E9: ='C03b'!$C$39/$F$9 -> 0.009643914636 | F9: ='B02'!$E$4 -> 1
A10: General Exposures
B11: Worker | C11: ='C01'!$C$36/$F$11 -> 0.001446666667 | D11: ='C01'!$C$37/$F$11 -> 0.0008525 | E11: ='C01'!$C$38/$F$11 -> 0.00217 | F11: ='B02'!$E$5 -> 0.024

Sheet E03
A1: Worksheet E03: Summary of Exposure Assessments for the General Public
A2: Application Rate: | B2: ='A01'!ApRt_C -> 1 | C2: lb a.i./acre | F2: E03aV6
A3: Scenario | B3: Receptor | C3: mg/kg/day or mg/kg/event | F3: Detail Worksheet
C4: Central | D4: Lower | E4: Upper
A5: Accidental Acute Exposures (dose in mg/kg/event)
A6: Direct Spray of Child, whole body | B6: Child | C6: No Exposure Assessment | I6: Spray: Child
A7: Direct Spray of Woman, feet and lower legs | B7: Adult Female | C7: No Exposure Assessment | I7: Spray: Woman
A8: Water consumption (spill) | B8: Child | C8: ='D05'!Dose_C -> 0.3415037594 | D8: ='D05'!Dose_L -> 0.01041586466 | E8: ='D05'!Dose_U -> 2.049022556 | F8: D05 | I8: Water: Child
A9: Fish consumption (spill) | B9: Adult Male | C9: =D08a!Dose_C -> 20.92421537 | D9: =D08a!Dose_L -> 1.046210769 | E9: =D08a!Dose_U -> 83.69686149 | F9: D08a | I9: Fish: Man
A10: Fish consumption (spill) | B10: Subsistence Populations | C10: =D08b!Dose_C -> 101.972442 | D10: =D08b!Dose_L -> 5.0986221 | E10: =D08b!Dose_U -> 407.889768 | F10: D08b | I10: Fish: Subsist
A11: Non-Accidental Acute Exposures (dose in mg/kg/event)
A12: Vegetation Contact, shorts and T-shirt | B12: Adult Female | C12: No Exposure Assessment | F12: D02 | I12: Contact: Female
A13: Contaminated Sunflower Seeds | B13: Adult Female | C13: ='D03'!Dose_C -> 1.4322e-05 | D13: ='D03'!Dose_L -> 7.161e-06 | E13: ='D03'!Dose_U -> 2.8644e-05 | F13: D03 | I13: Fruit: Female
A14: Contaminated Vegetation | B14: Adult Female | C14: No Exposure Assessment | I14: Veg: Female
A15: Swimming, one hour | B15: Adult Female | C15: ='D10'!Dose_C -> 1.584375e-07 | D15: ='D10'!Dose_L -> 5.28125e-09 | E15: ='D10'!Dose_U -> 5.809375e-07 | F15: D10 | I15: Swim: Female
A16: Water consumption | B16: Child | C16: ='D06'!Dose_C -> 4.511278195e-05 | D16: ='D06'!Dose_L -> 9.172932331e-07 | E16: ='D06'!Dose_U -> 0.0002481203008 | F16: D06 | I16: Water: Child
A17: Fish consumption | B17: Adult Male | C17: =D09c!Dose_C -> 0.002764097143 | D17: =D09c!Dose_L -> 9.213657143e-05 | E17: =D09c!Dose_U -> 0.01013502286 | F17: D09c | I17: Fish: Male
A18: Fish consumption | B18: Subsistence Populations | C18: =D09d!Dose_C -> 0.0134706 | D18: =D09d!Dose_L -> 0.00044902 | E18: =D09d!Dose_U -> 0.0493922 | F18: D09d | I18: Fish: Subsist
A19: Chronic/Longer Term Exposures (dose in mg/kg/day)
A20: Contaminated Fruit | B20: Adult Female | C20: No Exposure Assessment | I20: Fruit: Female
A21: Contaminated Vegetation | B21: Adult Female | C21: No Exposure Assessment | I21: Veg: Female
A22: Water consumption | B22: Adult Male | C22: ='D07'!Dose_C -> 2.142857143e-06 | D22: ='D07'!Dose_L -> 4e-09 | E22: ='D07'!Dose_U -> 1.371428571e-05 | F22: D07 | I22: Water: Male
A23: Fish consumption | B23: Adult Male | C23: =D09a!Dose_C -> 2.186785714e-05 | D23: =D09a!Dose_L -> 5.831428571e-08 | E23: =D09a!Dose_U -> 0.0001166285714 | F23: D09a | I23: Fish: Male
A24: Fish consumption | B24: Subsistence Populations | C24: =D09b!Dose_C -> 0.0001771296429 | D24: =D09b!Dose_L -> 4.723457143e-07 | E24: =D09b!Dose_U -> 0.0009446914286 | F24: D09b | I24: Fish: Subsist

Sheet E04
A1: Worksheet E03: Summary of Hazard Quotients (Toxicity) for the General Public
A2: Application Rate: | B2: ='A01'!ApRt_C -> 1 | C2: lb a.i./acre | F2: E03aV6
A3: Scenario | B3: Receptor | C3: Hazard Quotients | F3: Toxicity Value
C4: Central | D4: Lower | E4: Upper
A5: Accidental Acute Exposures (dose in mg/kg/event)
A6: Direct Spray of Child, whole body | B6: Child | C6: No exposure assessment. | I6: Spray: Child
A7: Direct Spray of Woman, feet and lower legs | B7: Adult Female | C7: No exposure assessment. | I7: Spray: Woman
A8: Water consumption (spill) | B8: Child | C8: ='D05'!$C$17/$F$8 -> 0.3415037594 | D8: ='D05'!$C$18/$F$8 -> 0.01041586466 | E8: ='D05'!$C$19/$F$8 -> 2.049022556 | F8: ='B02'!$E$4 -> 1 | I8: Water: Child
A9: Fish consumption (spill) | B9: Adult Male | C9: =D08a!$C$31/$F$9 -> 20.92421537 | D9: =D08a!$C$32/$F$9 -> 1.046210769 | E9: =D08a!$C$33/$F$9 -> 83.69686149 | F9: ='B02'!$E$4 -> 1 | I9: Fish: Man
A10: Fish consumption (spill) | B10: Subsistence Populations | C10: =D08b!$C$31/$F$10 -> 101.972442 | D10: =D08b!$C$32/$F$10 -> 5.0986221 | E10: =D08b!$C$33/$F$10 -> 407.889768 | F10: ='B02'!$E$4 -> 1 | I10: Fish: Subsist
A11: Non-Accidental Acute Exposures (dose in mg/kg/event)
A12: Vegetation Contact, shorts and T-shirt | B12: Adult Female | C12: No exposure assessment. | I12: Contact: Female
A13: Contaminated Sunflower Seeds | B13: Adult Female | C13: ='D03'!$C$19/$F$13 -> 1.4322e-05 | D13: ='D03'!$C$20/$F$13 -> 7.161e-06 | E13: ='D03'!$C$21/$F$13 -> 2.8644e-05 | F13: ='B02'!$E$4 -> 1 | I13: Fruit: Female
A14: Contaminated Vegetation | B14: Adult Female | C14: No exposure assessment. | I14: Veg: Female
A15: Swimming, one hour | B15: Adult Female | C15: ='D10'!$C$29/$F$15 -> 1.584375e-07 | D15: ='D10'!$C$30/$F$15 -> 5.28125e-09 | E15: ='D10'!$C$31/$F$15 -> 5.809375e-07 | F15: ='B02'!$E$4 -> 1 | I15: Swim: Female
A16: Water consumption | B16: Child | C16: ='D06'!$C$17/$F$16 -> 4.511278195e-05 | D16: ='D06'!$C$18/$F$16 -> 9.172932331e-07 | E16: ='D06'!$C$19/$F$16 -> 0.0002481203008 | F16: ='B02'!$E$4 -> 1 | I16: Water: Child
A17: Fish consumption | B17: Adult Male | C17: =D09c!$C$31/$F$17 -> 0.002764097143 | D17: =D09c!$C$32/$F$17 -> 9.213657143e-05 | E17: =D09c!$C$33/$F$17 -> 0.01013502286 | F17: ='B02'!$E$4 -> 1 | I17: Fish: Male
A18: Fish consumption | B18: Subsistence Populations | C18: =D09d!$C$31/$F$18 -> 0.0134706 | D18: =D09d!$C$32/$F$18 -> 0.00044902 | E18: =D09d!$C$33/$F$18 -> 0.0493922 | F18: ='B02'!$E$4 -> 1 | I18: Fish: Subsist
A19: Chronic/Longer Term Exposures (dose in mg/kg/day)
A20: Contaminated Fruit | B20: Adult Female | C20: No exposure assessment. | I20: Fruit: Female
A21: Contaminated Vegetation | B21: Adult Female | C21: No exposure assessment. | I21: Veg: Female
A22: Water consumption | B22: Adult Male | C22: ='D07'!$C$17/$F$22 -> 8.928571429e-05 | D22: ='D07'!$C$18/$F$22 -> 1.666666667e-07 | E22: ='D07'!$C$19/$F$22 -> 0.0005714285714 | F22: ='B02'!$E$5 -> 0.024 | I22: Water: Male
A23: Fish consumption | B23: Adult Male | C23: =D09a!$C$31/$F$23 -> 0.0009111607143 | D23: =D09a!$C$32/$F$23 -> 2.429761905e-06 | E23: =D09a!$C$33/$F$23 -> 0.00485952381 | F23: ='B02'!$E$5 -> 0.024 | I23: Fish: Male
A24: Fish consumption | B24: Subsistence Populations | C24: =D09b!$C$31/$F$24 -> 0.007380401786 | D24: =D09b!$C$32/$F$24 -> 1.968107143e-05 | E24: =D09b!$C$33/$F$24 -> 0.03936214286 | F24: ='B02'!$E$5 -> 0.024 | I24: Fish: Subsist

Sheet E05
A1: Worksheet E05: Summary of Hazard Quotients Based on a Cancer Risk of 1 in 1-Million.
A2: Application Rate: | B2: ='A01'!ApRt_C -> 1 | C2: lb a.i./acre | F2: CancSumV5
A3: Scenario | B3: Receptor | C3: Hazard Quotients | F3: Toxicity Value
C4: Central | D4: Lower | E4: Upper
A5: General Public
A6: Water consumption | B6: Adult Male | C6: ='D07'!$C$17/$F$6 -> 0.01260504202 | D6: ='D07'!$C$18/$F$6 -> 2.352941176e-05 | E6: ='D07'!$C$19/$F$6 -> 0.08067226891 | F6: ='B02'!$E$26 -> 0.00017
A7: Fish consumption | B7: Adult Male | C7: =D09a!$C$31/$F$7 -> 0.1286344538 | D7: =D09a!$C$32/$F$7 -> 0.0003430252101 | E7: =D09a!$C$33/$F$7 -> 0.6860504202 | F7: ='B02'!$E$26 -> 0.00017
A8: Fish consumption | B8: Subsistence Populations | C8: =D09b!$C$31/$F$8 -> 1.041939076 | D8: =D09b!$C$32/$F$8 -> 0.002778504202 | E8: =D09b!$C$33/$F$8 -> 5.557008403 | F8: ='B02'!$E$26 -> 0.00017
A9: Workers
A10: General Exposure | B10: Worker | C10: ='C01'!$C$36/$F$10 -> 0.2042352941 | D10: ='C01'!$C$37/$F$10 -> 0.1203529412 | E10: ='C01'!$C$38/$F$10 -> 0.3063529412 | F10: ='B02'!$E$26 -> 0.00017

Sheet F02a
A1: Consumption of contaminated water by Mammal, small, Accidental Spill
A2: Short Title | B2: Accidental Spill | E2: WatAlloV6
A3: Receptor | B3: Mammal, small
A4: Duration | B4: Acute | E4: Scenario parameter
A5: Parameter/Assumption | B5: Code / Range | C5: Equation/ Value | D5: Units | E5: Reference/Designation
A6: Concentration in water | B6: ConcWat
B7: Central | C7: =B04b!Acute_C -> 4.542 | D7: mg/L | E7: ='B04b'!Acute_C
B8: Lower | C8: =B04b!Acute_L -> 0.2271 | E8: ='B04b'!Acute_L
B9: Upper | C9: =B04b!Acute_U -> 18.168 | E9: ='B04b'!Acute_U
A10: Receptor
A11: Body weight | B11: BW | C11: =A02b!$C$71 -> 0.02 | D11: kg | E11: Default
A12: Allometric coefficients forwater consumption per day in liters and BW in kilograms
B13: alpha | C13: =A02b!$C$79 -> 0.099 | E13: U.S. EPA/ORD 1993
B14: beta | C14: =A02b!$C$80 -> 0.9 | E14: U.S. EPA/ORD 1993
A15: Amount of water consumed per day | C15: Amnt = alpha BW beta
B16: Amnt | C16: =C13*(C11^C14) -> 0.002927940121 | D16: liters | E16: Eq
A17: Absorbed Dose | B17: Dose | C17: ConcWat × Amnt ÷ BW
B18: Central | C18: =C7*C$16/C$11 -> 0.6649352014 | D18: mg/kg | E18: Eq
B19: Lower | C19: =C8*C$16/C$11 -> 0.03324676007 | D19: mg/kg | E19: Eq
B20: Upper | C20: =C9*C$16/C$11 -> 2.659740805 | D20: mg/kg | E20: Eq

Sheet F02b
A1: Consumption of contaminated water by Mammal, 400 g, Accidental Spill
A2: Short Title | B2: Accidental Spill | E2: WatAlloV6
A3: Receptor | B3: Mammal, 400 g
A4: Duration | B4: Acute | E4: Scenario parameter
A5: Parameter/Assumption | B5: Code / Range | C5: Equation/ Value | D5: Units | E5: Reference/Designation
A6: Concentration in water | B6: ConcWat
B7: Central | C7: =B04b!Acute_C -> 4.542 | D7: mg/L | E7: ='B04b'!Acute_C
B8: Lower | C8: =B04b!Acute_L -> 0.2271 | E8: ='B04b'!Acute_L
B9: Upper | C9: =B04b!Acute_U -> 18.168 | E9: ='B04b'!Acute_U
A10: Receptor
A11: Body weight | B11: BW | C11: =A02b!$C$40 -> 0.4 | D11: kg | E11: Default
A12: Allometric coefficients forwater consumption per day in liters and BW in kilograms
B13: alpha | C13: =A02b!$C$45 -> 0.099 | E13: U.S. EPA/ORD 1993
B14: beta | C14: =A02b!$C$46 -> 0.9 | E14: U.S. EPA/ORD 1993
A15: Amount of water consumed per day | C15: Amnt = alpha BW beta
B16: Amnt | C16: =C13*(C11^C14) -> 0.04339994576 | D16: liters | E16: Eq
A17: Absorbed Dose | B17: Dose | C17: ConcWat × Amnt ÷ BW
B18: Central | C18: =C7*C$16/C$11 -> 0.4928063842 | D18: mg/kg | E18: Eq
B19: Lower | C19: =C8*C$16/C$11 -> 0.02464031921 | D19: mg/kg | E19: Eq
B20: Upper | C20: =C9*C$16/C$11 -> 1.971225537 | D20: mg/kg | E20: Eq

Sheet F02c
A1: Consumption of contaminated water by Mammal, carnivorous, Accidental Spill
A2: Short Title | B2: Accidental Spill | E2: WatAlloV6
A3: Receptor | B3: Mammal, carnivorous
A4: Duration | B4: Acute | E4: Scenario parameter
A5: Parameter/Assumption | B5: Code / Range | C5: Equation/ Value | D5: Units | E5: Reference/Designation
A6: Concentration in water | B6: ConcWat
B7: Central | C7: =B04b!Acute_C -> 4.542 | D7: mg/L | E7: ='B04b'!Acute_C
B8: Lower | C8: =B04b!Acute_L -> 0.2271 | E8: ='B04b'!Acute_L
B9: Upper | C9: =B04b!Acute_U -> 18.168 | E9: ='B04b'!Acute_U
A10: Receptor
A11: Body weight | B11: BW | C11: =A02b!$C$47 -> 5 | D11: kg | E11: U.S. EPA/ORD 1993
A12: Allometric coefficients forwater consumption per day in liters and BW in kilograms
B13: alpha | C13: =A02b!$C$50 -> 0.099 | E13: U.S. EPA/ORD 1993
B14: beta | C14: =A02b!$C$51 -> 0.9 | E14: U.S. EPA/ORD 1993
A15: Amount of water consumed per day | C15: Amnt = alpha BW beta
B16: Amnt | C16: =C13*(C11^C14) -> 0.4214132616 | D16: liters | E16: Eq
A17: Absorbed Dose | B17: Dose | C17: ConcWat × Amnt ÷ BW
B18: Central | C18: =C7*C$16/C$11 -> 0.3828118069 | D18: mg/kg | E18: Eq
B19: Lower | C19: =C8*C$16/C$11 -> 0.01914059034 | D19: mg/kg | E19: Eq
B20: Upper | C20: =C9*C$16/C$11 -> 1.531247228 | D20: mg/kg | E20: Eq

Sheet F02d
A1: Consumption of contaminated water by Mammal, large, Accidental Spill
A2: Short Title | B2: Accidental Spill | E2: WatAlloV6
A3: Receptor | B3: Mammal, large
A4: Duration | B4: Acute | E4: Scenario parameter
A5: Parameter/Assumption | B5: Code / Range | C5: Equation/ Value | D5: Units | E5: Reference/Designation
A6: Concentration in water | B6: ConcWat
B7: Central | C7: =B04b!Acute_C -> 4.542 | D7: mg/L | E7: ='B04b'!Acute_C
B8: Lower | C8: =B04b!Acute_L -> 0.2271 | E8: ='B04b'!Acute_L
B9: Upper | C9: =B04b!Acute_U -> 18.168 | E9: ='B04b'!Acute_U
A10: Receptor
A11: Body weight | B11: BW | C11: =A02b!$C$61 -> 70 | D11: kg | E11: Default
A12: Allometric coefficients forwater consumption per day in liters and BW in kilograms
B13: alpha | C13: =A02b!$C$64 -> 0.099 | E13: U.S. EPA/ORD 1993
B14: beta | C14: =A02b!$C$65 -> 0.9 | E14: U.S. EPA/ORD 1993
A15: Amount of water consumed per day | C15: Amnt = alpha BW beta
B16: Amnt | C16: =C13*(C11^C14) -> 4.531306412 | D16: liters | E16: Eq
A17: Absorbed Dose | B17: Dose | C17: ConcWat × Amnt ÷ BW
B18: Central | C18: =C7*C$16/C$11 -> 0.2940170532 | D18: mg/kg | E18: Eq
B19: Lower | C19: =C8*C$16/C$11 -> 0.01470085266 | D19: mg/kg | E19: Eq
B20: Upper | C20: =C9*C$16/C$11 -> 1.176068213 | D20: mg/kg | E20: Eq

Sheet F02e
A1: Consumption of contaminated water by Bird, small, Accidental Spill
A2: Short Title | B2: Accidental Spill | E2: WatAlloV6
A3: Receptor | B3: Bird, small
A4: Duration | B4: Acute | E4: Scenario parameter
A5: Parameter/Assumption | B5: Code / Range | C5: Equation/ Value | D5: Units | E5: Reference/Designation
A6: Concentration in water | B6: ConcWat
B7: Central | C7: =B04b!Acute_C -> 4.542 | D7: mg/L | E7: ='B04b'!Acute_C
B8: Lower | C8: =B04b!Acute_L -> 0.2271 | E8: ='B04b'!Acute_L
B9: Upper | C9: =B04b!Acute_U -> 18.168 | E9: ='B04b'!Acute_U
A10: Receptor
A11: Body weight | B11: BW | C11: =A02b!$C$31 -> 0.01 | D11: kg | E11: Default
A12: Allometric coefficients forwater consumption per day in liters and BW in kilograms
B13: alpha | C13: =A02b!$C$34 -> 0.059 | E13: U.S. EPA/ORD 1993
B14: beta | C14: =A02b!$C$35 -> 0.67 | E14: U.S. EPA/ORD 1993
A15: Amount of water consumed per day | C15: Amnt = alpha BW beta
B16: Amnt | C16: =C13*(C11^C14) -> 0.002696820319 | D16: liters | E16: Eq
A17: Absorbed Dose | B17: Dose | C17: ConcWat × Amnt ÷ BW
B18: Central | C18: =C7*C$16/C$11 -> 1.224895789 | D18: mg/kg | E18: Eq
B19: Lower | C19: =C8*C$16/C$11 -> 0.06124478944 | D19: mg/kg | E19: Eq
B20: Upper | C20: =C9*C$16/C$11 -> 4.899583155 | D20: mg/kg | E20: Eq

Sheet F02f
A1: Consumption of contaminated water by Bird, large, Accidental Spill
A2: Short Title | B2: Accidental Spill | E2: WatAlloV6
A3: Receptor | B3: Bird, large
A4: Duration | B4: Acute | E4: Scenario parameter
A5: Parameter/Assumption | B5: Code / Range | C5: Equation/ Value | D5: Units | E5: Reference/Designation
A6: Concentration in water | B6: ConcWat
B7: Central | C7: =B04b!Acute_C -> 4.542 | D7: mg/L | E7: ='B04b'!Acute_C
B8: Lower | C8: =B04b!Acute_L -> 0.2271 | E8: ='B04b'!Acute_L
B9: Upper | C9: =B04b!Acute_U -> 18.168 | E9: ='B04b'!Acute_U
A10: Receptor
A11: Body weight | B11: BW | C11: =A02b!$C$15 -> 4 | D11: kg | E11: Default
A12: Allometric coefficients forwater consumption per day in liters and BW in kilograms
B13: alpha | C13: =A02b!$C$18 -> 0.059 | E13: U.S. EPA/ORD 1993
B14: beta | C14: =A02b!$C$19 -> 0.67 | E14: U.S. EPA/ORD 1993
A15: Amount of water consumed per day | C15: Amnt = alpha BW beta
B16: Amnt | C16: =C13*(C11^C14) -> 0.1493592781 | D16: liters | E16: Eq
A17: Absorbed Dose | B17: Dose | C17: ConcWat × Amnt ÷ BW
B18: Central | C18: =C7*C$16/C$11 -> 0.1695974603 | D18: mg/kg | E18: Eq
B19: Lower | C19: =C8*C$16/C$11 -> 0.008479873013 | D19: mg/kg | E19: Eq
B20: Upper | C20: =C9*C$16/C$11 -> 0.6783898411 | D20: mg/kg | E20: Eq

Sheet F03a
A1: Acute scenario for the consumption of Contaminated Fish ( Accidental Spill) by Mammal, large carnivorous
A2: Short Title | B2: Fish consumption, accidental spill | E2: FishKcalV6
A3: Predator | B3: Mammal, large carnivorous
A4: Food Item (Prey) | B4: Fish
A5: Duration | B5: Acute | E5: Scenario parameter
A6: Parameter/Assumption | B6: Code / Range | C6: Equation/ Value | D6: Units | E6: Reference/Designation
A7: Water
A8: Concentration in water | B8: ConcWat
B9: Central | C9: =B04b!Acute_C -> 4.542 | D9: mg/L | E9: ='B04b'!Acute_C
B10: Lower | C10: =B04b!Acute_L -> 0.2271 | E10: ='B04b'!Acute_L
B11: Upper | C11: =B04b!Acute_U -> 18.168 | E11: ='B04b'!Acute_U
A12: Fish
A13: Bioconcentration factor | B13: BCF
B14: Central | C14: ='B01'!$C$6 -> 15000 | D14: L/kg | E14: Section 3.2.3.5
B15: Lower | C15: ='B01'!$C$6 -> 15000 | E15: Section 3.2.3.5
B16: Upper | C16: ='B01'!$C$6 -> 15000 | E16: Section 3.2.3.5
A17: Concentration in fish | B17: ConcFish | C17: ConcWat × BCF
B18: Central | C18: =C9*C14 -> 68130 | D18: mg/kg | E18: Eq
B19: Lower | C19: =C10*C15 -> 3406.5 | E19: Eq
B20: Upper | C20: =C11*C16 -> 272520 | E20: Eq
A21: Receptor
A22: Body weight | B22: BW | C22: =A02b!$C$52 -> 70 | D22: kg | E22: Reid 2006
A23: Allometric coefficients for caloric requirement per day in kilocalories and BW in grams
B24: alpha | C24: =A02b!$C$53 -> 0.6167 | E24: U.S. EPA/ORD 1993
B25: beta | C25: =A02b!$C$54 -> 0.862 | E25: U.S. EPA/ORD 1993
A26: Caloric requirement per day | B26: KR | C26: =C24*(C22*1000)^C25 -> 9258.666883 | D26: kcal/day | E26: Eq
A27: Caloric content of commodity (dry weight) | B27: KCD | C27: 4.47 | D27: kcal/gdw [Note 1] | E27: WkMk Documentation
A28: Food consumed per day (dry weight) | B28: AmntDry | C28: = KR ÷ KCD
C29: =C26/C27 -> 2071.29013 | D29: gdry/day | E29: Eq
A30: Water content of vegetation as a proportion | B30: PropWater | C30: 0.7 | D30: gwater/gfood | E30: WkMk Documentation
A31: Dry weight content of vegetation as a proportion | B31: PropDry | C31: = 1-PropWater
C32: =1-C30 -> 0.3 | D32: gdry/gfood | E32: Eq
A33: Amount of fish consumed per day, wet weight | B33: AmntFish | C33: = (AmntDry ÷ PropDry) ÷ (1000g/kg)
B34: Central | C34: =(C29/C32)/1000 -> 6.904300435 | D34: kgfood/day | E34: Eq
B35: Lower | C35: =C34*0.3 -> 2.07129013 | D35: Note 1 | E35: Eq
B36: Upper | C36: =C34*1.7 -> 11.73731074 | D36: Note 1 | E36: Eq
A37: Proportion of diet that is contaminated | B37: Prop
B38: Central | C38: 0.3 | D38: Unitless | E38: Scenario parameter
B39: Lower | C39: 0.1 | E39: Scenario parameter
B40: Upper | C40: 1 | E40: Scenario parameter
A41: Dose
A42: Toxic Equivalency Factor for formulation: (See risk assessment if this has a value other than 1.) | B42: TEF
B43: Central | C43: ='A01'!C$35 -> 1 | D43: Unitless | E43: Worksheet A01
B44: Lower | C44: ='A01'!C$36 -> 1 | D44: Note 2 | E44: Worksheet A01
B45: Upper | C45: ='A01'!C$37 -> 1 | D45: Note 2 | E45: Worksheet A01
A46: Dose | B46: Dose | C46: = ConcFish × AmntFish × Prop ÷ BW
B47: Central | C47: =C18*C34*C38/C$22 -> 2015.957094 | D47: mg/kg | E47: Eq
B48: Lower | C48: =C19*C35*C39/C$22 -> 10.07978547 | D48: mg/kg | E48: Eq
B49: Upper | C49: 45695.02747 | D49: mg/kg | E49: Eq
E50: FishKcalV6

Sheet F03b
A1: Acute scenario for the consumption of Contaminated Fish ( Accidental Spill) by Mammal, carnivorous
A2: Short Title | B2: Fish consumption, accidental spill | E2: FishKcalV6
A3: Predator | B3: Mammal, carnivorous
A4: Food Item (Prey) | B4: Fish
A5: Duration | B5: Acute | E5: Scenario parameter
A6: Parameter/Assumption | B6: Code / Range | C6: Equation/ Value | D6: Units | E6: Reference/Designation
A7: Water
A8: Concentration in water | B8: ConcWat
B9: Central | C9: =B04b!Acute_C -> 4.542 | D9: mg/L | E9: ='B04b'!Acute_C
B10: Lower | C10: =B04b!Acute_L -> 0.2271 | E10: ='B04b'!Acute_L
B11: Upper | C11: =B04b!Acute_U -> 18.168 | E11: ='B04b'!Acute_U
A12: Fish
A13: Bioconcentration factor | B13: BCF
B14: Central | C14: ='B01'!$C$6 -> 15000 | D14: L/kg | E14: Section 3.2.3.5
B15: Lower | C15: ='B01'!$C$6 -> 15000 | E15: Section 3.2.3.5
B16: Upper | C16: ='B01'!$C$6 -> 15000 | E16: Section 3.2.3.5
A17: Concentration in fish | B17: ConcFish | C17: ConcWat × BCF
B18: Central | C18: =C9*C14 -> 68130 | D18: mg/kg | E18: Eq
B19: Lower | C19: =C10*C15 -> 3406.5 | E19: Eq
B20: Upper | C20: =C11*C16 -> 272520 | E20: Eq
A21: Receptor
A22: Body weight | B22: BW | C22: =A02b!$C$47 -> 5 | D22: kg | E22: U.S. EPA/ORD 1993
A23: Allometric coefficients for caloric requirement per day in kilocalories and BW in grams
B24: alpha | C24: =A02b!$C$48 -> 0.6167 | E24: U.S. EPA/ORD 1993
B25: beta | C25: =A02b!$C$49 -> 0.862 | E25: U.S. EPA/ORD 1993
A26: Caloric requirement per day | B26: KR | C26: =C24*(C22*1000)^C25 -> 951.8885266 | D26: kcal/day | E26: Eq
A27: Caloric content of commodity (dry weight) | B27: KCD | C27: 4.47 | D27: kcal/gdw [Note 1] | E27: WkMk Documentation
A28: Food consumed per day (dry weight) | B28: AmntDry | C28: = KR ÷ KCD
C29: =C26/C27 -> 212.9504534 | D29: gdry/day | E29: Eq
A30: Water content of vegetation as a proportion | B30: PropWater | C30: 0.7 | D30: gwater/gfood | E30: WkMk Documentation
A31: Dry weight content of vegetation as a proportion | B31: PropDry | C31: = 1-PropWater
C32: =1-C30 -> 0.3 | D32: gdry/gfood | E32: Eq
A33: Amount of fish consumed per day, wet weight | B33: AmntFish | C33: = (AmntDry ÷ PropDry) ÷ (1000g/kg)
B34: Central | C34: =(C29/C32)/1000 -> 0.7098348446 | D34: kgfood/day | E34: Eq
B35: Lower | C35: =C34*0.3 -> 0.2129504534 | D35: Note 1 | E35: Eq
B36: Upper | C36: =C34*1.7 -> 1.206719236 | D36: Note 1 | E36: Eq
A37: Proportion of diet that is contaminated | B37: Prop
B38: Central | C38: 0.3 | D38: Unitless | E38: Scenario parameter
B39: Lower | C39: 0.1 | E39: Scenario parameter
B40: Upper | C40: 1 | E40: Scenario parameter
A41: Dose
A42: Toxic Equivalency Factor for formulation: (See risk assessment if this has a value other than 1.) | B42: TEF
B43: Central | C43: ='A01'!C$35 -> 1 | D43: Unitless | E43: Worksheet A01
B44: Lower | C44: ='A01'!C$36 -> 1 | D44: Note 2 | E44: Worksheet A01
B45: Upper | C45: ='A01'!C$37 -> 1 | D45: Note 2 | E45: Worksheet A01
A46: Dose | B46: Dose | C46: = ConcFish × AmntFish × Prop ÷ BW
B47: Central | C47: =C18*C34*C38/C$22 -> 2901.662878 | D47: mg/kg | E47: Eq
B48: Lower | C48: =C19*C35*C39/C$22 -> 14.50831439 | D48: mg/kg | E48: Eq
B49: Upper | C49: 65771.02523 | D49: mg/kg | E49: Eq
E50: FishKcalV6

Sheet F03c
A1: Acute scenario for the consumption of Contaminated Fish ( Accidental Spill) by Bird, piscivorous
A2: Short Title | B2: Fish consumption, accidental spill | E2: FishKcalV6
A3: Predator | B3: Bird, piscivorous
A4: Food Item (Prey) | B4: Fish
A5: Duration | B5: Acute | E5: Scenario parameter
A6: Parameter/Assumption | B6: Code / Range | C6: Equation/ Value | D6: Units | E6: Reference/Designation
A7: Water
A8: Concentration in water | B8: ConcWat
B9: Central | C9: =B04b!Acute_C -> 4.542 | D9: mg/L | E9: ='B04b'!Acute_C
B10: Lower | C10: =B04b!Acute_L -> 0.2271 | E10: ='B04b'!Acute_L
B11: Upper | C11: =B04b!Acute_U -> 18.168 | E11: ='B04b'!Acute_U
A12: Fish
A13: Bioconcentration factor | B13: BCF
B14: Central | C14: ='B01'!$C$6 -> 15000 | D14: L/kg | E14: Section 3.2.3.5
B15: Lower | C15: ='B01'!$C$6 -> 15000 | E15: Section 3.2.3.5
B16: Upper | C16: ='B01'!$C$6 -> 15000 | E16: Section 3.2.3.5
A17: Concentration in fish | B17: ConcFish | C17: ConcWat × BCF
B18: Central | C18: =C9*C14 -> 68130 | D18: mg/kg | E18: Eq
B19: Lower | C19: =C10*C15 -> 3406.5 | E19: Eq
B20: Upper | C20: =C11*C16 -> 272520 | E20: Eq
A21: Receptor
A22: Body weight | B22: BW | C22: =A02b!$C$24 -> 2.4 | D22: kg | E22: Sibley 2000
A23: Allometric coefficients for caloric requirement per day in kilocalories and BW in grams
B24: alpha | C24: =A02b!$C$27 -> 1.916 | E24: U.S. EPA/ORD 1993
B25: beta | C25: =A02b!$C$28 -> 0.704 | E25: U.S. EPA/ORD 1993
A26: Caloric requirement per day | B26: KR | C26: =C24*(C22*1000)^C25 -> 459.2659192 | D26: kcal/day | E26: Eq
A27: Caloric content of commodity (dry weight) | B27: KCD | C27: 3.87 | D27: kcal/gdw [Note 1] | E27: WkMk Documentation
A28: Food consumed per day (dry weight) | B28: AmntDry | C28: = KR ÷ KCD
C29: =C26/C27 -> 118.6733641 | D29: gdry/day | E29: Eq
A30: Water content of vegetation as a proportion | B30: PropWater | C30: 0.7 | D30: gwater/gfood | E30: WkMk Documentation
A31: Dry weight content of vegetation as a proportion | B31: PropDry | C31: = 1-PropWater
C32: =1-C30 -> 0.3 | D32: gdry/gfood | E32: Eq
A33: Amount of fish consumed per day, wet weight | B33: AmntFish | C33: = (AmntDry ÷ PropDry) ÷ (1000g/kg)
B34: Central | C34: =(C29/C32)/1000 -> 0.3955778805 | D34: kgfood/day | E34: Eq
B35: Lower | C35: =C34*0.3 -> 0.1186733641 | D35: Note 1 | E35: Eq
B36: Upper | C36: =C34*1.7 -> 0.6724823968 | D36: Note 1 | E36: Eq
A37: Proportion of diet that is contaminated | B37: Prop
B38: Central | C38: 0.3 | D38: Unitless | E38: Scenario parameter
B39: Lower | C39: 0.1 | E39: Scenario parameter
B40: Upper | C40: 1 | E40: Scenario parameter
A41: Dose
A42: Toxic Equivalency Factor for formulation: (See risk assessment if this has a value other than 1.) | B42: TEF
B43: Central | C43: ='A01'!C$35 -> 1 | D43: Unitless | E43: Worksheet A01
B44: Lower | C44: ='A01'!C$36 -> 1 | D44: Note 2 | E44: Worksheet A01
B45: Upper | C45: ='A01'!C$37 -> 1 | D45: Note 2 | E45: Worksheet A01
A46: Dose | B46: Dose | C46: = ConcFish × AmntFish × Prop ÷ BW
B47: Central | C47: =C18*C34*C38/C$22 -> 3368.840125 | D47: mg/kg | E47: Eq
B48: Lower | C48: =C19*C35*C39/C$22 -> 16.84420062 | D48: mg/kg | E48: Eq
B49: Upper | C49: 76360.37616 | D49: mg/kg | E49: Eq
E50: FishKcalV6

Sheet F04a
A1: Consumption of Seeds by a Small Mammal after Acute exposure.
A2: Short Title | B2: Seeds | E2: FdKcalV6
A3: Receptor | B3: Mammal, small
A4: Duration | B4: Acute | E4: Scenario parameter
A5: Material consumed | B5: Fruit
A6: Parameter/Assumption | B6: Code / Range | C6: Equation/ Value | D6: Units | E6: Reference/Designation
A7: Commodity
A8: Concentration on consumed commodity | B8: Conc
B9: Central | C9: =B05a!Acute_C -> 0.00279 | D9: mg/kg food wet weight | E9: ='B05a'!Acute_C
B10: Lower | C10: =B05a!Acute_L -> 0.000806 | E10: ='B05a'!Acute_L
B11: Upper | C11: =B05a!Acute_U -> 0.00651 | E11: ='B05a'!Acute_U
A12: Receptor
A13: Body weight | B13: BW | C13: =A02b!$C$71 -> 0.02 | D13: kg | E13: Default
A14: Allometric coefficients for caloric requirement per day in kilocalories and BW in grams
B15: alpha | C15: =A02b!$C$75 -> 2.514 | E15: U.S. EPA/ORD 1993
B16: beta | C16: =A02b!$C$76 -> 0.507 | E16: U.S. EPA/ORD 1993
A17: Caloric requirement per day | B17: KR | C17: = alpha x (BW x 1kg/1000g)beta
C18: =C15*((C13*1000)^C16) -> 11.48120526 | D18: kcal/day | E18: Eq
A19: Caloric content of commodity (dry weight) | B19: KCD | C19: 4.92 | D19: kcal/gdw [Note 1] | E19: WkMk Documentation
A20: Food consumed per day (dry weight) | B20: AmntDry | C20: = KR ÷ KCD
C21: =C18/C19 -> 2.333578304 | D21: gdry/day | E21: Eq
A22: Water content of vegetation as a proportion | B22: PropWater | C22: 0.093 | D22: gwater/gfood | E22: WkMk Documentation
A23: Dry weight content of vegetation as a proportion | B23: PropDry | C23: = 1-PropWater
C24: =1-C22 -> 0.907 | D24: gdry/gfood | E24: Eq
A25: Variability in caloric requirements not accounted for by allometric equation | B25: Error
B26: Central | C26: 1 | D26: Note 2
B27: Lower | C27: 0.3
B28: Upper | C28: 1.7
A29: Amount of food consumed per day, wet weight | B29: AmntFood | C29: = (AmntDry ÷ PropDry) ÷ (1000g/kg)
B30: Central | C30: =C26*(C$21/C$24)/1000 -> 0.002572853698 | D30: kgfood/day | E30: Eq
B31: Lower | C31: =C27*(C$21/C$24)/1000 -> 0.0007718561094 | E31: Eq
B32: Upper | C32: 0.004373851287 | E32: Eq
A33: Estimate
A34: Dose | B34: Dose | C34: = AmntFood × Conc / BW
B35: Central | C35: =$C30 * C9/C$13 -> 0.0003589130909 | D35: mg/kg bw/day | E35: Eq
B36: Lower | C36: =$C31 * C10/C$13 -> 3.110580121e-05 | E36: Eq
B37: Upper | C37: =$C32 * C11/C$13 -> 0.001423688594 | E37: Eq

Sheet F04b
A1: Consumption of Seeds by a 400 gMammal after Acute exposure.
A2: Short Title | B2: Seeds | E2: FdKcalV6
A3: Receptor | B3: Mammal, 400 g
A4: Duration | B4: Acute | E4: Scenario parameter
A5: Material consumed | B5: Fruit
A6: Parameter/Assumption | B6: Code / Range | C6: Equation/ Value | D6: Units | E6: Reference/Designation
A7: Commodity
A8: Concentration on consumed commodity | B8: Conc
B9: Central | C9: =B05a!Acute_C -> 0.00279 | D9: mg/kg food wet weight | E9: ='B05a'!Acute_C
B10: Lower | C10: =B05a!Acute_L -> 0.000806 | E10: ='B05a'!Acute_L
B11: Upper | C11: =B05a!Acute_U -> 0.00651 | E11: ='B05a'!Acute_U
A12: Receptor
A13: Body weight | B13: BW | C13: =A02b!$C$40 -> 0.4 | D13: kg | E13: Default
A14: Allometric coefficients for caloric requirement per day in kilocalories and BW in grams
B15: alpha | C15: =A02b!$C$43 -> 2.514 | E15: U.S. EPA/ORD 1993
B16: beta | C16: =A02b!$C$44 -> 0.507 | E16: U.S. EPA/ORD 1993
A17: Caloric requirement per day | B17: KR | C17: = alpha x (BW x 1kg/1000g)beta
C18: =C15*((C13*1000)^C16) -> 52.43360149 | D18: kcal/day | E18: Eq
A19: Caloric content of commodity (dry weight) | B19: KCD | C19: 4.92 | D19: kcal/gdw [Note 1] | E19: WkMk Documentation
A20: Food consumed per day (dry weight) | B20: AmntDry | C20: = KR ÷ KCD
C21: =C18/C19 -> 10.65723607 | D21: gdry/day | E21: Eq
A22: Water content of vegetation as a proportion | B22: PropWater | C22: 0.093 | D22: gwater/gfood | E22: WkMk Documentation
A23: Dry weight content of vegetation as a proportion | B23: PropDry | C23: = 1-PropWater
C24: =1-C22 -> 0.907 | D24: gdry/gfood | E24: Eq
A25: Variability in caloric requirements not accounted for by allometric equation | B25: Error
B26: Central | C26: 1 | D26: Note 2
B27: Lower | C27: 0.3
B28: Upper | C28: 1.7
A29: Amount of food consumed per day, wet weight | B29: AmntFood | C29: = (AmntDry ÷ PropDry) ÷ (1000g/kg)
B30: Central | C30: =C26*(C$21/C$24)/1000 -> 0.01174998465 | D30: kgfood/day | E30: Eq
B31: Lower | C31: =C27*(C$21/C$24)/1000 -> 0.003524995394 | E31: Eq
B32: Upper | C32: 0.0199749739 | E32: Eq
A33: Estimate
A34: Dose | B34: Dose | C34: = AmntFood × Conc / BW
B35: Central | C35: =$C30 * C9/C$13 -> 8.195614291e-05 | D35: mg/kg bw/day | E35: Eq
B36: Lower | C36: =$C31 * C10/C$13 -> 7.102865719e-06 | E36: Eq
B37: Upper | C37: =$C32 * C11/C$13 -> 0.0003250927002 | E37: Eq

Sheet F04c
A1: Consumption of Seeds by a large Mammal after Acute exposure.
A2: Short Title | B2: Seeds | E2: FdKcalV6
A3: Receptor | B3: Mammal, large
A4: Duration | B4: Acute | E4: Scenario parameter
A5: Material consumed | B5: Fruit
A6: Parameter/Assumption | B6: Code / Range | C6: Equation/ Value | D6: Units | E6: Reference/Designation
A7: Commodity
A8: Concentration on consumed commodity | B8: Conc
B9: Central | C9: =B05a!Acute_C -> 0.00279 | D9: mg/kg food wet weight | E9: ='B05a'!Acute_C
B10: Lower | C10: =B05a!Acute_L -> 0.000806 | E10: ='B05a'!Acute_L
B11: Upper | C11: =B05a!Acute_U -> 0.00651 | E11: ='B05a'!Acute_U
A12: Receptor
A13: Body weight | B13: BW | C13: =A02b!$C$61 -> 70 | D13: kg | E13: Default
A14: Allometric coefficients for caloric requirement per day in kilocalories and BW in grams
B15: alpha | C15: =A02b!$C$62 -> 1.518 | E15: U.S. EPA/ORD 1993
B16: beta | C16: =A02b!$C$63 -> 0.73 | E16: U.S. EPA/ORD 1993
A17: Caloric requirement per day | B17: KR | C17: = alpha x (BW x 1kg/1000g)beta
C18: =C15*((C13*1000)^C16) -> 5226.28803 | D18: kcal/day | E18: Eq
A19: Caloric content of commodity (dry weight) | B19: KCD | C19: 4.92 | D19: kcal/gdw [Note 1] | E19: WkMk Documentation
A20: Food consumed per day (dry weight) | B20: AmntDry | C20: = KR ÷ KCD
C21: =C18/C19 -> 1062.253665 | D21: gdry/day | E21: Eq
A22: Water content of vegetation as a proportion | B22: PropWater | C22: 0.093 | D22: gwater/gfood | E22: WkMk Documentation
A23: Dry weight content of vegetation as a proportion | B23: PropDry | C23: = 1-PropWater
C24: =1-C22 -> 0.907 | D24: gdry/gfood | E24: Eq
A25: Variability in caloric requirements not accounted for by allometric equation | B25: Error
B26: Central | C26: 1 | D26: Note 2
B27: Lower | C27: 0.3
B28: Upper | C28: 1.7
A29: Amount of food consumed per day, wet weight | B29: AmntFood | C29: = (AmntDry ÷ PropDry) ÷ (1000g/kg)
B30: Central | C30: =C26*(C$21/C$24)/1000 -> 1.171172728 | D30: kgfood/day | E30: Eq
B31: Lower | C31: =C27*(C$21/C$24)/1000 -> 0.3513518185 | E31: Eq
B32: Upper | C32: 1.990993638 | E32: Eq
A33: Estimate
A34: Dose | B34: Dose | C34: = AmntFood × Conc / BW
B35: Central | C35: =$C30 * C9/C$13 -> 4.667959874e-05 | D35: mg/kg bw/day | E35: Eq
B36: Lower | C36: =$C31 * C10/C$13 -> 4.045565224e-06 | E36: Eq
B37: Upper | C37: =$C32 * C11/C$13 -> 0.0001851624083 | E37: Eq

Sheet F04d
A1: Consumption of Seeds by a Small Bird after Acute exposure.
A2: Short Title | B2: Seeds | E2: FdKcalV6
A3: Receptor | B3: Bird, small
A4: Duration | B4: Acute | E4: Scenario parameter
A5: Material consumed | B5: Fruit
A6: Parameter/Assumption | B6: Code / Range | C6: Equation/ Value | D6: Units | E6: Reference/Designation
A7: Commodity
A8: Concentration on consumed commodity | B8: Conc
B9: Central | C9: =B05a!Acute_C -> 0.00279 | D9: mg/kg food wet weight | E9: ='B05a'!Acute_C
B10: Lower | C10: =B05a!Acute_L -> 0.000806 | E10: ='B05a'!Acute_L
B11: Upper | C11: =B05a!Acute_U -> 0.00651 | E11: ='B05a'!Acute_U
A12: Receptor
A13: Body weight | B13: BW | C13: =A02b!$C$31 -> 0.01 | D13: kg | E13: Default
A14: Allometric coefficients for caloric requirement per day in kilocalories and BW in grams
B15: alpha | C15: =A02b!$C$32 -> 3.12 | E15: U.S. EPA/ORD 1993
B16: beta | C16: =A02b!$C$33 -> 0.605 | E16: U.S. EPA/ORD 1993
A17: Caloric requirement per day | B17: KR | C17: = alpha x (BW x 1kg/1000g)beta
C18: =C15*((C13*1000)^C16) -> 12.56477147 | D18: kcal/day | E18: Eq
A19: Caloric content of commodity (dry weight) | B19: KCD | C19: 4.92 | D19: kcal/gdw [Note 1] | E19: WkMk Documentation
A20: Food consumed per day (dry weight) | B20: AmntDry | C20: = KR ÷ KCD
C21: =C18/C19 -> 2.55381534 | D21: gdry/day | E21: Eq
A22: Water content of vegetation as a proportion | B22: PropWater | C22: 0.093 | D22: gwater/gfood | E22: WkMk Documentation
A23: Dry weight content of vegetation as a proportion | B23: PropDry | C23: = 1-PropWater
C24: =1-C22 -> 0.907 | D24: gdry/gfood | E24: Eq
A25: Variability in caloric requirements not accounted for by allometric equation | B25: Error
B26: Central | C26: 1 | D26: Note 2
B27: Lower | C27: 0.3
B28: Upper | C28: 1.7
A29: Amount of food consumed per day, wet weight | B29: AmntFood | C29: = (AmntDry ÷ PropDry) ÷ (1000g/kg)
B30: Central | C30: =C26*(C$21/C$24)/1000 -> 0.002815672921 | D30: kgfood/day | E30: Eq
B31: Lower | C31: =C27*(C$21/C$24)/1000 -> 0.0008447018764 | E31: Eq
B32: Upper | C32: 0.004786643966 | E32: Eq
A33: Estimate
A34: Dose | B34: Dose | C34: = AmntFood × Conc / BW
B35: Central | C35: =$C30 * C9/C$13 -> 0.000785572745 | D35: mg/kg bw/day | E35: Eq
B36: Lower | C36: =$C31 * C10/C$13 -> 6.808297124e-05 | E36: Eq
B37: Upper | C37: =$C32 * C11/C$13 -> 0.003116105222 | E37: Eq

Sheet F04e
A1: Consumption of Seeds by a Large Bird after Acute exposure.
A2: Short Title | B2: Seeds | E2: FdKcalV6
A3: Receptor | B3: Bird, large
A4: Duration | B4: Acute | E4: Scenario parameter
A5: Material consumed | B5: Fruit
A6: Parameter/Assumption | B6: Code / Range | C6: Equation/ Value | D6: Units | E6: Reference/Designation
A7: Commodity
A8: Concentration on consumed commodity | B8: Conc
B9: Central | C9: =B05a!Acute_C -> 0.00279 | D9: mg/kg food wet weight | E9: ='B05a'!Acute_C
B10: Lower | C10: =B05a!Acute_L -> 0.000806 | E10: ='B05a'!Acute_L
B11: Upper | C11: =B05a!Acute_U -> 0.00651 | E11: ='B05a'!Acute_U
A12: Receptor
A13: Body weight | B13: BW | C13: =A02b!$C$15 -> 4 | D13: kg | E13: Default
A14: Allometric coefficients for caloric requirement per day in kilocalories and BW in grams
B15: alpha | C15: =A02b!$C$16 -> 1.146 | E15: U.S. EPA/ORD 1993
B16: beta | C16: =A02b!$C$17 -> 0.749 | E16: U.S. EPA/ORD 1993
A17: Caloric requirement per day | B17: KR | C17: = alpha x (BW x 1kg/1000g)beta
C18: =C15*((C13*1000)^C16) -> 571.6465031 | D18: kcal/day | E18: Eq
A19: Caloric content of commodity (dry weight) | B19: KCD | C19: 4.92 | D19: kcal/gdw [Note 1] | E19: WkMk Documentation
A20: Food consumed per day (dry weight) | B20: AmntDry | C20: = KR ÷ KCD
C21: =C18/C19 -> 116.1883136 | D21: gdry/day | E21: Eq
A22: Water content of vegetation as a proportion | B22: PropWater | C22: 0.093 | D22: gwater/gfood | E22: WkMk Documentation
A23: Dry weight content of vegetation as a proportion | B23: PropDry | C23: = 1-PropWater
C24: =1-C22 -> 0.907 | D24: gdry/gfood | E24: Eq
A25: Variability in caloric requirements not accounted for by allometric equation | B25: Error
B26: Central | C26: 1 | D26: Note 2
B27: Lower | C27: 0.3
B28: Upper | C28: 1.7
A29: Amount of food consumed per day, wet weight | B29: AmntFood | C29: = (AmntDry ÷ PropDry) ÷ (1000g/kg)
B30: Central | C30: =C26*(C$21/C$24)/1000 -> 0.1281017791 | D30: kgfood/day | E30: Eq
B31: Lower | C31: =C27*(C$21/C$24)/1000 -> 0.03843053373 | E31: Eq
B32: Upper | C32: 0.2177730245 | E32: Eq
A33: Estimate
A34: Dose | B34: Dose | C34: = AmntFood × Conc / BW
B35: Central | C35: =$C30 * C9/C$13 -> 8.935099091e-05 | D35: mg/kg bw/day | E35: Eq
B36: Lower | C36: =$C31 * C10/C$13 -> 7.743752546e-06 | E36: Eq
B37: Upper | C37: =$C32 * C11/C$13 -> 0.0003544255973 | E37: Eq

Sheet F05a
A1: Consumption of Broadleaf Vegetation by a Mammal, small after Acute exposure.
A2: Short Title | B2: Short grass | E2: FdKcalV6
A3: Receptor | B3: Mammal, small
A4: Duration | B4: Acute | E4: Scenario parameter
A5: Material consumed | B5: Short grass
A6: Parameter/Assumption | B6: Code / Range | C6: Equation/ Value | D6: Units | E6: Reference/Designation
A7: Commodity
A8: Concentration on consumed commodity | B8: Conc
B9: Central | C9: =B05b!Acute_C -> 0.02511 | D9: mg/kg food wet weight | E9: ='B05b'!Acute_C
B10: Lower | C10: =B05b!Acute_L -> 0.01922 | E10: ='B05b'!Acute_L
B11: Upper | C11: =B05b!Acute_U -> 0.0558 | E11: ='B05b'!Acute_U
A12: Receptor
A13: Body weight | B13: BW | C13: =A02b!$C$71 -> 0.02 | D13: kg | E13: Default
A14: Allometric coefficients for caloric requirement per day in kilocalories and BW in grams
B15: alpha | C15: =A02b!$C$75 -> 2.514 | E15: U.S. EPA/ORD 1993
B16: beta | C16: =A02b!$C$76 -> 0.507 | E16: U.S. EPA/ORD 1993
A17: Caloric requirement per day | B17: KR | C17: = alpha x (BW x 1kg/1000g)beta
C18: =C15*((C13*1000)^C16) -> 11.48120526 | D18: kcal/day | E18: Eq
A19: Caloric content of commodity (dry weight) | B19: KCD | C19: 4.92 | D19: kcal/gdw [Note 1] | E19: WkMk Documentation
A20: Food consumed per day (dry weight) | B20: AmntDry | C20: = KR ÷ KCD
C21: =C18/C19 -> 2.333578304 | D21: gdry/day | E21: Eq
A22: Water content of vegetation as a proportion | B22: PropWater | C22: 0.093 | D22: gwater/gfood | E22: WkMk Documentation
A23: Dry weight content of vegetation as a proportion | B23: PropDry | C23: = 1-PropWater
C24: =1-C22 -> 0.907 | D24: gdry/gfood | E24: Eq
A25: Variability in caloric requirements not accounted for by allometric equation | B25: Error
B26: Central | C26: 1 | D26: Note 2
B27: Lower | C27: 0.3
B28: Upper | C28: 1.7
A29: Amount of food consumed per day, wet weight | B29: AmntFood | C29: = (AmntDry ÷ PropDry) ÷ (1000g/kg)
B30: Central | C30: =C26*(C$21/C$24)/1000 -> 0.002572853698 | D30: kgfood/day | E30: Eq
B31: Lower | C31: =C27*(C$21/C$24)/1000 -> 0.0007718561094 | E31: Eq
B32: Upper | C32: 0.004373851287 | E32: Eq
A33: Estimate
A34: Dose | B34: Dose | C34: = AmntFood × Conc / BW
B35: Central | C35: =$C30 * C9/C$13 -> 0.003230217818 | D35: mg/kg bw/day | E35: Eq
B36: Lower | C36: =$C31 * C10/C$13 -> 0.0007417537211 | E36: Eq
B37: Upper | C37: =$C32 * C11/C$13 -> 0.01220304509 | E37: Eq

Sheet F05b
A1: Consumption of Broadleaf Vegetation by a Mammal, 400 g after Acute exposure.
A2: Short Title | B2: Short grass | E2: FdKcalV6
A3: Receptor | B3: Mammal, 400 g
A4: Duration | B4: Acute | E4: Scenario parameter
A5: Material consumed | B5: Short grass
A6: Parameter/Assumption | B6: Code / Range | C6: Equation/ Value | D6: Units | E6: Reference/Designation
A7: Commodity
A8: Concentration on consumed commodity | B8: Conc
B9: Central | C9: =B05b!Acute_C -> 0.02511 | D9: mg/kg food wet weight | E9: ='B05b'!Acute_C
B10: Lower | C10: =B05b!Acute_L -> 0.01922 | E10: ='B05b'!Acute_L
B11: Upper | C11: =B05b!Acute_U -> 0.0558 | E11: ='B05b'!Acute_U
A12: Receptor
A13: Body weight | B13: BW | C13: =A02b!$C$40 -> 0.4 | D13: kg | E13: Default
A14: Allometric coefficients for caloric requirement per day in kilocalories and BW in grams
B15: alpha | C15: =A02b!$C$43 -> 2.514 | E15: U.S. EPA/ORD 1993
B16: beta | C16: =A02b!$C$44 -> 0.507 | E16: U.S. EPA/ORD 1993
A17: Caloric requirement per day | B17: KR | C17: = alpha x (BW x 1kg/1000g)beta
C18: =C15*((C13*1000)^C16) -> 52.43360149 | D18: kcal/day | E18: Eq
A19: Caloric content of commodity (dry weight) | B19: KCD | C19: 2.26 | D19: kcal/gdw [Note 1] | E19: WkMk Documentation
A20: Food consumed per day (dry weight) | B20: AmntDry | C20: = KR ÷ KCD
C21: =C18/C19 -> 23.20070862 | D21: gdry/day | E21: Eq
A22: Water content of vegetation as a proportion | B22: PropWater | C22: 0.85 | D22: gwater/gfood | E22: WkMk Documentation
A23: Dry weight content of vegetation as a proportion | B23: PropDry | C23: = 1-PropWater
C24: =1-C22 -> 0.15 | D24: gdry/gfood | E24: Eq
A25: Variability in caloric requirements not accounted for by allometric equation | B25: Error
B26: Central | C26: 1 | D26: Note 2
B27: Lower | C27: 0.3
B28: Upper | C28: 1.7
A29: Amount of food consumed per day, wet weight | B29: AmntFood | C29: = (AmntDry ÷ PropDry) ÷ (1000g/kg)
B30: Central | C30: =C26*(C$21/C$24)/1000 -> 0.1546713908 | D30: kgfood/day | E30: Eq
B31: Lower | C31: =C27*(C$21/C$24)/1000 -> 0.04640141724 | E31: Eq
B32: Upper | C32: 0.2629413644 | E32: Eq
A33: Estimate
A34: Dose | B34: Dose | C34: = AmntFood × Conc / BW
B35: Central | C35: =$C30 * C9/C$13 -> 0.009709496558 | D35: mg/kg bw/day | E35: Eq
B36: Lower | C36: =$C31 * C10/C$13 -> 0.002229588099 | E36: Eq
B37: Upper | C37: =$C32 * C11/C$13 -> 0.03668032033 | E37: Eq

Sheet F05c
A1: Consumption of Broadleaf Vegetation by a Mammal, large after Acute exposure.
A2: Short Title | B2: Short grass | E2: FdKcalV6
A3: Receptor | B3: Mammal, large
A4: Duration | B4: Acute | E4: Scenario parameter
A5: Material consumed | B5: Short grass
A6: Parameter/Assumption | B6: Code / Range | C6: Equation/ Value | D6: Units | E6: Reference/Designation
A7: Commodity
A8: Concentration on consumed commodity | B8: Conc
B9: Central | C9: =B05b!Acute_C -> 0.02511 | D9: mg/kg food wet weight | E9: ='B05b'!Acute_C
B10: Lower | C10: =B05b!Acute_L -> 0.01922 | E10: ='B05b'!Acute_L
B11: Upper | C11: =B05b!Acute_U -> 0.0558 | E11: ='B05b'!Acute_U
A12: Receptor
A13: Body weight | B13: BW | C13: =A02b!$C$61 -> 70 | D13: kg | E13: Default
A14: Allometric coefficients for caloric requirement per day in kilocalories and BW in grams
B15: alpha | C15: =A02b!$C$62 -> 1.518 | E15: U.S. EPA/ORD 1993
B16: beta | C16: =A02b!$C$63 -> 0.73 | E16: U.S. EPA/ORD 1993
A17: Caloric requirement per day | B17: KR | C17: = alpha x (BW x 1kg/1000g)beta
C18: =C15*((C13*1000)^C16) -> 5226.28803 | D18: kcal/day | E18: Eq
A19: Caloric content of commodity (dry weight) | B19: KCD | C19: 2.26 | D19: kcal/gdw [Note 1] | E19: WkMk Documentation
A20: Food consumed per day (dry weight) | B20: AmntDry | C20: = KR ÷ KCD
C21: =C18/C19 -> 2312.516827 | D21: gdry/day | E21: Eq
A22: Water content of vegetation as a proportion | B22: PropWater | C22: 0.85 | D22: gwater/gfood | E22: WkMk Documentation
A23: Dry weight content of vegetation as a proportion | B23: PropDry | C23: = 1-PropWater
C24: =1-C22 -> 0.15 | D24: gdry/gfood | E24: Eq
A25: Variability in caloric requirements not accounted for by allometric equation | B25: Error
B26: Central | C26: 1 | D26: Note 2
B27: Lower | C27: 0.3
B28: Upper | C28: 1.7
A29: Amount of food consumed per day, wet weight | B29: AmntFood | C29: = (AmntDry ÷ PropDry) ÷ (1000g/kg)
B30: Central | C30: =C26*(C$21/C$24)/1000 -> 15.41677885 | D30: kgfood/day | E30: Eq
B31: Lower | C31: =C27*(C$21/C$24)/1000 -> 4.625033655 | E31: Eq
B32: Upper | C32: 26.20852404 | E32: Eq
A33: Estimate
A34: Dose | B34: Dose | C34: = AmntFood × Conc / BW
B35: Central | C35: =$C30 * C9/C$13 -> 0.005530218813 | D35: mg/kg bw/day | E35: Eq
B36: Lower | C36: =$C31 * C10/C$13 -> 0.001269902098 | E36: Eq
B37: Upper | C37: =$C32 * C11/C$13 -> 0.02089193774 | E37: Eq

Sheet F05d
A1: Consumption of Broadleaf Vegetation by a Bird, small after Acute exposure.
A2: Short Title | B2: Short grass | E2: FdKcalV6
A3: Receptor | B3: Bird, small
A4: Duration | B4: Acute | E4: Scenario parameter
A5: Material consumed | B5: Short grass
A6: Parameter/Assumption | B6: Code / Range | C6: Equation/ Value | D6: Units | E6: Reference/Designation
A7: Commodity
A8: Concentration on consumed commodity | B8: Conc
B9: Central | C9: =B05b!Acute_C -> 0.02511 | D9: mg/kg food wet weight | E9: ='B05b'!Acute_C
B10: Lower | C10: =B05b!Acute_L -> 0.01922 | E10: ='B05b'!Acute_L
B11: Upper | C11: =B05b!Acute_U -> 0.0558 | E11: ='B05b'!Acute_U
A12: Receptor
A13: Body weight | B13: BW | C13: =A02b!$C$31 -> 0.01 | D13: kg | E13: Default
A14: Allometric coefficients for caloric requirement per day in kilocalories and BW in grams
B15: alpha | C15: =A02b!$C$32 -> 3.12 | E15: U.S. EPA/ORD 1993
B16: beta | C16: =A02b!$C$33 -> 0.605 | E16: U.S. EPA/ORD 1993
A17: Caloric requirement per day | B17: KR | C17: = alpha x (BW x 1kg/1000g)beta
C18: =C15*((C13*1000)^C16) -> 12.56477147 | D18: kcal/day | E18: Eq
A19: Caloric content of commodity (dry weight) | B19: KCD | C19: 2 | D19: kcal/gdw [Note 1] | E19: WkMk Documentation
A20: Food consumed per day (dry weight) | B20: AmntDry | C20: = KR ÷ KCD
C21: =C18/C19 -> 6.282385735 | D21: gdry/day | E21: Eq
A22: Water content of vegetation as a proportion | B22: PropWater | C22: 0.85 | D22: gwater/gfood | E22: WkMk Documentation
A23: Dry weight content of vegetation as a proportion | B23: PropDry | C23: = 1-PropWater
C24: =1-C22 -> 0.15 | D24: gdry/gfood | E24: Eq
A25: Variability in caloric requirements not accounted for by allometric equation | B25: Error
B26: Central | C26: 1 | D26: Note 2
B27: Lower | C27: 0.3
B28: Upper | C28: 1.7
A29: Amount of food consumed per day, wet weight | B29: AmntFood | C29: = (AmntDry ÷ PropDry) ÷ (1000g/kg)
B30: Central | C30: =C26*(C$21/C$24)/1000 -> 0.04188257157 | D30: kgfood/day | E30: Eq
B31: Lower | C31: =C27*(C$21/C$24)/1000 -> 0.01256477147 | E31: Eq
B32: Upper | C32: 0.07120037167 | E32: Eq
A33: Estimate
A34: Dose | B34: Dose | C34: = AmntFood × Conc / BW
B35: Central | C35: =$C30 * C9/C$13 -> 0.1051671372 | D35: mg/kg bw/day | E35: Eq
B36: Lower | C36: =$C31 * C10/C$13 -> 0.02414949077 | E36: Eq
B37: Upper | C37: =$C32 * C11/C$13 -> 0.3972980739 | E37: Eq

Sheet F05e
A1: Consumption of Broadleaf Vegetation by a Bird, large after Acute exposure.
A2: Short Title | B2: Short grass | E2: FdKcalV6
A3: Receptor | B3: Bird, large
A4: Duration | B4: Acute | E4: Scenario parameter
A5: Material consumed | B5: Short grass
A6: Parameter/Assumption | B6: Code / Range | C6: Equation/ Value | D6: Units | E6: Reference/Designation
A7: Commodity
A8: Concentration on consumed commodity | B8: Conc
B9: Central | C9: =B05b!Acute_C -> 0.02511 | D9: mg/kg food wet weight | E9: ='B05b'!Acute_C
B10: Lower | C10: =B05b!Acute_L -> 0.01922 | E10: ='B05b'!Acute_L
B11: Upper | C11: =B05b!Acute_U -> 0.0558 | E11: ='B05b'!Acute_U
A12: Receptor
A13: Body weight | B13: BW | C13: =A02b!$C$15 -> 4 | D13: kg | E13: Default
A14: Allometric coefficients for caloric requirement per day in kilocalories and BW in grams
B15: alpha | C15: =A02b!$C$16 -> 1.146 | E15: U.S. EPA/ORD 1993
B16: beta | C16: =A02b!$C$17 -> 0.749 | E16: U.S. EPA/ORD 1993
A17: Caloric requirement per day | B17: KR | C17: = alpha x (BW x 1kg/1000g)beta
C18: =C15*((C13*1000)^C16) -> 571.6465031 | D18: kcal/day | E18: Eq
A19: Caloric content of commodity (dry weight) | B19: KCD | C19: 2 | D19: kcal/gdw [Note 1] | E19: WkMk Documentation
A20: Food consumed per day (dry weight) | B20: AmntDry | C20: = KR ÷ KCD
C21: =C18/C19 -> 285.8232515 | D21: gdry/day | E21: Eq
A22: Water content of vegetation as a proportion | B22: PropWater | C22: 0.85 | D22: gwater/gfood | E22: WkMk Documentation
A23: Dry weight content of vegetation as a proportion | B23: PropDry | C23: = 1-PropWater
C24: =1-C22 -> 0.15 | D24: gdry/gfood | E24: Eq
A25: Variability in caloric requirements not accounted for by allometric equation | B25: Error
B26: Central | C26: 1 | D26: Note 2
B27: Lower | C27: 0.3
B28: Upper | C28: 1.7
A29: Amount of food consumed per day, wet weight | B29: AmntFood | C29: = (AmntDry ÷ PropDry) ÷ (1000g/kg)
B30: Central | C30: =C26*(C$21/C$24)/1000 -> 1.905488344 | D30: kgfood/day | E30: Eq
B31: Lower | C31: =C27*(C$21/C$24)/1000 -> 0.5716465031 | E31: Eq
B32: Upper | C32: 3.239330184 | E32: Eq
A33: Estimate
A34: Dose | B34: Dose | C34: = AmntFood × Conc / BW
B35: Central | C35: =$C30 * C9/C$13 -> 0.01196170308 | D35: mg/kg bw/day | E35: Eq
B36: Lower | C36: =$C31 * C10/C$13 -> 0.002746761447 | E36: Eq
B37: Upper | C37: =$C32 * C11/C$13 -> 0.04518865607 | E37: Eq

Sheet F06a
A1: Consumption of contaminated water by Mammal, small, Peak Concentrations
A2: Short Title | B2: Peak Concentrations | E2: WatAlloV6
A3: Receptor | B3: Mammal, small
A4: Duration | B4: Acute | E4: Scenario parameter
A5: Parameter/Assumption | B5: Code / Range | C5: Equation/ Value | D5: Units | E5: Reference/Designation
A6: Concentration in water | B6: ConcWat
B7: Central | C7: =B04a!Acute_C -> 0.0006 | D7: mg/L | E7: ='B04a'!Acute_C
B8: Lower | C8: =B04a!Acute_L -> 2e-05 | E8: ='B04a'!Acute_L
B9: Upper | C9: =B04a!Acute_U -> 0.0022 | E9: ='B04a'!Acute_U
A10: Receptor
A11: Body weight | B11: BW | C11: =A02b!$C$71 -> 0.02 | D11: kg | E11: Default
A12: Allometric coefficients forwater consumption per day in liters and BW in kilograms
B13: alpha | C13: =A02b!$C$79 -> 0.099 | E13: U.S. EPA/ORD 1993
B14: beta | C14: =A02b!$C$80 -> 0.9 | E14: U.S. EPA/ORD 1993
A15: Amount of water consumed per day | C15: Amnt = alpha BW beta
B16: Amnt | C16: =C13*(C11^C14) -> 0.002927940121 | D16: liters | E16: Eq
A17: Absorbed Dose | B17: Dose | C17: ConcWat × Amnt ÷ BW
B18: Central | C18: =C7*C$16/C$11 -> 8.783820362e-05 | D18: mg/kg | E18: Eq
B19: Lower | C19: =C8*C$16/C$11 -> 2.927940121e-06 | D19: mg/kg | E19: Eq
B20: Upper | C20: =C9*C$16/C$11 -> 0.0003220734133 | D20: mg/kg | E20: Eq

Sheet F06b
A1: Consumption of contaminated water by Mammal, 400 g, Peak Concentrations
A2: Short Title | B2: Peak Concentrations | E2: WatAlloV6
A3: Receptor | B3: Mammal, 400 g
A4: Duration | B4: Acute | E4: Scenario parameter
A5: Parameter/Assumption | B5: Code / Range | C5: Equation/ Value | D5: Units | E5: Reference/Designation
A6: Concentration in water | B6: ConcWat
B7: Central | C7: =B04a!Acute_C -> 0.0006 | D7: mg/L | E7: ='B04a'!Acute_C
B8: Lower | C8: =B04a!Acute_L -> 2e-05 | E8: ='B04a'!Acute_L
B9: Upper | C9: =B04a!Acute_U -> 0.0022 | E9: ='B04a'!Acute_U
A10: Receptor
A11: Body weight | B11: BW | C11: =A02b!$C$40 -> 0.4 | D11: kg | E11: Default
A12: Allometric coefficients forwater consumption per day in liters and BW in kilograms
B13: alpha | C13: =A02b!$C$45 -> 0.099 | E13: U.S. EPA/ORD 1993
B14: beta | C14: =A02b!$C$46 -> 0.9 | E14: U.S. EPA/ORD 1993
A15: Amount of water consumed per day | C15: Amnt = alpha BW beta
B16: Amnt | C16: =C13*(C11^C14) -> 0.04339994576 | D16: liters | E16: Eq
A17: Absorbed Dose | B17: Dose | C17: ConcWat × Amnt ÷ BW
B18: Central | C18: =C7*C$16/C$11 -> 6.509991865e-05 | D18: mg/kg | E18: Eq
B19: Lower | C19: =C8*C$16/C$11 -> 2.169997288e-06 | D19: mg/kg | E19: Eq
B20: Upper | C20: =C9*C$16/C$11 -> 0.0002386997017 | D20: mg/kg | E20: Eq

Sheet F06c
A1: Consumption of contaminated water by Mammal, carnivorous, Peak Concentrations
A2: Short Title | B2: Peak Concentrations | E2: WatAlloV6
A3: Receptor | B3: Mammal, carnivorous
A4: Duration | B4: Acute | E4: Scenario parameter
A5: Parameter/Assumption | B5: Code / Range | C5: Equation/ Value | D5: Units | E5: Reference/Designation
A6: Concentration in water | B6: ConcWat
B7: Central | C7: =B04a!Acute_C -> 0.0006 | D7: mg/L | E7: ='B04a'!Acute_C
B8: Lower | C8: =B04a!Acute_L -> 2e-05 | E8: ='B04a'!Acute_L
B9: Upper | C9: =B04a!Acute_U -> 0.0022 | E9: ='B04a'!Acute_U
A10: Receptor
A11: Body weight | B11: BW | C11: =A02b!$C$47 -> 5 | D11: kg | E11: U.S. EPA/ORD 1993
A12: Allometric coefficients forwater consumption per day in liters and BW in kilograms
B13: alpha | C13: =A02b!$C$50 -> 0.099 | E13: U.S. EPA/ORD 1993
B14: beta | C14: =A02b!$C$51 -> 0.9 | E14: U.S. EPA/ORD 1993
A15: Amount of water consumed per day | C15: Amnt = alpha BW beta
B16: Amnt | C16: =C13*(C11^C14) -> 0.4214132616 | D16: liters | E16: Eq
A17: Absorbed Dose | B17: Dose | C17: ConcWat × Amnt ÷ BW
B18: Central | C18: =C7*C$16/C$11 -> 5.05695914e-05 | D18: mg/kg | E18: Eq
B19: Lower | C19: =C8*C$16/C$11 -> 1.685653047e-06 | D19: mg/kg | E19: Eq
B20: Upper | C20: =C9*C$16/C$11 -> 0.0001854218351 | D20: mg/kg | E20: Eq

Sheet F06d
A1: Consumption of contaminated water by Mammal, large, Peak Concentrations
A2: Short Title | B2: Peak Concentrations | E2: WatAlloV6
A3: Receptor | B3: Mammal, large
A4: Duration | B4: Acute | E4: Scenario parameter
A5: Parameter/Assumption | B5: Code / Range | C5: Equation/ Value | D5: Units | E5: Reference/Designation
A6: Concentration in water | B6: ConcWat
B7: Central | C7: =B04a!Acute_C -> 0.0006 | D7: mg/L | E7: ='B04a'!Acute_C
B8: Lower | C8: =B04a!Acute_L -> 2e-05 | E8: ='B04a'!Acute_L
B9: Upper | C9: =B04a!Acute_U -> 0.0022 | E9: ='B04a'!Acute_U
A10: Receptor
A11: Body weight | B11: BW | C11: =A02b!$C$61 -> 70 | D11: kg | E11: Default
A12: Allometric coefficients forwater consumption per day in liters and BW in kilograms
B13: alpha | C13: =A02b!$C$64 -> 0.099 | E13: U.S. EPA/ORD 1993
B14: beta | C14: =A02b!$C$65 -> 0.9 | E14: U.S. EPA/ORD 1993
A15: Amount of water consumed per day | C15: Amnt = alpha BW beta
B16: Amnt | C16: =C13*(C11^C14) -> 4.531306412 | D16: liters | E16: Eq
A17: Absorbed Dose | B17: Dose | C17: ConcWat × Amnt ÷ BW
B18: Central | C18: =C7*C$16/C$11 -> 3.883976924e-05 | D18: mg/kg | E18: Eq
B19: Lower | C19: =C8*C$16/C$11 -> 1.294658975e-06 | D19: mg/kg | E19: Eq
B20: Upper | C20: =C9*C$16/C$11 -> 0.0001424124872 | D20: mg/kg | E20: Eq

Sheet F06e
A1: Consumption of contaminated water by Bird, small, Peak Concentrations
A2: Short Title | B2: Peak Concentrations | E2: WatAlloV6
A3: Receptor | B3: Bird, small
A4: Duration | B4: Acute | E4: Scenario parameter
A5: Parameter/Assumption | B5: Code / Range | C5: Equation/ Value | D5: Units | E5: Reference/Designation
A6: Concentration in water | B6: ConcWat
B7: Central | C7: =B04a!Acute_C -> 0.0006 | D7: mg/L | E7: ='B04a'!Acute_C
B8: Lower | C8: =B04a!Acute_L -> 2e-05 | E8: ='B04a'!Acute_L
B9: Upper | C9: =B04a!Acute_U -> 0.0022 | E9: ='B04a'!Acute_U
A10: Receptor
A11: Body weight | B11: BW | C11: =A02b!$C$31 -> 0.01 | D11: kg | E11: Default
A12: Allometric coefficients forwater consumption per day in liters and BW in kilograms
B13: alpha | C13: =A02b!$C$34 -> 0.059 | E13: U.S. EPA/ORD 1993
B14: beta | C14: =A02b!$C$35 -> 0.67 | E14: U.S. EPA/ORD 1993
A15: Amount of water consumed per day | C15: Amnt = alpha BW beta
B16: Amnt | C16: =C13*(C11^C14) -> 0.002696820319 | D16: liters | E16: Eq
A17: Absorbed Dose | B17: Dose | C17: ConcWat × Amnt ÷ BW
B18: Central | C18: =C7*C$16/C$11 -> 0.0001618092191 | D18: mg/kg | E18: Eq
B19: Lower | C19: =C8*C$16/C$11 -> 5.393640637e-06 | D19: mg/kg | E19: Eq
B20: Upper | C20: =C9*C$16/C$11 -> 0.0005933004701 | D20: mg/kg | E20: Eq

Sheet F06f
A1: Consumption of contaminated water by Bird, large, Peak Concentrations
A2: Short Title | B2: Peak Concentrations | E2: WatAlloV6
A3: Receptor | B3: Bird, large
A4: Duration | B4: Acute | E4: Scenario parameter
A5: Parameter/Assumption | B5: Code / Range | C5: Equation/ Value | D5: Units | E5: Reference/Designation
A6: Concentration in water | B6: ConcWat
B7: Central | C7: =B04a!Acute_C -> 0.0006 | D7: mg/L | E7: ='B04a'!Acute_C
B8: Lower | C8: =B04a!Acute_L -> 2e-05 | E8: ='B04a'!Acute_L
B9: Upper | C9: =B04a!Acute_U -> 0.0022 | E9: ='B04a'!Acute_U
A10: Receptor
A11: Body weight | B11: BW | C11: =A02b!$C$15 -> 4 | D11: kg | E11: Default
A12: Allometric coefficients forwater consumption per day in liters and BW in kilograms
B13: alpha | C13: =A02b!$C$18 -> 0.059 | E13: U.S. EPA/ORD 1993
B14: beta | C14: =A02b!$C$19 -> 0.67 | E14: U.S. EPA/ORD 1993
A15: Amount of water consumed per day | C15: Amnt = alpha BW beta
B16: Amnt | C16: =C13*(C11^C14) -> 0.1493592781 | D16: liters | E16: Eq
A17: Absorbed Dose | B17: Dose | C17: ConcWat × Amnt ÷ BW
B18: Central | C18: =C7*C$16/C$11 -> 2.240389171e-05 | D18: mg/kg | E18: Eq
B19: Lower | C19: =C8*C$16/C$11 -> 7.467963904e-07 | D19: mg/kg | E19: Eq
B20: Upper | C20: =C9*C$16/C$11 -> 8.214760295e-05 | D20: mg/kg | E20: Eq

Sheet F09a
A1: Acute scenario for the consumption of Contaminated Fish (Peak) by Mammal, large carnivorous
A2: Short Title | B2: Fish consumption, accidental spill | E2: FishKcalV6
A3: Predator | B3: Mammal, large carnivorous
A4: Food Item (Prey) | B4: Fish
A5: Duration | B5: Acute | E5: Scenario parameter
A6: Parameter/Assumption | B6: Code / Range | C6: Equation/ Value | D6: Units | E6: Reference/Designation
A7: Water
A8: Concentration in water | B8: ConcWat
B9: Central | C9: =B04a!Acute_C -> 0.0006 | D9: mg/L | E9: ='B04a'!Acute_C
B10: Lower | C10: =B04a!Acute_L -> 2e-05 | E10: ='B04a'!Acute_L
B11: Upper | C11: =B04a!Acute_U -> 0.0022 | E11: ='B04a'!Acute_U
A12: Fish
A13: Bioconcentration factor | B13: BCF
B14: Central | C14: ='B01'!$C$6 -> 15000 | D14: L/kg | E14: Section 3.2.3.5
B15: Lower | C15: ='B01'!$C$6 -> 15000 | E15: Section 3.2.3.5
B16: Upper | C16: ='B01'!$C$6 -> 15000 | E16: Section 3.2.3.5
A17: Concentration in fish | B17: ConcFish | C17: ConcWat × BCF
B18: Central | C18: =C9*C14 -> 9 | D18: mg/kg | E18: Eq
B19: Lower | C19: =C10*C15 -> 0.3 | E19: Eq
B20: Upper | C20: =C11*C16 -> 33 | E20: Eq
A21: Receptor
A22: Body weight | B22: BW | C22: =A02b!$C$52 -> 70 | D22: kg | E22: Reid 2006
A23: Allometric coefficients for caloric requirement per day in kilocalories and BW in grams
B24: alpha | C24: =A02b!$C$53 -> 0.6167 | E24: U.S. EPA/ORD 1993
B25: beta | C25: =A02b!$C$54 -> 0.862 | E25: U.S. EPA/ORD 1993
A26: Caloric requirement per day | B26: KR | C26: =C24*(C22*1000)^C25 -> 9258.666883 | D26: kcal/day | E26: Eq
A27: Caloric content of commodity (dry weight) | B27: KCD | C27: 4.47 | D27: kcal/gdw [Note 1] | E27: WkMk Documentation
A28: Food consumed per day (dry weight) | B28: AmntDry | C28: = KR ÷ KCD
C29: =C26/C27 -> 2071.29013 | D29: gdry/day | E29: Eq
A30: Water content of vegetation as a proportion | B30: PropWater | C30: 0.7 | D30: gwater/gfood | E30: WkMk Documentation
A31: Dry weight content of vegetation as a proportion | B31: PropDry | C31: = 1-PropWater
C32: =1-C30 -> 0.3 | D32: gdry/gfood | E32: Eq
A33: Amount of fish consumed per day, wet weight | B33: AmntFish | C33: = (AmntDry ÷ PropDry) ÷ (1000g/kg)
B34: Central | C34: =(C29/C32)/1000 -> 6.904300435 | D34: kgfood/day | E34: Eq
B35: Lower | C35: =C34*0.3 -> 2.07129013 | D35: Note 1 | E35: Eq
B36: Upper | C36: =C34*1.7 -> 11.73731074 | D36: Note 1 | E36: Eq
A37: Proportion of diet that is contaminated | B37: Prop
B38: Central | C38: 0.3 | D38: Unitless | E38: Scenario parameter
B39: Lower | C39: 0.1 | E39: Scenario parameter
B40: Upper | C40: 1 | E40: Scenario parameter
A41: Dose
A42: Toxic Equivalency Factor for formulation: (See risk assessment if this has a value other than 1.) | B42: TEF
B43: Central | C43: ='A01'!C$35 -> 1 | D43: Unitless | E43: Worksheet A01
B44: Lower | C44: ='A01'!C$36 -> 1 | D44: Note 2 | E44: Worksheet A01
B45: Upper | C45: ='A01'!C$37 -> 1 | D45: Note 2 | E45: Worksheet A01
A46: Dose | B46: Dose | C46: = ConcFish × AmntFish × Prop ÷ BW
B47: Central | C47: =C18*C34*C38/C$22 -> 0.2663087311 | D47: mg/kg | E47: Eq
B48: Lower | C48: =C19*C35*C39/C$22 -> 0.0008876957702 | D48: mg/kg | E48: Eq
B49: Upper | C49: 5.533303634 | D49: mg/kg | E49: Eq
E50: FishKcalV6

Sheet F09b
A1: Acute scenario for the consumption of Contaminated Fish (Peak) by Mammal, carnivorous
A2: Short Title | B2: Fish consumption, accidental spill | E2: FishKcalV6
A3: Predator | B3: Mammal, carnivorous
A4: Food Item (Prey) | B4: Fish
A5: Duration | B5: Acute | E5: Scenario parameter
A6: Parameter/Assumption | B6: Code / Range | C6: Equation/ Value | D6: Units | E6: Reference/Designation
A7: Water
A8: Concentration in water | B8: ConcWat
B9: Central | C9: =B04a!Acute_C -> 0.0006 | D9: mg/L | E9: ='B04a'!Acute_C
B10: Lower | C10: =B04a!Acute_L -> 2e-05 | E10: ='B04a'!Acute_L
B11: Upper | C11: =B04a!Acute_U -> 0.0022 | E11: ='B04a'!Acute_U
A12: Fish
A13: Bioconcentration factor | B13: BCF
B14: Central | C14: ='B01'!$C$6 -> 15000 | D14: L/kg | E14: Section 3.2.3.5
B15: Lower | C15: ='B01'!$C$6 -> 15000 | E15: Section 3.2.3.5
B16: Upper | C16: ='B01'!$C$6 -> 15000 | E16: Section 3.2.3.5
A17: Concentration in fish | B17: ConcFish | C17: ConcWat × BCF
B18: Central | C18: =C9*C14 -> 9 | D18: mg/kg | E18: Eq
B19: Lower | C19: =C10*C15 -> 0.3 | E19: Eq
B20: Upper | C20: =C11*C16 -> 33 | E20: Eq
A21: Receptor
A22: Body weight | B22: BW | C22: =A02b!$C$47 -> 5 | D22: kg | E22: U.S. EPA/ORD 1993
A23: Allometric coefficients for caloric requirement per day in kilocalories and BW in grams
B24: alpha | C24: =A02b!$C$48 -> 0.6167 | E24: U.S. EPA/ORD 1993
B25: beta | C25: =A02b!$C$49 -> 0.862 | E25: U.S. EPA/ORD 1993
A26: Caloric requirement per day | B26: KR | C26: =C24*(C22*1000)^C25 -> 951.8885266 | D26: kcal/day | E26: Eq
A27: Caloric content of commodity (dry weight) | B27: KCD | C27: 4.47 | D27: kcal/gdw [Note 1] | E27: WkMk Documentation
A28: Food consumed per day (dry weight) | B28: AmntDry | C28: = KR ÷ KCD
C29: =C26/C27 -> 212.9504534 | D29: gdry/day | E29: Eq
A30: Water content of vegetation as a proportion | B30: PropWater | C30: 0.7 | D30: gwater/gfood | E30: WkMk Documentation
A31: Dry weight content of vegetation as a proportion | B31: PropDry | C31: = 1-PropWater
C32: =1-C30 -> 0.3 | D32: gdry/gfood | E32: Eq
A33: Amount of fish consumed per day, wet weight | B33: AmntFish | C33: = (AmntDry ÷ PropDry) ÷ (1000g/kg)
B34: Central | C34: =(C29/C32)/1000 -> 0.7098348446 | D34: kgfood/day | E34: Eq
B35: Lower | C35: =C34*0.3 -> 0.2129504534 | D35: Note 1 | E35: Eq
B36: Upper | C36: =C34*1.7 -> 1.206719236 | D36: Note 1 | E36: Eq
A37: Proportion of diet that is contaminated | B37: Prop
B38: Central | C38: 0.3 | D38: Unitless | E38: Scenario parameter
B39: Lower | C39: 0.1 | E39: Scenario parameter
B40: Upper | C40: 1 | E40: Scenario parameter
A41: Dose
A42: Toxic Equivalency Factor for formulation: (See risk assessment if this has a value other than 1.) | B42: TEF
B43: Central | C43: ='A01'!C$35 -> 1 | D43: Unitless | E43: Worksheet A01
B44: Lower | C44: ='A01'!C$36 -> 1 | D44: Note 2 | E44: Worksheet A01
B45: Upper | C45: ='A01'!C$37 -> 1 | D45: Note 2 | E45: Worksheet A01
A46: Dose | B46: Dose | C46: = ConcFish × AmntFish × Prop ÷ BW
B47: Central | C47: =C18*C34*C38/C$22 -> 0.3833108161 | D47: mg/kg | E47: Eq
B48: Lower | C48: =C19*C35*C39/C$22 -> 0.00127770272 | D48: mg/kg | E48: Eq
B49: Upper | C49: 7.964346956 | D49: mg/kg | E49: Eq
E50: FishKcalV6

Sheet F09c
A1: Acute scenario for the consumption of Contaminated Fish (Peak) by Bird, piscivorous
A2: Short Title | B2: Fish consumption, accidental spill | E2: FishKcalV6
A3: Predator | B3: Bird, piscivorous
A4: Food Item (Prey) | B4: Fish
A5: Duration | B5: Acute | E5: Scenario parameter
A6: Parameter/Assumption | B6: Code / Range | C6: Equation/ Value | D6: Units | E6: Reference/Designation
A7: Water
A8: Concentration in water | B8: ConcWat
B9: Central | C9: =B04a!Acute_C -> 0.0006 | D9: mg/L | E9: ='B04a'!Acute_C
B10: Lower | C10: =B04a!Acute_L -> 2e-05 | E10: ='B04a'!Acute_L
B11: Upper | C11: =B04a!Acute_U -> 0.0022 | E11: ='B04a'!Acute_U
A12: Fish
A13: Bioconcentration factor | B13: BCF
B14: Central | C14: ='B01'!$C$6 -> 15000 | D14: L/kg | E14: Section 3.2.3.5
B15: Lower | C15: ='B01'!$C$6 -> 15000 | E15: Section 3.2.3.5
B16: Upper | C16: ='B01'!$C$6 -> 15000 | E16: Section 3.2.3.5
A17: Concentration in fish | B17: ConcFish | C17: ConcWat × BCF
B18: Central | C18: =C9*C14 -> 9 | D18: mg/kg | E18: Eq
B19: Lower | C19: =C10*C15 -> 0.3 | E19: Eq
B20: Upper | C20: =C11*C16 -> 33 | E20: Eq
A21: Receptor
A22: Body weight | B22: BW | C22: =A02b!$C$24 -> 2.4 | D22: kg | E22: Sibley 2000
A23: Allometric coefficients for caloric requirement per day in kilocalories and BW in grams
B24: alpha | C24: =A02b!$C$27 -> 1.916 | E24: U.S. EPA/ORD 1993
B25: beta | C25: =A02b!$C$28 -> 0.704 | E25: U.S. EPA/ORD 1993
A26: Caloric requirement per day | B26: KR | C26: =C24*(C22*1000)^C25 -> 459.2659192 | D26: kcal/day | E26: Eq
A27: Caloric content of commodity (dry weight) | B27: KCD | C27: 3.87 | D27: kcal/gdw [Note 1] | E27: WkMk Documentation
A28: Food consumed per day (dry weight) | B28: AmntDry | C28: = KR ÷ KCD
C29: =C26/C27 -> 118.6733641 | D29: gdry/day | E29: Eq
A30: Water content of vegetation as a proportion | B30: PropWater | C30: 0.7 | D30: gwater/gfood | E30: WkMk Documentation
A31: Dry weight content of vegetation as a proportion | B31: PropDry | C31: = 1-PropWater
C32: =1-C30 -> 0.3 | D32: gdry/gfood | E32: Eq
A33: Amount of fish consumed per day, wet weight | B33: AmntFish | C33: = (AmntDry ÷ PropDry) ÷ (1000g/kg)
B34: Central | C34: =(C29/C32)/1000 -> 0.3955778805 | D34: kgfood/day | E34: Eq
B35: Lower | C35: =C34*0.3 -> 0.1186733641 | D35: Note 1 | E35: Eq
B36: Upper | C36: =C34*1.7 -> 0.6724823968 | D36: Note 1 | E36: Eq
A37: Proportion of diet that is contaminated | B37: Prop
B38: Central | C38: 0.3 | D38: Unitless | E38: Scenario parameter
B39: Lower | C39: 0.1 | E39: Scenario parameter
B40: Upper | C40: 1 | E40: Scenario parameter
A41: Dose
A42: Toxic Equivalency Factor for formulation: (See risk assessment if this has a value other than 1.) | B42: TEF
B43: Central | C43: ='A01'!C$35 -> 1 | D43: Unitless | E43: Worksheet A01
B44: Lower | C44: ='A01'!C$36 -> 1 | D44: Note 2 | E44: Worksheet A01
B45: Upper | C45: ='A01'!C$37 -> 1 | D45: Note 2 | E45: Worksheet A01
A46: Dose | B46: Dose | C46: = ConcFish × AmntFish × Prop ÷ BW
B47: Central | C47: =C18*C34*C38/C$22 -> 0.4450251155 | D47: mg/kg | E47: Eq
B48: Lower | C48: =C19*C35*C39/C$22 -> 0.001483417052 | D48: mg/kg | E48: Eq
B49: Upper | C49: 9.246632956 | D49: mg/kg | E49: Eq
E50: FishKcalV6

Sheet F10a
A1: Consumption of Seeds by a Small Mammal after Chronic exposure.
A2: Short Title | B2: Seeds Chronic | E2: FdKcalV6
A3: Receptor | B3: Mammal, small
A4: Duration | B4: Chronic | E4: Scenario parameter
A5: Material consumed | B5: Fruit
A6: Parameter/Assumption | B6: Code / Range | C6: Equation/ Value | D6: Units | E6: Reference/Designation
A7: Commodity
A8: Concentration on consumed commodity | B8: Conc
B9: Central | C9: =B05a!Chronic_C -> 0.002332980814 | D9: mg/kg food wet weight | E9: ='B05a'!Chronic_C
B10: Lower | C10: =B05a!Chronic_L -> 0.0005833712945 | E10: ='B05a'!Chronic_L
B11: Upper | C11: =B05a!Chronic_U -> 0.00575012912 | E11: ='B05a'!Chronic_U
A12: Receptor
A13: Body weight | B13: BW | C13: =A02b!$C$71 -> 0.02 | D13: kg | E13: Default
A14: Allometric coefficients for caloric requirement per day in kilocalories and BW in grams
B15: alpha | C15: =A02b!$C$75 -> 2.514 | E15: U.S. EPA/ORD 1993
B16: beta | C16: =A02b!$C$76 -> 0.507 | E16: U.S. EPA/ORD 1993
A17: Caloric requirement per day | B17: KR | C17: = alpha x (BW x 1kg/1000g)beta
C18: =C15*((C13*1000)^C16) -> 11.48120526 | D18: kcal/day | E18: Eq
A19: Caloric content of commodity (dry weight) | B19: KCD | C19: 4.92 | D19: kcal/gdw [Note 1] | E19: WkMk Documentation
A20: Food consumed per day (dry weight) | B20: AmntDry | C20: = KR ÷ KCD
C21: =C18/C19 -> 2.333578304 | D21: gdry/day | E21: Eq
A22: Water content of vegetation as a proportion | B22: PropWater | C22: 0.093 | D22: gwater/gfood | E22: WkMk Documentation
A23: Dry weight content of vegetation as a proportion | B23: PropDry | C23: = 1-PropWater
C24: =1-C22 -> 0.907 | D24: gdry/gfood | E24: Eq
A25: Variability in caloric requirements not accounted for by allometric equation | B25: Error
B26: Central | C26: 1 | D26: Note 2
B27: Lower | C27: 0.3
B28: Upper | C28: 1.7
A29: Amount of food consumed per day, wet weight | B29: AmntFood | C29: = (AmntDry ÷ PropDry) ÷ (1000g/kg)
B30: Central | C30: =C26*(C$21/C$24)/1000 -> 0.002572853698 | D30: kgfood/day | E30: Eq
B31: Lower | C31: =C27*(C$21/C$24)/1000 -> 0.0007718561094 | E31: Eq
B32: Upper | C32: 0.004373851287 | E32: Eq
A33: Estimate
A34: Dose | B34: Dose | C34: = AmntFood × Conc / BW
B35: Central | C35: =$C30 * C9/C$13 -> 0.0003001209157 | D35: mg/kg bw/day | E35: Eq
B36: Lower | C36: =$C31 * C10/C$13 -> 2.251393489e-05 | E36: Eq
B37: Upper | C37: =$C32 * C11/C$13 -> 0.001257510483 | E37: Eq

Sheet F10b
A1: Consumption of Seeds by a 400 g Mammal after Chronic exposure.
A2: Short Title | B2: Seeds Chronic | E2: FdKcalV6
A3: Receptor | B3: Mammal, 400 g
A4: Duration | B4: Chronic | E4: Scenario parameter
A5: Material consumed | B5: Fruit
A6: Parameter/Assumption | B6: Code / Range | C6: Equation/ Value | D6: Units | E6: Reference/Designation
A7: Commodity
A8: Concentration on consumed commodity | B8: Conc
B9: Central | C9: =B05a!Chronic_C -> 0.002332980814 | D9: mg/kg food wet weight | E9: ='B05a'!Chronic_C
B10: Lower | C10: =B05a!Chronic_L -> 0.0005833712945 | E10: ='B05a'!Chronic_L
B11: Upper | C11: =B05a!Chronic_U -> 0.00575012912 | E11: ='B05a'!Chronic_U
A12: Receptor
A13: Body weight | B13: BW | C13: =A02b!$C$40 -> 0.4 | D13: kg | E13: Default
A14: Allometric coefficients for caloric requirement per day in kilocalories and BW in grams
B15: alpha | C15: =A02b!$C$43 -> 2.514 | E15: U.S. EPA/ORD 1993
B16: beta | C16: =A02b!$C$44 -> 0.507 | E16: U.S. EPA/ORD 1993
A17: Caloric requirement per day | B17: KR | C17: = alpha x (BW x 1kg/1000g)beta
C18: =C15*((C13*1000)^C16) -> 52.43360149 | D18: kcal/day | E18: Eq
A19: Caloric content of commodity (dry weight) | B19: KCD | C19: 4.92 | D19: kcal/gdw [Note 1] | E19: WkMk Documentation
A20: Food consumed per day (dry weight) | B20: AmntDry | C20: = KR ÷ KCD
C21: =C18/C19 -> 10.65723607 | D21: gdry/day | E21: Eq
A22: Water content of vegetation as a proportion | B22: PropWater | C22: 0.093 | D22: gwater/gfood | E22: WkMk Documentation
A23: Dry weight content of vegetation as a proportion | B23: PropDry | C23: = 1-PropWater
C24: =1-C22 -> 0.907 | D24: gdry/gfood | E24: Eq
A25: Variability in caloric requirements not accounted for by allometric equation | B25: Error
B26: Central | C26: 1 | D26: Note 2
B27: Lower | C27: 0.3
B28: Upper | C28: 1.7
A29: Amount of food consumed per day, wet weight | B29: AmntFood | C29: = (AmntDry ÷ PropDry) ÷ (1000g/kg)
B30: Central | C30: =C26*(C$21/C$24)/1000 -> 0.01174998465 | D30: kgfood/day | E30: Eq
B31: Lower | C31: =C27*(C$21/C$24)/1000 -> 0.003524995394 | E31: Eq
B32: Upper | C32: 0.0199749739 | E32: Eq
A33: Estimate
A34: Dose | B34: Dose | C34: = AmntFood × Conc / BW
B35: Central | C35: =$C30 * C9/C$13 -> 6.853122187e-05 | D35: mg/kg bw/day | E35: Eq
B36: Lower | C36: =$C31 * C10/C$13 -> 5.140952815e-06 | E36: Eq
B37: Upper | C37: =$C32 * C11/C$13 -> 0.0002871466977 | E37: Eq

Sheet F10c
A1: Consumption of Seeds by a Large Mammal after Chronic exposure.
A2: Short Title | B2: Seeds Chronic | E2: FdKcalV6
A3: Receptor | B3: Mammal, large
A4: Duration | B4: Chronic | E4: Scenario parameter
A5: Material consumed | B5: Fruit
A6: Parameter/Assumption | B6: Code / Range | C6: Equation/ Value | D6: Units | E6: Reference/Designation
A7: Commodity
A8: Concentration on consumed commodity | B8: Conc
B9: Central | C9: =B05a!Chronic_C -> 0.002332980814 | D9: mg/kg food wet weight | E9: ='B05a'!Chronic_C
B10: Lower | C10: =B05a!Chronic_L -> 0.0005833712945 | E10: ='B05a'!Chronic_L
B11: Upper | C11: =B05a!Chronic_U -> 0.00575012912 | E11: ='B05a'!Chronic_U
A12: Receptor
A13: Body weight | B13: BW | C13: =A02b!$C$61 -> 70 | D13: kg | E13: Default
A14: Allometric coefficients for caloric requirement per day in kilocalories and BW in grams
B15: alpha | C15: =A02b!$C$62 -> 1.518 | E15: U.S. EPA/ORD 1993
B16: beta | C16: =A02b!$C$63 -> 0.73 | E16: U.S. EPA/ORD 1993
A17: Caloric requirement per day | B17: KR | C17: = alpha x (BW x 1kg/1000g)beta
C18: =C15*((C13*1000)^C16) -> 5226.28803 | D18: kcal/day | E18: Eq
A19: Caloric content of commodity (dry weight) | B19: KCD | C19: 4.92 | D19: kcal/gdw [Note 1] | E19: WkMk Documentation
A20: Food consumed per day (dry weight) | B20: AmntDry | C20: = KR ÷ KCD
C21: =C18/C19 -> 1062.253665 | D21: gdry/day | E21: Eq
A22: Water content of vegetation as a proportion | B22: PropWater | C22: 0.093 | D22: gwater/gfood | E22: WkMk Documentation
A23: Dry weight content of vegetation as a proportion | B23: PropDry | C23: = 1-PropWater
C24: =1-C22 -> 0.907 | D24: gdry/gfood | E24: Eq
A25: Variability in caloric requirements not accounted for by allometric equation | B25: Error
B26: Central | C26: 1 | D26: Note 2
B27: Lower | C27: 0.3
B28: Upper | C28: 1.7
A29: Amount of food consumed per day, wet weight | B29: AmntFood | C29: = (AmntDry ÷ PropDry) ÷ (1000g/kg)
B30: Central | C30: =C26*(C$21/C$24)/1000 -> 1.171172728 | D30: kgfood/day | E30: Eq
B31: Lower | C31: =C27*(C$21/C$24)/1000 -> 0.3513518185 | E31: Eq
B32: Upper | C32: 1.990993638 | E32: Eq
A33: Estimate
A34: Dose | B34: Dose | C34: = AmntFood × Conc / BW
B35: Central | C35: =$C30 * C9/C$13 -> 3.903319293e-05 | D35: mg/kg bw/day | E35: Eq
B36: Lower | C36: =$C31 * C10/C$13 -> 2.92812236e-06 | E36: Eq
B37: Upper | C37: =$C32 * C11/C$13 -> 0.0001635495785 | E37: Eq

Sheet F10d
A1: Consumption of Seeds by a Small Bird after Chronic exposure.
A2: Short Title | B2: Seeds Chronic | E2: FdKcalV6
A3: Receptor | B3: Bird, small
A4: Duration | B4: Chronic | E4: Scenario parameter
A5: Material consumed | B5: Fruit
A6: Parameter/Assumption | B6: Code / Range | C6: Equation/ Value | D6: Units | E6: Reference/Designation
A7: Commodity
A8: Concentration on consumed commodity | B8: Conc
B9: Central | C9: =B05a!Chronic_C -> 0.002332980814 | D9: mg/kg food wet weight | E9: ='B05a'!Chronic_C
B10: Lower | C10: =B05a!Chronic_L -> 0.0005833712945 | E10: ='B05a'!Chronic_L
B11: Upper | C11: =B05a!Chronic_U -> 0.00575012912 | E11: ='B05a'!Chronic_U
A12: Receptor
A13: Body weight | B13: BW | C13: =A02b!$C$31 -> 0.01 | D13: kg | E13: Default
A14: Allometric coefficients for caloric requirement per day in kilocalories and BW in grams
B15: alpha | C15: =A02b!$C$32 -> 3.12 | E15: U.S. EPA/ORD 1993
B16: beta | C16: =A02b!$C$33 -> 0.605 | E16: U.S. EPA/ORD 1993
A17: Caloric requirement per day | B17: KR | C17: = alpha x (BW x 1kg/1000g)beta
C18: =C15*((C13*1000)^C16) -> 12.56477147 | D18: kcal/day | E18: Eq
A19: Caloric content of commodity (dry weight) | B19: KCD | C19: 4.92 | D19: kcal/gdw [Note 1] | E19: WkMk Documentation
A20: Food consumed per day (dry weight) | B20: AmntDry | C20: = KR ÷ KCD
C21: =C18/C19 -> 2.55381534 | D21: gdry/day | E21: Eq
A22: Water content of vegetation as a proportion | B22: PropWater | C22: 0.093 | D22: gwater/gfood | E22: WkMk Documentation
A23: Dry weight content of vegetation as a proportion | B23: PropDry | C23: = 1-PropWater
C24: =1-C22 -> 0.907 | D24: gdry/gfood | E24: Eq
A25: Variability in caloric requirements not accounted for by allometric equation | B25: Error
B26: Central | C26: 1 | D26: Note 2
B27: Lower | C27: 0.3
B28: Upper | C28: 1.7
A29: Amount of food consumed per day, wet weight | B29: AmntFood | C29: = (AmntDry ÷ PropDry) ÷ (1000g/kg)
B30: Central | C30: =C26*(C$21/C$24)/1000 -> 0.002815672921 | D30: kgfood/day | E30: Eq
B31: Lower | C31: =C27*(C$21/C$24)/1000 -> 0.0008447018764 | E31: Eq
B32: Upper | C32: 0.004786643966 | E32: Eq
A33: Estimate
A34: Dose | B34: Dose | C34: = AmntFood × Conc / BW
B35: Central | C35: =$C30 * C9/C$13 -> 0.0006568910904 | D35: mg/kg bw/day | E35: Eq
B36: Lower | C36: =$C31 * C10/C$13 -> 4.927748271e-05 | E36: Eq
B37: Upper | C37: =$C32 * C11/C$13 -> 0.002752382086 | E37: Eq

Sheet F10e
A1: Consumption of Seeds by a Large Bird after Chronic exposure.
A2: Short Title | B2: Seeds Chronic | E2: FdKcalV6
A3: Receptor | B3: Bird, large
A4: Duration | B4: Chronic | E4: Scenario parameter
A5: Material consumed | B5: Fruit
A6: Parameter/Assumption | B6: Code / Range | C6: Equation/ Value | D6: Units | E6: Reference/Designation
A7: Commodity
A8: Concentration on consumed commodity | B8: Conc
B9: Central | C9: =B05a!Chronic_C -> 0.002332980814 | D9: mg/kg food wet weight | E9: ='B05a'!Chronic_C
B10: Lower | C10: =B05a!Chronic_L -> 0.0005833712945 | E10: ='B05a'!Chronic_L
B11: Upper | C11: =B05a!Chronic_U -> 0.00575012912 | E11: ='B05a'!Chronic_U
A12: Receptor
A13: Body weight | B13: BW | C13: =A02b!$C$15 -> 4 | D13: kg | E13: Default
A14: Allometric coefficients for caloric requirement per day in kilocalories and BW in grams
B15: alpha | C15: =A02b!$C$16 -> 1.146 | E15: U.S. EPA/ORD 1993
B16: beta | C16: =A02b!$C$17 -> 0.749 | E16: U.S. EPA/ORD 1993
A17: Caloric requirement per day | B17: KR | C17: = alpha x (BW x 1kg/1000g)beta
C18: =C15*((C13*1000)^C16) -> 571.6465031 | D18: kcal/day | E18: Eq
A19: Caloric content of commodity (dry weight) | B19: KCD | C19: 4.92 | D19: kcal/gdw [Note 1] | E19: WkMk Documentation
A20: Food consumed per day (dry weight) | B20: AmntDry | C20: = KR ÷ KCD
C21: =C18/C19 -> 116.1883136 | D21: gdry/day | E21: Eq
A22: Water content of vegetation as a proportion | B22: PropWater | C22: 0.093 | D22: gwater/gfood | E22: WkMk Documentation
A23: Dry weight content of vegetation as a proportion | B23: PropDry | C23: = 1-PropWater
C24: =1-C22 -> 0.907 | D24: gdry/gfood | E24: Eq
A25: Variability in caloric requirements not accounted for by allometric equation | B25: Error
B26: Central | C26: 1 | D26: Note 2
B27: Lower | C27: 0.3
B28: Upper | C28: 1.7
A29: Amount of food consumed per day, wet weight | B29: AmntFood | C29: = (AmntDry ÷ PropDry) ÷ (1000g/kg)
B30: Central | C30: =C26*(C$21/C$24)/1000 -> 0.1281017791 | D30: kgfood/day | E30: Eq
B31: Lower | C31: =C27*(C$21/C$24)/1000 -> 0.03843053373 | E31: Eq
B32: Upper | C32: 0.2177730245 | E32: Eq
A33: Estimate
A34: Dose | B34: Dose | C34: = AmntFood × Conc / BW
B35: Central | C35: =$C30 * C9/C$13 -> 7.471474822e-05 | D35: mg/kg bw/day | E35: Eq
B36: Lower | C36: =$C31 * C10/C$13 -> 5.604817552e-06 | E36: Eq
B37: Upper | C37: =$C32 * C11/C$13 -> 0.0003130557524 | E37: Eq

Sheet F11a
A1: Consumption of Broadleaf Vegetation by a Small Mammal after Chronic exposure.
A2: Short Title | B2: Broadleaf Vegetation Chronic | E2: FdKcalV6
A3: Receptor | B3: Mammal, small
A4: Duration | B4: Chronic | E4: Scenario parameter
A5: Material consumed | B5: Short grass
A6: Parameter/Assumption | B6: Code / Range | C6: Equation/ Value | D6: Units | E6: Reference/Designation
A7: Commodity
A8: Concentration on consumed commodity | B8: Conc
B9: Central | C9: =B05c!Chronic_C -> 0.0004406741538 | D9: mg/kg food wet weight | E9: ='B05c'!Chronic_C
B10: Lower | C10: =B05c!Chronic_L -> 0.0002468109323 | E10: ='B05c'!Chronic_L
B11: Upper | C11: =B05c!Chronic_U -> 0.0006297760465 | E11: ='B05c'!Chronic_U
A12: Receptor
A13: Body weight | B13: BW | C13: =A02b!$C$71 -> 0.02 | D13: kg | E13: Default
A14: Allometric coefficients for caloric requirement per day in kilocalories and BW in grams
B15: alpha | C15: =A02b!$C$75 -> 2.514 | E15: U.S. EPA/ORD 1993
B16: beta | C16: =A02b!$C$76 -> 0.507 | E16: U.S. EPA/ORD 1993
A17: Caloric requirement per day | B17: KR | C17: = alpha x (BW x 1kg/1000g)beta
C18: =C15*((C13*1000)^C16) -> 11.48120526 | D18: kcal/day | E18: Eq
A19: Caloric content of commodity (dry weight) | B19: KCD | C19: 2.26 | D19: kcal/gdw [Note 1] | E19: WkMk Documentation
A20: Food consumed per day (dry weight) | B20: AmntDry | C20: = KR ÷ KCD
C21: =C18/C19 -> 5.080179317 | D21: gdry/day | E21: Eq
A22: Water content of vegetation as a proportion | B22: PropWater | C22: 0.85 | D22: gwater/gfood | E22: WkMk Documentation
A23: Dry weight content of vegetation as a proportion | B23: PropDry | C23: = 1-PropWater
C24: =1-C22 -> 0.15 | D24: gdry/gfood | E24: Eq
A25: Variability in caloric requirements not accounted for by allometric equation | B25: Error
B26: Central | C26: 1 | D26: Note 2
B27: Lower | C27: 0.3
B28: Upper | C28: 1.7
A29: Amount of food consumed per day, wet weight | B29: AmntFood | C29: = (AmntDry ÷ PropDry) ÷ (1000g/kg)
B30: Central | C30: =C26*(C$21/C$24)/1000 -> 0.03386786211 | D30: kgfood/day | E30: Eq
B31: Lower | C31: =C27*(C$21/C$24)/1000 -> 0.01016035863 | E31: Eq
B32: Upper | C32: 0.05757536559 | E32: Eq
A33: Estimate
A34: Dose | B34: Dose | C34: = AmntFood × Conc / BW
B35: Central | C35: =$C30 * C9/C$13 -> 0.0007462345738 | D35: mg/kg bw/day | E35: Eq
B36: Lower | C36: =$C31 * C10/C$13 -> 0.0001253843793 | E36: Eq
B37: Upper | C37: =$C32 * C11/C$13 -> 0.001812979306 | E37: Eq

Sheet F11b
A1: Consumption of Broadleaf Vegetation by a 400 g Mammal after Chronic exposure.
A2: Short Title | B2: Broadleaf Vegetation Chronic | E2: FdKcalV6
A3: Receptor | B3: Mammal, 400 g
A4: Duration | B4: Chronic | E4: Scenario parameter
A5: Material consumed | B5: Short grass
A6: Parameter/Assumption | B6: Code / Range | C6: Equation/ Value | D6: Units | E6: Reference/Designation
A7: Commodity
A8: Concentration on consumed commodity | B8: Conc
B9: Central | C9: =B05c!Chronic_C -> 0.0004406741538 | D9: mg/kg food wet weight | E9: ='B05c'!Chronic_C
B10: Lower | C10: =B05c!Chronic_L -> 0.0002468109323 | E10: ='B05c'!Chronic_L
B11: Upper | C11: =B05c!Chronic_U -> 0.0006297760465 | E11: ='B05c'!Chronic_U
A12: Receptor
A13: Body weight | B13: BW | C13: =A02b!$C$40 -> 0.4 | D13: kg | E13: Default
A14: Allometric coefficients for caloric requirement per day in kilocalories and BW in grams
B15: alpha | C15: =A02b!$C$43 -> 2.514 | E15: U.S. EPA/ORD 1993
B16: beta | C16: =A02b!$C$44 -> 0.507 | E16: U.S. EPA/ORD 1993
A17: Caloric requirement per day | B17: KR | C17: = alpha x (BW x 1kg/1000g)beta
C18: =C15*((C13*1000)^C16) -> 52.43360149 | D18: kcal/day | E18: Eq
A19: Caloric content of commodity (dry weight) | B19: KCD | C19: 2.26 | D19: kcal/gdw [Note 1] | E19: WkMk Documentation
A20: Food consumed per day (dry weight) | B20: AmntDry | C20: = KR ÷ KCD
C21: =C18/C19 -> 23.20070862 | D21: gdry/day | E21: Eq
A22: Water content of vegetation as a proportion | B22: PropWater | C22: 0.85 | D22: gwater/gfood | E22: WkMk Documentation
A23: Dry weight content of vegetation as a proportion | B23: PropDry | C23: = 1-PropWater
C24: =1-C22 -> 0.15 | D24: gdry/gfood | E24: Eq
A25: Variability in caloric requirements not accounted for by allometric equation | B25: Error
B26: Central | C26: 1 | D26: Note 2
B27: Lower | C27: 0.3
B28: Upper | C28: 1.7
A29: Amount of food consumed per day, wet weight | B29: AmntFood | C29: = (AmntDry ÷ PropDry) ÷ (1000g/kg)
B30: Central | C30: =C26*(C$21/C$24)/1000 -> 0.1546713908 | D30: kgfood/day | E30: Eq
B31: Lower | C31: =C27*(C$21/C$24)/1000 -> 0.04640141724 | E31: Eq
B32: Upper | C32: 0.2629413644 | E32: Eq
A33: Estimate
A34: Dose | B34: Dose | C34: = AmntFood × Conc / BW
B35: Central | C35: =$C30 * C9/C$13 -> 0.0001703992106 | D35: mg/kg bw/day | E35: Eq
B36: Lower | C36: =$C31 * C10/C$13 -> 2.863094262e-05 | E36: Eq
B37: Upper | C37: =$C32 * C11/C$13 -> 0.0004139854323 | E37: Eq

Sheet F11c
A1: Consumption of Broadleaf Vegetation by a Large Mammal after Chronic exposure.
A2: Short Title | B2: Broadleaf Vegetation Chronic | E2: FdKcalV6
A3: Receptor | B3: Mammal, large
A4: Duration | B4: Chronic | E4: Scenario parameter
A5: Material consumed | B5: Short grass
A6: Parameter/Assumption | B6: Code / Range | C6: Equation/ Value | D6: Units | E6: Reference/Designation
A7: Commodity
A8: Concentration on consumed commodity | B8: Conc
B9: Central | C9: =B05c!Chronic_C -> 0.0004406741538 | D9: mg/kg food wet weight | E9: ='B05c'!Chronic_C
B10: Lower | C10: =B05c!Chronic_L -> 0.0002468109323 | E10: ='B05c'!Chronic_L
B11: Upper | C11: =B05c!Chronic_U -> 0.0006297760465 | E11: ='B05c'!Chronic_U
A12: Receptor
A13: Body weight | B13: BW | C13: =A02b!$C$61 -> 70 | D13: kg | E13: Default
A14: Allometric coefficients for caloric requirement per day in kilocalories and BW in grams
B15: alpha | C15: =A02b!$C$62 -> 1.518 | E15: U.S. EPA/ORD 1993
B16: beta | C16: =A02b!$C$63 -> 0.73 | E16: U.S. EPA/ORD 1993
A17: Caloric requirement per day | B17: KR | C17: = alpha x (BW x 1kg/1000g)beta
C18: =C15*((C13*1000)^C16) -> 5226.28803 | D18: kcal/day | E18: Eq
A19: Caloric content of commodity (dry weight) | B19: KCD | C19: 2.26 | D19: kcal/gdw [Note 1] | E19: WkMk Documentation
A20: Food consumed per day (dry weight) | B20: AmntDry | C20: = KR ÷ KCD
C21: =C18/C19 -> 2312.516827 | D21: gdry/day | E21: Eq
A22: Water content of vegetation as a proportion | B22: PropWater | C22: 0.85 | D22: gwater/gfood | E22: WkMk Documentation
A23: Dry weight content of vegetation as a proportion | B23: PropDry | C23: = 1-PropWater
C24: =1-C22 -> 0.15 | D24: gdry/gfood | E24: Eq
A25: Variability in caloric requirements not accounted for by allometric equation | B25: Error
B26: Central | C26: 1 | D26: Note 2
B27: Lower | C27: 0.3
B28: Upper | C28: 1.7
A29: Amount of food consumed per day, wet weight | B29: AmntFood | C29: = (AmntDry ÷ PropDry) ÷ (1000g/kg)
B30: Central | C30: =C26*(C$21/C$24)/1000 -> 15.41677885 | D30: kgfood/day | E30: Eq
B31: Lower | C31: =C27*(C$21/C$24)/1000 -> 4.625033655 | E31: Eq
B32: Upper | C32: 26.20852404 | E32: Eq
A33: Estimate
A34: Dose | B34: Dose | C34: = AmntFood × Conc / BW
B35: Central | C35: =$C30 * C9/C$13 -> 9.705394247e-05 | D35: mg/kg bw/day | E35: Eq
B36: Lower | C36: =$C31 * C10/C$13 -> 1.630726955e-05 | E36: Eq
B37: Upper | C37: =$C32 * C11/C$13 -> 0.0002357928665 | E37: Eq

Sheet F11d
A1: Consumption of Broadleaf Vegetation by a Small Bird after Chronic exposure.
A2: Short Title | B2: Broadleaf Vegetation Chronic | E2: FdKcalV6
A3: Receptor | B3: Bird, small
A4: Duration | B4: Chronic | E4: Scenario parameter
A5: Material consumed | B5: Short grass
A6: Parameter/Assumption | B6: Code / Range | C6: Equation/ Value | D6: Units | E6: Reference/Designation
A7: Commodity
A8: Concentration on consumed commodity | B8: Conc
B9: Central | C9: =B05c!Chronic_C -> 0.0004406741538 | D9: mg/kg food wet weight | E9: ='B05c'!Chronic_C
B10: Lower | C10: =B05c!Chronic_L -> 0.0002468109323 | E10: ='B05c'!Chronic_L
B11: Upper | C11: =B05c!Chronic_U -> 0.0006297760465 | E11: ='B05c'!Chronic_U
A12: Receptor
A13: Body weight | B13: BW | C13: =A02b!$C$31 -> 0.01 | D13: kg | E13: Default
A14: Allometric coefficients for caloric requirement per day in kilocalories and BW in grams
B15: alpha | C15: =A02b!$C$32 -> 3.12 | E15: U.S. EPA/ORD 1993
B16: beta | C16: =A02b!$C$33 -> 0.605 | E16: U.S. EPA/ORD 1993
A17: Caloric requirement per day | B17: KR | C17: = alpha x (BW x 1kg/1000g)beta
C18: =C15*((C13*1000)^C16) -> 12.56477147 | D18: kcal/day | E18: Eq
A19: Caloric content of commodity (dry weight) | B19: KCD | C19: 2 | D19: kcal/gdw [Note 1] | E19: WkMk Documentation
A20: Food consumed per day (dry weight) | B20: AmntDry | C20: = KR ÷ KCD
C21: =C18/C19 -> 6.282385735 | D21: gdry/day | E21: Eq
A22: Water content of vegetation as a proportion | B22: PropWater | C22: 0.85 | D22: gwater/gfood | E22: WkMk Documentation
A23: Dry weight content of vegetation as a proportion | B23: PropDry | C23: = 1-PropWater
C24: =1-C22 -> 0.15 | D24: gdry/gfood | E24: Eq
A25: Variability in caloric requirements not accounted for by allometric equation | B25: Error
B26: Central | C26: 1 | D26: Note 2
B27: Lower | C27: 0.3
B28: Upper | C28: 1.7
A29: Amount of food consumed per day, wet weight | B29: AmntFood | C29: = (AmntDry ÷ PropDry) ÷ (1000g/kg)
B30: Central | C30: =C26*(C$21/C$24)/1000 -> 0.04188257157 | D30: kgfood/day | E30: Eq
B31: Lower | C31: =C27*(C$21/C$24)/1000 -> 0.01256477147 | E31: Eq
B32: Upper | C32: 0.07120037167 | E32: Eq
A33: Estimate
A34: Dose | B34: Dose | C34: = AmntFood × Conc / BW
B35: Central | C35: =$C30 * C9/C$13 -> 0.001845656678 | D35: mg/kg bw/day | E35: Eq
B36: Lower | C36: =$C31 * C10/C$13 -> 0.0003101122961 | E36: Eq
B37: Upper | C37: =$C32 * C11/C$13 -> 0.004484028858 | E37: Eq

Sheet F11e
A1: Consumption of Broadleaf Vegetation by a Large Bird after Chronic exposure.
A2: Short Title | B2: Broadleaf Vegetation Chronic | E2: FdKcalV6
A3: Receptor | B3: Bird, large
A4: Duration | B4: Chronic | E4: Scenario parameter
A5: Material consumed | B5: Short grass
A6: Parameter/Assumption | B6: Code / Range | C6: Equation/ Value | D6: Units | E6: Reference/Designation
A7: Commodity
A8: Concentration on consumed commodity | B8: Conc
B9: Central | C9: =B05c!Chronic_C -> 0.0004406741538 | D9: mg/kg food wet weight | E9: ='B05c'!Chronic_C
B10: Lower | C10: =B05c!Chronic_L -> 0.0002468109323 | E10: ='B05c'!Chronic_L
B11: Upper | C11: =B05c!Chronic_U -> 0.0006297760465 | E11: ='B05c'!Chronic_U
A12: Receptor
A13: Body weight | B13: BW | C13: =A02b!$C$15 -> 4 | D13: kg | E13: Default
A14: Allometric coefficients for caloric requirement per day in kilocalories and BW in grams
B15: alpha | C15: =A02b!$C$16 -> 1.146 | E15: U.S. EPA/ORD 1993
B16: beta | C16: =A02b!$C$17 -> 0.749 | E16: U.S. EPA/ORD 1993
A17: Caloric requirement per day | B17: KR | C17: = alpha x (BW x 1kg/1000g)beta
C18: =C15*((C13*1000)^C16) -> 571.6465031 | D18: kcal/day | E18: Eq
A19: Caloric content of commodity (dry weight) | B19: KCD | C19: 2 | D19: kcal/gdw [Note 1] | E19: WkMk Documentation
A20: Food consumed per day (dry weight) | B20: AmntDry | C20: = KR ÷ KCD
C21: =C18/C19 -> 285.8232515 | D21: gdry/day | E21: Eq
A22: Water content of vegetation as a proportion | B22: PropWater | C22: 0.85 | D22: gwater/gfood | E22: WkMk Documentation
A23: Dry weight content of vegetation as a proportion | B23: PropDry | C23: = 1-PropWater
C24: =1-C22 -> 0.15 | D24: gdry/gfood | E24: Eq
A25: Variability in caloric requirements not accounted for by allometric equation | B25: Error
B26: Central | C26: 1 | D26: Note 2
B27: Lower | C27: 0.3
B28: Upper | C28: 1.7
A29: Amount of food consumed per day, wet weight | B29: AmntFood | C29: = (AmntDry ÷ PropDry) ÷ (1000g/kg)
B30: Central | C30: =C26*(C$21/C$24)/1000 -> 1.905488344 | D30: kgfood/day | E30: Eq
B31: Lower | C31: =C27*(C$21/C$24)/1000 -> 0.5716465031 | E31: Eq
B32: Upper | C32: 3.239330184 | E32: Eq
A33: Estimate
A34: Dose | B34: Dose | C34: = AmntFood × Conc / BW
B35: Central | C35: =$C30 * C9/C$13 -> 0.0002099248658 | D35: mg/kg bw/day | E35: Eq
B36: Lower | C36: =$C31 * C10/C$13 -> 3.527215159e-05 | E36: Eq
B37: Upper | C37: =$C32 * C11/C$13 -> 0.0005100131392 | E37: Eq

Sheet F12a
A1: Consumption of contaminated water by Mammal, small, Longer-term Concentrations
A2: Short Title | B2: Longer-term Concentrations | E2: WatAlloV6
A3: Receptor | B3: Mammal, small
A4: Duration | B4: Chronic | E4: Scenario parameter
A5: Parameter/Assumption | B5: Code / Range | C5: Equation/ Value | D5: Units | E5: Reference/Designation
A6: Concentration in water | B6: ConcWat
B7: Central | C7: =B04a!Chronic_C -> 7.5e-05 | D7: mg/L | E7: ='B04a'!Chronic_C
B8: Lower | C8: =B04a!Chronic_L -> 2e-07 | E8: ='B04a'!Chronic_L
B9: Upper | C9: =B04a!Chronic_U -> 0.0004 | E9: ='B04a'!Chronic_U
A10: Receptor
A11: Body weight | B11: BW | C11: =A02b!$C$71 -> 0.02 | D11: kg | E11: Default
A12: Allometric coefficients forwater consumption per day in liters and BW in kilograms
B13: alpha | C13: =A02b!$C$79 -> 0.099 | E13: U.S. EPA/ORD 1993
B14: beta | C14: =A02b!$C$80 -> 0.9 | E14: U.S. EPA/ORD 1993
A15: Amount of water consumed per day | C15: Amnt = alpha BW beta
B16: Amnt | C16: =C13*(C11^C14) -> 0.002927940121 | D16: liters | E16: Eq
A17: Absorbed Dose | B17: Dose | C17: ConcWat × Amnt ÷ BW
B18: Central | C18: =C7*C$16/C$11 -> 1.097977545e-05 | D18: mg/kg | E18: Eq
B19: Lower | C19: =C8*C$16/C$11 -> 2.927940121e-08 | D19: mg/kg | E19: Eq
B20: Upper | C20: =C9*C$16/C$11 -> 5.855880241e-05 | D20: mg/kg | E20: Eq

Sheet F12b
A1: Consumption of contaminated water by Mammal, 400 g, Longer-term Concentrations
A2: Short Title | B2: Longer-term Concentrations | E2: WatAlloV6
A3: Receptor | B3: Mammal, 400 g
A4: Duration | B4: Chronic | E4: Scenario parameter
A5: Parameter/Assumption | B5: Code / Range | C5: Equation/ Value | D5: Units | E5: Reference/Designation
A6: Concentration in water | B6: ConcWat
B7: Central | C7: =B04a!Chronic_C -> 7.5e-05 | D7: mg/L | E7: ='B04a'!Chronic_C
B8: Lower | C8: =B04a!Chronic_L -> 2e-07 | E8: ='B04a'!Chronic_L
B9: Upper | C9: =B04a!Chronic_U -> 0.0004 | E9: ='B04a'!Chronic_U
A10: Receptor
A11: Body weight | B11: BW | C11: =A02b!$C$40 -> 0.4 | D11: kg | E11: Default
A12: Allometric coefficients forwater consumption per day in liters and BW in kilograms
B13: alpha | C13: =A02b!$C$45 -> 0.099 | E13: U.S. EPA/ORD 1993
B14: beta | C14: =A02b!$C$46 -> 0.9 | E14: U.S. EPA/ORD 1993
A15: Amount of water consumed per day | C15: Amnt = alpha BW beta
B16: Amnt | C16: =C13*(C11^C14) -> 0.04339994576 | D16: liters | E16: Eq
A17: Absorbed Dose | B17: Dose | C17: ConcWat × Amnt ÷ BW
B18: Central | C18: =C7*C$16/C$11 -> 8.137489831e-06 | D18: mg/kg | E18: Eq
B19: Lower | C19: =C8*C$16/C$11 -> 2.169997288e-08 | D19: mg/kg | E19: Eq
B20: Upper | C20: =C9*C$16/C$11 -> 4.339994576e-05 | D20: mg/kg | E20: Eq

Sheet F12c
A1: Consumption of contaminated water by Mammal, carnivorous, Longer-term Concentrations
A2: Short Title | B2: Longer-term Concentrations | E2: WatAlloV6
A3: Receptor | B3: Mammal, carnivorous
A4: Duration | B4: Chronic | E4: Scenario parameter
A5: Parameter/Assumption | B5: Code / Range | C5: Equation/ Value | D5: Units | E5: Reference/Designation
A6: Concentration in water | B6: ConcWat
B7: Central | C7: =B04a!Chronic_C -> 7.5e-05 | D7: mg/L | E7: ='B04a'!Chronic_C
B8: Lower | C8: =B04a!Chronic_L -> 2e-07 | E8: ='B04a'!Chronic_L
B9: Upper | C9: =B04a!Chronic_U -> 0.0004 | E9: ='B04a'!Chronic_U
A10: Receptor
A11: Body weight | B11: BW | C11: =A02b!$C$47 -> 5 | D11: kg | E11: U.S. EPA/ORD 1993
A12: Allometric coefficients forwater consumption per day in liters and BW in kilograms
B13: alpha | C13: =A02b!$C$50 -> 0.099 | E13: U.S. EPA/ORD 1993
B14: beta | C14: =A02b!$C$51 -> 0.9 | E14: U.S. EPA/ORD 1993
A15: Amount of water consumed per day | C15: Amnt = alpha BW beta
B16: Amnt | C16: =C13*(C11^C14) -> 0.4214132616 | D16: liters | E16: Eq
A17: Absorbed Dose | B17: Dose | C17: ConcWat × Amnt ÷ BW
B18: Central | C18: =C7*C$16/C$11 -> 6.321198925e-06 | D18: mg/kg | E18: Eq
B19: Lower | C19: =C8*C$16/C$11 -> 1.685653047e-08 | D19: mg/kg | E19: Eq
B20: Upper | C20: =C9*C$16/C$11 -> 3.371306093e-05 | D20: mg/kg | E20: Eq

Sheet F12d
A1: Consumption of contaminated water by Mammal, large, Longer-term Concentrations
A2: Short Title | B2: Longer-term Concentrations | E2: WatAlloV6
A3: Receptor | B3: Mammal, large
A4: Duration | B4: Chronic | E4: Scenario parameter
A5: Parameter/Assumption | B5: Code / Range | C5: Equation/ Value | D5: Units | E5: Reference/Designation
A6: Concentration in water | B6: ConcWat
B7: Central | C7: =B04a!Chronic_C -> 7.5e-05 | D7: mg/L | E7: ='B04a'!Chronic_C
B8: Lower | C8: =B04a!Chronic_L -> 2e-07 | E8: ='B04a'!Chronic_L
B9: Upper | C9: =B04a!Chronic_U -> 0.0004 | E9: ='B04a'!Chronic_U
A10: Receptor
A11: Body weight | B11: BW | C11: =A02b!$C$61 -> 70 | D11: kg | E11: Default
A12: Allometric coefficients forwater consumption per day in liters and BW in kilograms
B13: alpha | C13: =A02b!$C$64 -> 0.099 | E13: U.S. EPA/ORD 1993
B14: beta | C14: =A02b!$C$65 -> 0.9 | E14: U.S. EPA/ORD 1993
A15: Amount of water consumed per day | C15: Amnt = alpha BW beta
B16: Amnt | C16: =C13*(C11^C14) -> 4.531306412 | D16: liters | E16: Eq
A17: Absorbed Dose | B17: Dose | C17: ConcWat × Amnt ÷ BW
B18: Central | C18: =C7*C$16/C$11 -> 4.854971155e-06 | D18: mg/kg | E18: Eq
B19: Lower | C19: =C8*C$16/C$11 -> 1.294658975e-08 | D19: mg/kg | E19: Eq
B20: Upper | C20: =C9*C$16/C$11 -> 2.589317949e-05 | D20: mg/kg | E20: Eq

Sheet F12e
A1: Consumption of contaminated water by Bird, small, Longer-term Concentrations
A2: Short Title | B2: Longer-term Concentrations | E2: WatAlloV6
A3: Receptor | B3: Bird, small
A4: Duration | B4: Chronic | E4: Scenario parameter
A5: Parameter/Assumption | B5: Code / Range | C5: Equation/ Value | D5: Units | E5: Reference/Designation
A6: Concentration in water | B6: ConcWat
B7: Central | C7: =B04a!Chronic_C -> 7.5e-05 | D7: mg/L | E7: ='B04a'!Chronic_C
B8: Lower | C8: =B04a!Chronic_L -> 2e-07 | E8: ='B04a'!Chronic_L
B9: Upper | C9: =B04a!Chronic_U -> 0.0004 | E9: ='B04a'!Chronic_U
A10: Receptor
A11: Body weight | B11: BW | C11: =A02b!$C$31 -> 0.01 | D11: kg | E11: Default
A12: Allometric coefficients forwater consumption per day in liters and BW in kilograms
B13: alpha | C13: =A02b!$C$34 -> 0.059 | E13: U.S. EPA/ORD 1993
B14: beta | C14: =A02b!$C$35 -> 0.67 | E14: U.S. EPA/ORD 1993
A15: Amount of water consumed per day | C15: Amnt = alpha BW beta
B16: Amnt | C16: =C13*(C11^C14) -> 0.002696820319 | D16: liters | E16: Eq
A17: Absorbed Dose | B17: Dose | C17: ConcWat × Amnt ÷ BW
B18: Central | C18: =C7*C$16/C$11 -> 2.022615239e-05 | D18: mg/kg | E18: Eq
B19: Lower | C19: =C8*C$16/C$11 -> 5.393640637e-08 | D19: mg/kg | E19: Eq
B20: Upper | C20: =C9*C$16/C$11 -> 0.0001078728127 | D20: mg/kg | E20: Eq

Sheet F12f
A1: Consumption of contaminated water by Bird, large, Longer-term Concentrations
A2: Short Title | B2: Longer-term Concentrations | E2: WatAlloV6
A3: Receptor | B3: Bird, large
A4: Duration | B4: Chronic | E4: Scenario parameter
A5: Parameter/Assumption | B5: Code / Range | C5: Equation/ Value | D5: Units | E5: Reference/Designation
A6: Concentration in water | B6: ConcWat
B7: Central | C7: =B04a!Chronic_C -> 7.5e-05 | D7: mg/L | E7: ='B04a'!Chronic_C
B8: Lower | C8: =B04a!Chronic_L -> 2e-07 | E8: ='B04a'!Chronic_L
B9: Upper | C9: =B04a!Chronic_U -> 0.0004 | E9: ='B04a'!Chronic_U
A10: Receptor
A11: Body weight | B11: BW | C11: =A02b!$C$15 -> 4 | D11: kg | E11: Default
A12: Allometric coefficients forwater consumption per day in liters and BW in kilograms
B13: alpha | C13: =A02b!$C$18 -> 0.059 | E13: U.S. EPA/ORD 1993
B14: beta | C14: =A02b!$C$19 -> 0.67 | E14: U.S. EPA/ORD 1993
A15: Amount of water consumed per day | C15: Amnt = alpha BW beta
B16: Amnt | C16: =C13*(C11^C14) -> 0.1493592781 | D16: liters | E16: Eq
A17: Absorbed Dose | B17: Dose | C17: ConcWat × Amnt ÷ BW
B18: Central | C18: =C7*C$16/C$11 -> 2.800486464e-06 | D18: mg/kg | E18: Eq
B19: Lower | C19: =C8*C$16/C$11 -> 7.467963904e-09 | D19: mg/kg | E19: Eq
B20: Upper | C20: =C9*C$16/C$11 -> 1.493592781e-05 | D20: mg/kg | E20: Eq

Sheet F13a
A1: Chronic scenario for the consumption of Contaminated Fish (Longer-term) by Mammal, large carnivorous
A2: Short Title | B2: Fish consumption, accidental spill | E2: FishKcalV6
A3: Predator | B3: Mammal, large carnivorous
A4: Food Item (Prey) | B4: Fish
A5: Duration | B5: Chronic | E5: Scenario parameter
A6: Parameter/Assumption | B6: Code / Range | C6: Equation/ Value | D6: Units | E6: Reference/Designation
A7: Water
A8: Concentration in water | B8: ConcWat
B9: Central | C9: =B04a!Chronic_C -> 7.5e-05 | D9: mg/L | E9: ='B04a'!Chronic_C
B10: Lower | C10: =B04a!Chronic_L -> 2e-07 | E10: ='B04a'!Chronic_L
B11: Upper | C11: =B04a!Chronic_U -> 0.0004 | E11: ='B04a'!Chronic_U
A12: Fish
A13: Bioconcentration factor | B13: BCF
B14: Central | C14: ='B01'!$C$6 -> 15000 | D14: L/kg | E14: Section 3.2.3.5
B15: Lower | C15: ='B01'!$C$6 -> 15000 | E15: Section 3.2.3.5
B16: Upper | C16: ='B01'!$C$6 -> 15000 | E16: Section 3.2.3.5
A17: Concentration in fish | B17: ConcFish | C17: ConcWat × BCF
B18: Central | C18: =C9*C14 -> 1.125 | D18: mg/kg | E18: Eq
B19: Lower | C19: =C10*C15 -> 0.003 | E19: Eq
B20: Upper | C20: =C11*C16 -> 6 | E20: Eq
A21: Receptor
A22: Body weight | B22: BW | C22: =A02b!$C$52 -> 70 | D22: kg | E22: Reid 2006
A23: Allometric coefficients for caloric requirement per day in kilocalories and BW in grams
B24: alpha | C24: =A02b!$C$53 -> 0.6167 | E24: U.S. EPA/ORD 1993
B25: beta | C25: =A02b!$C$54 -> 0.862 | E25: U.S. EPA/ORD 1993
A26: Caloric requirement per day | B26: KR | C26: =C24*(C22*1000)^C25 -> 9258.666883 | D26: kcal/day | E26: Eq
A27: Caloric content of commodity (dry weight) | B27: KCD | C27: 4.47 | D27: kcal/gdw [Note 1] | E27: WkMk Documentation
A28: Food consumed per day (dry weight) | B28: AmntDry | C28: = KR ÷ KCD
C29: =C26/C27 -> 2071.29013 | D29: gdry/day | E29: Eq
A30: Water content of vegetation as a proportion | B30: PropWater | C30: 0.7 | D30: gwater/gfood | E30: WkMk Documentation
A31: Dry weight content of vegetation as a proportion | B31: PropDry | C31: = 1-PropWater
C32: =1-C30 -> 0.3 | D32: gdry/gfood | E32: Eq
A33: Amount of fish consumed per day, wet weight | B33: AmntFish | C33: = (AmntDry ÷ PropDry) ÷ (1000g/kg)
B34: Central | C34: =(C29/C32)/1000 -> 6.904300435 | D34: kgfood/day | E34: Eq
B35: Lower | C35: =C34*0.3 -> 2.07129013 | D35: Note 1 | E35: Eq
B36: Upper | C36: =C34*1.7 -> 11.73731074 | D36: Note 1 | E36: Eq
A37: Proportion of diet that is contaminated | B37: Prop
B38: Central | C38: 0.3 | D38: Unitless | E38: Scenario parameter
B39: Lower | C39: 0.1 | E39: Scenario parameter
B40: Upper | C40: 1 | E40: Scenario parameter
A41: Dose
A42: Toxic Equivalency Factor for formulation: (See risk assessment if this has a value other than 1.) | B42: TEF
B43: Central | C43: ='A01'!C$35 -> 1 | D43: Unitless | E43: Worksheet A01
B44: Lower | C44: ='A01'!C$36 -> 1 | D44: Note 2 | E44: Worksheet A01
B45: Upper | C45: ='A01'!C$37 -> 1 | D45: Note 2 | E45: Worksheet A01
A46: Dose | B46: Dose | C46: = ConcFish × AmntFish × Prop ÷ BW
B47: Central | C47: =C18*C34*C38/C$22 -> 0.03328859138 | D47: mg/kg | E47: Eq
B48: Lower | C48: =C19*C35*C39/C$22 -> 8.876957702e-06 | D48: mg/kg | E48: Eq
B49: Upper | C49: 1.006055206 | D49: mg/kg | E49: Eq
E50: FishKcalV6

Sheet F13b
A1: Chronic scenario for the consumption of Contaminated Fish (Longer-term) by Mammal, carnivorous
A2: Short Title | B2: Fish consumption, accidental spill | E2: FishKcalV6
A3: Predator | B3: Mammal, carnivorous
A4: Food Item (Prey) | B4: Fish
A5: Duration | B5: Chronic | E5: Scenario parameter
A6: Parameter/Assumption | B6: Code / Range | C6: Equation/ Value | D6: Units | E6: Reference/Designation
A7: Water
A8: Concentration in water | B8: ConcWat
B9: Central | C9: =B04a!Chronic_C -> 7.5e-05 | D9: mg/L | E9: ='B04a'!Chronic_C
B10: Lower | C10: =B04a!Chronic_L -> 2e-07 | E10: ='B04a'!Chronic_L
B11: Upper | C11: =B04a!Chronic_U -> 0.0004 | E11: ='B04a'!Chronic_U
A12: Fish
A13: Bioconcentration factor | B13: BCF
B14: Central | C14: ='B01'!$C$6 -> 15000 | D14: L/kg | E14: Section 3.2.3.5
B15: Lower | C15: ='B01'!$C$6 -> 15000 | E15: Section 3.2.3.5
B16: Upper | C16: ='B01'!$C$6 -> 15000 | E16: Section 3.2.3.5
A17: Concentration in fish | B17: ConcFish | C17: ConcWat × BCF
B18: Central | C18: =C9*C14 -> 1.125 | D18: mg/kg | E18: Eq
B19: Lower | C19: =C10*C15 -> 0.003 | E19: Eq
B20: Upper | C20: =C11*C16 -> 6 | E20: Eq
A21: Receptor
A22: Body weight | B22: BW | C22: =A02b!$C$47 -> 5 | D22: kg | E22: U.S. EPA/ORD 1993
A23: Allometric coefficients for caloric requirement per day in kilocalories and BW in grams
B24: alpha | C24: =A02b!$C$48 -> 0.6167 | E24: U.S. EPA/ORD 1993
B25: beta | C25: =A02b!$C$49 -> 0.862 | E25: U.S. EPA/ORD 1993
A26: Caloric requirement per day | B26: KR | C26: =C24*(C22*1000)^C25 -> 951.8885266 | D26: kcal/day | E26: Eq
A27: Caloric content of commodity (dry weight) | B27: KCD | C27: 4.47 | D27: kcal/gdw [Note 1] | E27: WkMk Documentation
A28: Food consumed per day (dry weight) | B28: AmntDry | C28: = KR ÷ KCD
C29: =C26/C27 -> 212.9504534 | D29: gdry/day | E29: Eq
A30: Water content of vegetation as a proportion | B30: PropWater | C30: 0.7 | D30: gwater/gfood | E30: WkMk Documentation
A31: Dry weight content of vegetation as a proportion | B31: PropDry | C31: = 1-PropWater
C32: =1-C30 -> 0.3 | D32: gdry/gfood | E32: Eq
A33: Amount of fish consumed per day, wet weight | B33: AmntFish | C33: = (AmntDry ÷ PropDry) ÷ (1000g/kg)
B34: Central | C34: =(C29/C32)/1000 -> 0.7098348446 | D34: kgfood/day | E34: Eq
B35: Lower | C35: =C34*0.3 -> 0.2129504534 | D35: Note 1 | E35: Eq
B36: Upper | C36: =C34*1.7 -> 1.206719236 | D36: Note 1 | E36: Eq
A37: Proportion of diet that is contaminated | B37: Prop
B38: Central | C38: 0.3 | D38: Unitless | E38: Scenario parameter
B39: Lower | C39: 0.1 | E39: Scenario parameter
B40: Upper | C40: 1 | E40: Scenario parameter
A41: Dose
A42: Toxic Equivalency Factor for formulation: (See risk assessment if this has a value other than 1.) | B42: TEF
B43: Central | C43: ='A01'!C$35 -> 1 | D43: Unitless | E43: Worksheet A01
B44: Lower | C44: ='A01'!C$36 -> 1 | D44: Note 2 | E44: Worksheet A01
B45: Upper | C45: ='A01'!C$37 -> 1 | D45: Note 2 | E45: Worksheet A01
A46: Dose | B46: Dose | C46: = ConcFish × AmntFish × Prop ÷ BW
B47: Central | C47: =C18*C34*C38/C$22 -> 0.04791385201 | D47: mg/kg | E47: Eq
B48: Lower | C48: =C19*C35*C39/C$22 -> 1.27770272e-05 | D48: mg/kg | E48: Eq
B49: Upper | C49: 1.448063083 | D49: mg/kg | E49: Eq
E50: FishKcalV6

Sheet F13c
A1: Chronic scenario for the consumption of Contaminated Fish (Longer-term) by Bird, piscivorous
A2: Short Title | B2: Fish consumption, accidental spill | E2: FishKcalV6
A3: Predator | B3: Bird, piscivorous
A4: Food Item (Prey) | B4: Fish
A5: Duration | B5: Chronic | E5: Scenario parameter
A6: Parameter/Assumption | B6: Code / Range | C6: Equation/ Value | D6: Units | E6: Reference/Designation
A7: Water
A8: Concentration in water | B8: ConcWat
B9: Central | C9: =B04a!Chronic_C -> 7.5e-05 | D9: mg/L | E9: ='B04a'!Chronic_C
B10: Lower | C10: =B04a!Chronic_L -> 2e-07 | E10: ='B04a'!Chronic_L
B11: Upper | C11: =B04a!Chronic_U -> 0.0004 | E11: ='B04a'!Chronic_U
A12: Fish
A13: Bioconcentration factor | B13: BCF
B14: Central | C14: ='B01'!$C$6 -> 15000 | D14: L/kg | E14: Section 3.2.3.5
B15: Lower | C15: ='B01'!$C$6 -> 15000 | E15: Section 3.2.3.5
B16: Upper | C16: ='B01'!$C$6 -> 15000 | E16: Section 3.2.3.5
A17: Concentration in fish | B17: ConcFish | C17: ConcWat × BCF
B18: Central | C18: =C9*C14 -> 1.125 | D18: mg/kg | E18: Eq
B19: Lower | C19: =C10*C15 -> 0.003 | E19: Eq
B20: Upper | C20: =C11*C16 -> 6 | E20: Eq
A21: Receptor
A22: Body weight | B22: BW | C22: =A02b!$C$24 -> 2.4 | D22: kg | E22: Sibley 2000
A23: Allometric coefficients for caloric requirement per day in kilocalories and BW in grams
B24: alpha | C24: =A02b!$C$27 -> 1.916 | E24: U.S. EPA/ORD 1993
B25: beta | C25: =A02b!$C$28 -> 0.704 | E25: U.S. EPA/ORD 1993
A26: Caloric requirement per day | B26: KR | C26: =C24*(C22*1000)^C25 -> 459.2659192 | D26: kcal/day | E26: Eq
A27: Caloric content of commodity (dry weight) | B27: KCD | C27: 3.87 | D27: kcal/gdw [Note 1] | E27: WkMk Documentation
A28: Food consumed per day (dry weight) | B28: AmntDry | C28: = KR ÷ KCD
C29: =C26/C27 -> 118.6733641 | D29: gdry/day | E29: Eq
A30: Water content of vegetation as a proportion | B30: PropWater | C30: 0.7 | D30: gwater/gfood | E30: WkMk Documentation
A31: Dry weight content of vegetation as a proportion | B31: PropDry | C31: = 1-PropWater
C32: =1-C30 -> 0.3 | D32: gdry/gfood | E32: Eq
A33: Amount of fish consumed per day, wet weight | B33: AmntFish | C33: = (AmntDry ÷ PropDry) ÷ (1000g/kg)
B34: Central | C34: =(C29/C32)/1000 -> 0.3955778805 | D34: kgfood/day | E34: Eq
B35: Lower | C35: =C34*0.3 -> 0.1186733641 | D35: Note 1 | E35: Eq
B36: Upper | C36: =C34*1.7 -> 0.6724823968 | D36: Note 1 | E36: Eq
A37: Proportion of diet that is contaminated | B37: Prop
B38: Central | C38: 0.3 | D38: Unitless | E38: Scenario parameter
B39: Lower | C39: 0.1 | E39: Scenario parameter
B40: Upper | C40: 1 | E40: Scenario parameter
A41: Dose
A42: Toxic Equivalency Factor for formulation: (See risk assessment if this has a value other than 1.) | B42: TEF
B43: Central | C43: ='A01'!C$35 -> 1 | D43: Unitless | E43: Worksheet A01
B44: Lower | C44: ='A01'!C$36 -> 1 | D44: Note 2 | E44: Worksheet A01
B45: Upper | C45: ='A01'!C$37 -> 1 | D45: Note 2 | E45: Worksheet A01
A46: Dose | B46: Dose | C46: = ConcFish × AmntFish × Prop ÷ BW
B47: Central | C47: =C18*C34*C38/C$22 -> 0.05562813944 | D47: mg/kg | E47: Eq
B48: Lower | C48: =C19*C35*C39/C$22 -> 1.483417052e-05 | D48: mg/kg | E48: Eq
B49: Upper | C49: 1.681205992 | D49: mg/kg | E49: Eq
E50: FishKcalV6

Sheet G01
A1: Summary of Exposure Assessments for the Terrestrial Animals | F1: G01V6
A2: Application Rate: | B2: ='A01'!ApRt_C -> 1 | C2: lb a.i./acre | F2: G01V6
A3: Scenario | B3: Receptor | C3: mg/kg/day or mg/kg/event | F3: Detail Worksheet
C4: Central | D4: Lower | E4: Upper
A5: Accidental Acute Exposures
A6: Direct Spray | J6: Spray: Partial Abs
A7: first-order absorption | B7: Small mammal (20g) | C7: No exposure assessment | J7: Spray: 100% Abs
A8: 100% absorption | B8: Small mammal (20g) | C8: No exposure assessment
A9: Contaminated Water | J9: Spill: Sm Mam
A10: Spill | B10: Small mammal (20g) | C10: =F02a!Dose_C -> 0.6649352014 | D10: =F02a!Dose_L -> 0.03324676007 | E10: =F02a!Dose_U -> 2.659740805 | F10: F02a | J10: Spill: Med Mam
A11: Spill | B11: Larger Mammal (400g) | C11: =F02b!Dose_C -> 0.4928063842 | D11: =F02b!Dose_L -> 0.02464031921 | E11: =F02b!Dose_U -> 1.971225537 | F11: F02b | J11: Spill: Canid
A12: Spill | B12: Canid (5 kg) | C12: =F02c!Dose_C -> 0.3828118069 | D12: =F02c!Dose_L -> 0.01914059034 | E12: =F02c!Dose_U -> 1.531247228 | F12: F02c | J12: Spill: Lrg Mam
A13: Spill | B13: Large Mammal (70g) | C13: =F02d!Dose_C -> 0.2940170532 | D13: =F02d!Dose_L -> 0.01470085266 | E13: =F02d!Dose_U -> 1.176068213 | F13: F02d | J13: Spill: Sm Brd
A14: Spill | B14: Small bird (10g) | C14: =F02e!Dose_C -> 1.224895789 | D14: =F02e!Dose_L -> 0.06124478944 | E14: =F02e!Dose_U -> 4.899583155 | F14: F02e | J14: Spill: Lrg Brd
A15: Spill | B15: Large Bird (4 kg) | C15: =F02f!Dose_C -> 0.1695974603 | D15: =F02f!Dose_L -> 0.008479873013 | E15: =F02f!Dose_U -> 0.6783898411 | F15: F02f
A16: Consumption of contaminated Fish | J16: Fish: Bear
A17: Spill | B17: Large Mammalian Carnivore (70 kg) | C17: =F03a!Dose_C -> 2015.957094 | D17: =F03a!Dose_L -> 10.07978547 | E17: =F03a!Dose_U -> 45695.02747 | F17: F03a | J17: Fish: Fox
A18: Spill | B18: Canid (5 kg) | C18: =F03b!Dose_C -> 2901.662878 | D18: =F03b!Dose_L -> 14.50831439 | E18: =F03b!Dose_U -> 65771.02523 | F18: F03b | J18: Fish: Bird
A19: Spill | B19: Fish-eating bird (2.4 kg) | C19: =F03c!Dose_C -> 3368.840125 | D19: =F03c!Dose_L -> 16.84420062 | E19: =F03c!Dose_U -> 76360.37616 | F19: F03c
A20: Non-Accidental Acute Exposures
A21: Contaminated Seeds (Lowest Residue Rate)
B22: Small mammal (20g) | C22: =F04a!Dose_C -> 0.0003589130909 | D22: =F04a!Dose_L -> 3.110580121e-05 | E22: =F04a!Dose_U -> 0.001423688594 | F22: F04a | J22: Grass: Sm Mam
B23: Larger Mammal (400g) | C23: =F04b!Dose_C -> 8.195614291e-05 | D23: =F04b!Dose_L -> 7.102865719e-06 | E23: =F04b!Dose_U -> 0.0003250927002 | F23: F04b | J23: Grass: Med Mam
B24: Large Mammal (70g) | C24: =F04c!Dose_C -> 4.667959874e-05 | D24: =F04c!Dose_L -> 4.045565224e-06 | E24: =F04c!Dose_U -> 0.0001851624083 | F24: F04c | J24: Grass: Lrg Mam
B25: Small bird (10g) | C25: =F04d!Dose_C -> 0.000785572745 | D25: =F04d!Dose_L -> 6.808297124e-05 | E25: =F04d!Dose_U -> 0.003116105222 | F25: F04d | J25: Grass: Sm Brd
B26: Large Bird (4 kg) | C26: =F04e!Dose_C -> 8.935099091e-05 | D26: =F04e!Dose_L -> 7.743752546e-06 | E26: =F04e!Dose_U -> 0.0003544255973 | F26: F04e | J26: Grass: Lrg Brd
A27: Contaminated Vegetation (Broadleaf Vegetation - Highest Residue Rate)
B28: Small mammal (20g) | C28: =F05a!Dose_C -> 0.003230217818 | D28: =F05a!Dose_L -> 0.0007417537211 | E28: =F05a!Dose_U -> 0.01220304509 | F28: F05a | J28: Veg: Sm Mam
B29: Larger Mammal (400g) | C29: =F05b!Dose_C -> 0.009709496558 | D29: =F05b!Dose_L -> 0.002229588099 | E29: =F05b!Dose_U -> 0.03668032033 | F29: F05b | J29: Veg: Med Mam
B30: Large Mammal | C30: =F05c!Dose_C -> 0.005530218813 | D30: =F05c!Dose_L -> 0.001269902098 | E30: =F05c!Dose_U -> 0.02089193774 | F30: F05c | J30: Veg: Lrg Mam
B31: Small bird (10g) | C31: =F05d!Dose_C -> 0.1051671372 | D31: =F05d!Dose_L -> 0.02414949077 | E31: =F05d!Dose_U -> 0.3972980739 | F31: F05d | J31: Veg: Sm Brd
B32: Large Bird (4 kg) | C32: =F05e!Dose_C -> 0.01196170308 | D32: =F05e!Dose_L -> 0.002746761447 | E32: =F05e!Dose_U -> 0.04518865607 | F32: F05e | J32: Veg: Lrg Brd
A33: Contaminated Water
B34: Small mammal (20g) | C34: =F06a!Dose_C -> 8.783820362e-05 | D34: =F06a!Dose_L -> 2.927940121e-06 | E34: =F06a!Dose_U -> 0.0003220734133 | F34: F06a | J34: Water: Sm Mam
B35: Larger Mammal (400g) | C35: =F06b!Dose_C -> 6.509991865e-05 | D35: =F06b!Dose_L -> 2.169997288e-06 | E35: =F06b!Dose_U -> 0.0002386997017 | F35: F06b | J35: Water: Med Mam
B36: Canid (5 kg) | C36: =F06c!Dose_C -> 5.05695914e-05 | D36: =F06c!Dose_L -> 1.685653047e-06 | E36: =F06c!Dose_U -> 0.0001854218351 | F36: F06c | J36: Water: Canid
B37: Large Mammal (70g) | C37: =F06d!Dose_C -> 3.883976924e-05 | D37: =F06d!Dose_L -> 1.294658975e-06 | E37: =F06d!Dose_U -> 0.0001424124872 | F37: F06d | J37: Water: Lrg Mam
B38: Small bird (10g) | C38: =F06e!Dose_C -> 0.0001618092191 | D38: =F06e!Dose_L -> 5.393640637e-06 | E38: =F06e!Dose_U -> 0.0005933004701 | F38: F06e | J38: Water: Sm Brd
B39: Large Bird (4 kg) | C39: =F06f!Dose_C -> 2.240389171e-05 | D39: =F06f!Dose_L -> 7.467963904e-07 | E39: =F06f!Dose_U -> 8.214760295e-05 | F39: F06f | J39: Water: Lrg Brd
A40: Contaminated Insects
B41: Small mammal (20g) | C41: No exposure assessment | J41: Insects: Sm Mam
B42: Larger Mammal (400g) | C42: No exposure assessment | J42: Insects: Med Mam
B43: Small bird (10g) | C43: No exposure assessment | J43: Insects: Sm Brd
A44: Consumption of small mammal (after direct spray) by predator
B45: Canid (5 kg) | C45: No exposure assessment | J45: Canid Eats Sm Mam
B46: Carnivorous bird (640 g) | C46: No exposure assessment | J46: Bird Eats Sm Mam
A47: Consumption of contaminated Fish
B48: Large Mammalian Carnivore (70 kg) | C48: =F09a!Dose_C -> 0.2663087311 | D48: =F09a!Dose_L -> 0.0008876957702 | E48: =F09a!Dose_U -> 5.533303634 | F48: F09a | J48: Fish: Lrg Mam
B49: Canid (5 kg) | C49: =F09b!Dose_C -> 0.3833108161 | D49: =F09b!Dose_L -> 0.00127770272 | E49: =F09b!Dose_U -> 7.964346956 | F49: F09b | J49: Fish: Canid
B50: Fish-eating bird (2.4 kg) | C50: =F09c!Dose_C -> 0.4450251155 | D50: =F09c!Dose_L -> 0.001483417052 | E50: =F09c!Dose_U -> 9.246632956 | F50: F09c | J50: Fish: Brd
A51: Chronic/Longer Term Exposures
A52: Contaminated Seeds (Lowest Residue Rate)
B53: Small mammal (20g) | C53: =F10a!Dose_C -> 0.0003001209157 | D53: =F10a!Dose_L -> 2.251393489e-05 | E53: =F10a!Dose_U -> 0.001257510483 | F53: F10a | I53: Grass: Sm Mam
B54: Larger Mammal (400g) | C54: =F10b!Dose_C -> 6.853122187e-05 | D54: =F10b!Dose_L -> 5.140952815e-06 | E54: =F10b!Dose_U -> 0.0002871466977 | F54: F10b | I54: Grass: Med Mam
B55: Large Mammal (70g) | C55: =F10c!Dose_C -> 3.903319293e-05 | D55: =F10c!Dose_L -> 2.92812236e-06 | E55: =F10c!Dose_U -> 0.0001635495785 | F55: F10c | I55: Grass: Lrg Mam
B56: Small bird (10g) | C56: =F10d!Dose_C -> 0.0006568910904 | D56: =F10d!Dose_L -> 4.927748271e-05 | E56: =F10d!Dose_U -> 0.002752382086 | F56: F10d | I56: Grass: Sm Brd
B57: Large Bird (4 kg) | C57: =F10e!Dose_C -> 7.471474822e-05 | D57: =F10e!Dose_L -> 5.604817552e-06 | E57: =F10e!Dose_U -> 0.0003130557524 | F57: F10e | I57: Grass: Lrg Brd
A58: Contaminated Vegetation (Broadleaf - Highest Residue Rate)
B59: Small mammal (20g) | C59: =F11a!Dose_C -> 0.0007462345738 | D59: =F11a!Dose_L -> 0.0001253843793 | E59: =F11a!Dose_U -> 0.001812979306 | F59: F11a | I59: Veg: Sm Mam
B60: Larger Mammal (400g) | C60: =F11b!Dose_C -> 0.0001703992106 | D60: =F11b!Dose_L -> 2.863094262e-05 | E60: =F11b!Dose_U -> 0.0004139854323 | F60: F11b | I60: Veg: Med Mam
B61: Large Mammal (70g) | C61: =F11c!Dose_C -> 9.705394247e-05 | D61: =F11c!Dose_L -> 1.630726955e-05 | E61: =F11c!Dose_U -> 0.0002357928665 | F61: F11c | I61: Veg: Lrg Mam
B62: Small bird (10g) | C62: =F11d!Dose_C -> 0.001845656678 | D62: =F11d!Dose_L -> 0.0003101122961 | E62: =F11d!Dose_U -> 0.004484028858 | F62: F11d | I62: Veg: Sm Brd
B63: Large Bird (4 kg) | C63: =F11e!Dose_C -> 0.0002099248658 | D63: =F11e!Dose_L -> 3.527215159e-05 | E63: =F11e!Dose_U -> 0.0005100131392 | F63: F11e | I63: Veg: Lrg Brd
A64: Contaminated Water
B65: Small mammal (20g) | C65: =F12a!Dose_C -> 1.097977545e-05 | D65: =F12a!Dose_L -> 2.927940121e-08 | E65: =F12a!Dose_U -> 5.855880241e-05 | F65: F12a | I65: Water: Sm Mam
B66: Larger Mammal (400g) | C66: =F12b!Dose_C -> 8.137489831e-06 | D66: =F12b!Dose_L -> 2.169997288e-08 | E66: =F12b!Dose_U -> 4.339994576e-05 | F66: F12b | I66: Water: Med Mam
B67: Canid (5 kg) | C67: =F12c!Dose_C -> 6.321198925e-06 | D67: =F12c!Dose_L -> 1.685653047e-08 | E67: =F12c!Dose_U -> 3.371306093e-05 | F67: F12c | I67: Water: Canid
B68: Large Mammal (70g) | C68: =F12d!Dose_C -> 4.854971155e-06 | D68: =F12d!Dose_L -> 1.294658975e-08 | E68: =F12d!Dose_U -> 2.589317949e-05 | F68: F12d | I68: Water: Lrg Mam
B69: Small bird (10g) | C69: =F12e!Dose_C -> 2.022615239e-05 | D69: =F12e!Dose_L -> 5.393640637e-08 | E69: =F12e!Dose_U -> 0.0001078728127 | F69: F12e | I69: Water: Sm Brd
B70: Large Bird (4 kg) | C70: =F12f!Dose_C -> 2.800486464e-06 | D70: =F12f!Dose_L -> 7.467963904e-09 | E70: =F12f!Dose_U -> 1.493592781e-05 | F70: F12f | I70: Water: Lrg Brd
A71: Consumption of contaminated Fish
B72: Large Mammalian Carnivore (70 kg) | C72: =F13a!Dose_C -> 0.03328859138 | D72: =F13a!Dose_L -> 8.876957702e-06 | E72: =F13a!Dose_U -> 1.006055206 | F72: F13a | I72: Fish: Lrg Mam
B73: Canid (5 kg) | C73: =F13b!Dose_C -> 0.04791385201 | D73: =F13b!Dose_L -> 1.27770272e-05 | E73: =F13b!Dose_U -> 1.448063083 | F73: F13b | I73: Fish: Canid
B74: Fish-eating bird (2.4 kg) | C74: =F13c!Dose_C -> 0.05562813944 | D74: =F13c!Dose_L -> 1.483417052e-05 | E74: =F13c!Dose_U -> 1.681205992 | F74: F13c | I74: Fish: Brd

Sheet G02
A1: Summary of Hazard Quotients (Toxicity) for the Terrestrial Animals | F1: G01V6
A2: Application Rate: | B2: ='A01'!ApRt_C -> 1 | C2: lb a.i./acre | F2: G01V6
A3: Scenario | B3: Receptor | C3: Hazard Quotients | F3: Toxicity Value
C4: Central | D4: Lower | E4: Upper
A5: Accidental Acute Exposures
A6: Direct Spray | J6: Spray: Partial Abs
A7: first-order absorption | B7: Small mammal (20g) | C7: No exposure assessment | F7: ='B02'!$E$6 -> 100 | G7: NOAEL | J7: Spray: 100% Abs
A8: 100% absorption | B8: Small mammal (20g) | C8: No exposure assessment | F8: ='B02'!$E$6 -> 100 | G8: NOAEL
A9: Contaminated Water | J9: Spill: Sm Mam
A10: Spill | B10: Small mammal (20g) | C10: =F02a!$C$18/$F$10 -> 0.006649352014 | D10: =F02a!$C$19/$F$10 -> 0.0003324676007 | E10: =F02a!$C$20/$F$10 -> 0.02659740805 | F10: ='B02'!$E$6 -> 100 | G10: NOAEL | J10: Spill: Med Mam
A11: Spill | B11: Larger Mammal (400g) | C11: =F02b!$C$18/$F$11 -> 0.004928063842 | D11: =F02b!$C$19/$F$11 -> 0.0002464031921 | E11: =F02b!$C$20/$F$11 -> 0.01971225537 | F11: ='B02'!$E$6 -> 100 | G11: NOAEL | J11: Spill: Canid
A12: Spill | B12: Canid (5 kg) | C12: =F02c!$C$18/$F$12 -> 0.003828118069 | D12: =F02c!$C$19/$F$12 -> 0.0001914059034 | E12: =F02c!$C$20/$F$12 -> 0.01531247228 | F12: ='B02'!$E$6 -> 100 | G12: NOAEL | J12: Spill: Lrg Mam
A13: Spill | B13: Large Mammal (70g) | C13: =F02d!$C$18/$F$13 -> 0.002940170532 | D13: =F02d!$C$19/$F$13 -> 0.0001470085266 | E13: =F02d!$C$20/$F$13 -> 0.01176068213 | F13: ='B02'!$E$6 -> 100 | G13: NOAEL | J13: Spill: Sm Brd
A14: Spill | B14: Small bird (10g) | C14: =F02e!$C$18/$F$14 -> 0.001633194385 | D14: =F02e!$C$19/$F$14 -> 8.165971925e-05 | E14: =F02e!$C$20/$F$14 -> 0.00653277754 | F14: ='B02'!$E$8 -> 750 | G14: NOAEL | J14: Spill: Lrg Brd
A15: Spill | B15: Large Bird (4 kg) | C15: =F02f!$C$18/$F$15 -> 0.000226129947 | D15: =F02f!$C$19/$F$15 -> 1.130649735e-05 | E15: =F02f!$C$20/$F$15 -> 0.0009045197881 | F15: ='B02'!$E$8 -> 750 | G15: NOAEL
A16: Consumption of contaminated Fish | J16: Fish: Bear
A17: Spill | B17: Large Mammalian Carnivore (70 kg) | C17: =F03a!$C$47/$F$17 -> 20.15957094 | D17: =F03a!$C$48/$F$17 -> 0.1007978547 | E17: =F03a!$C$49/$F$17 -> 456.9502747 | F17: ='B02'!$E$6 -> 100 | G17: NOAEL | J17: Fish: Fox
A18: Spill | B18: Canid (5 kg) | C18: =F03b!$C$47/$F$18 -> 29.01662878 | D18: =F03b!$C$48/$F$18 -> 0.1450831439 | E18: =F03b!$C$49/$F$18 -> 657.7102523 | F18: ='B02'!$E$6 -> 100 | G18: NOAEL | J18: Fish: Bird
A19: Spill | B19: Fish-eating bird (2.4 kg) | C19: =F03c!$C$47/$F$19 -> 4.491786833 | D19: =F03c!$C$48/$F$19 -> 0.02245893416 | E19: =F03c!$C$49/$F$19 -> 101.8138349 | F19: ='B02'!$E$8 -> 750 | G19: NOAEL
A20: Non-Accidental Acute Exposures
A21: Contaminated Seeds (Lowest Residue Rate)
B22: Small mammal (20g) | C22: =F04a!$C$35/$F$22 -> 3.589130909e-06 | D22: =F04a!$C$36/$F$22 -> 3.110580121e-07 | E22: =F04a!$C$37/$F$22 -> 1.423688594e-05 | F22: ='B02'!$E$6 -> 100 | G22: NOAEL | J22: Grass: Sm Mam
B23: Larger Mammal (400g) | C23: =F04b!$C$35/$F$23 -> 8.195614291e-07 | D23: =F04b!$C$36/$F$23 -> 7.102865719e-08 | E23: =F04b!$C$37/$F$23 -> 3.250927002e-06 | F23: ='B02'!$E$6 -> 100 | G23: NOAEL | J23: Grass: Med Mam
B24: Large Mammal (70g) | C24: =F04c!$C$35/$F$24 -> 4.667959874e-07 | D24: =F04c!$C$36/$F$24 -> 4.045565224e-08 | E24: =F04c!$C$37/$F$24 -> 1.851624083e-06 | F24: ='B02'!$E$6 -> 100 | G24: NOAEL | J24: Grass: Lrg Mam
B25: Small bird (10g) | C25: =F04d!$C$35/$F$25 -> 1.047430327e-06 | D25: =F04d!$C$36/$F$25 -> 9.077729498e-08 | E25: =F04d!$C$37/$F$25 -> 4.154806963e-06 | F25: ='B02'!$E$8 -> 750 | G25: NOAEL | J25: Grass: Sm Brd
B26: Large Bird (4 kg) | C26: =F04e!$C$35/$F$26 -> 1.191346546e-07 | D26: =F04e!$C$36/$F$26 -> 1.032500339e-08 | E26: =F04e!$C$37/$F$26 -> 4.725674631e-07 | F26: ='B02'!$E$8 -> 750 | G26: NOAEL | J26: Grass: Lrg Brd
A27: Contaminated Vegetation (Broadleaf Vegetation - Highest Residue Rate)
B28: Small mammal (20g) | C28: =F05a!$C$35/$F$28 -> 3.230217818e-05 | D28: =F05a!$C$36/$F$28 -> 7.417537211e-06 | E28: =F05a!$C$37/$F$28 -> 0.0001220304509 | F28: ='B02'!$E$6 -> 100 | G28: NOAEL | J28: Veg: Sm Mam
B29: Larger Mammal (400g) | C29: =F05b!$C$35/$F$29 -> 9.709496558e-05 | D29: =F05b!$C$36/$F$29 -> 2.229588099e-05 | E29: =F05b!$C$37/$F$29 -> 0.0003668032033 | F29: ='B02'!$E$6 -> 100 | G29: NOAEL | J29: Veg: Med Mam
B30: Large Mammal | C30: =F05c!$C$35/$F$30 -> 5.530218813e-05 | D30: =F05c!$C$36/$F$30 -> 1.269902098e-05 | E30: =F05c!$C$37/$F$30 -> 0.0002089193774 | F30: ='B02'!$E$6 -> 100 | G30: NOAEL | J30: Veg: Lrg Mam
B31: Small bird (10g) | C31: =F05d!$C$35/$F$31 -> 0.0001402228496 | D31: =F05d!$C$36/$F$31 -> 3.219932102e-05 | E31: =F05d!$C$37/$F$31 -> 0.0005297307652 | F31: ='B02'!$E$8 -> 750 | G31: NOAEL | J31: Veg: Sm Brd
B32: Large Bird (4 kg) | C32: =F05e!$C$35/$F$32 -> 1.594893744e-05 | D32: =F05e!$C$36/$F$32 -> 3.662348596e-06 | E32: =F05e!$C$37/$F$32 -> 6.025154142e-05 | F32: ='B02'!$E$8 -> 750 | G32: NOAEL | J32: Veg: Lrg Brd
A33: Contaminated Water
B34: Small mammal (20g) | C34: =F06a!$C$18/$F$34 -> 8.783820362e-07 | D34: =F06a!$C$19/$F$34 -> 2.927940121e-08 | E34: =F06a!$C$20/$F$34 -> 3.220734133e-06 | F34: ='B02'!$E$6 -> 100 | G34: NOAEL | J34: Water: Sm Mam
B35: Larger Mammal (400g) | C35: =F06b!$C$18/$F$35 -> 6.509991865e-07 | D35: =F06b!$C$19/$F$35 -> 2.169997288e-08 | E35: =F06b!$C$20/$F$35 -> 2.386997017e-06 | F35: ='B02'!$E$6 -> 100 | G35: NOAEL | J35: Water: Med Mam
B36: Canid (5 kg) | C36: =F06c!$C$18/$F$36 -> 5.05695914e-07 | D36: =F06c!$C$19/$F$36 -> 1.685653047e-08 | E36: =F06c!$C$20/$F$36 -> 1.854218351e-06 | F36: ='B02'!$E$6 -> 100 | G36: NOAEL | J36: Water: Canid
B37: Large Mammal (70g) | C37: =F06d!$C$18/$F$37 -> 3.883976924e-07 | D37: =F06d!$C$19/$F$37 -> 1.294658975e-08 | E37: =F06d!$C$20/$F$37 -> 1.424124872e-06 | F37: ='B02'!$E$6 -> 100 | G37: NOAEL | J37: Water: Lrg Mam
B38: Small bird (10g) | C38: =F06e!$C$18/$F$38 -> 2.157456255e-07 | D38: =F06e!$C$19/$F$38 -> 7.19152085e-09 | E38: =F06e!$C$20/$F$38 -> 7.910672935e-07 | F38: ='B02'!$E$8 -> 750 | G38: NOAEL | J38: Water: Sm Brd
B39: Large Bird (4 kg) | C39: =F06f!$C$18/$F$39 -> 2.987185562e-08 | D39: =F06f!$C$19/$F$39 -> 9.957285206e-10 | E39: =F06f!$C$20/$F$39 -> 1.095301373e-07 | F39: ='B02'!$E$8 -> 750 | G39: NOAEL | J39: Water: Lrg Brd
A40: Contaminated Insects
B41: Small mammal (20g) | C41: No exposure assessment | F41: ='B02'!$E$6 -> 100 | G41: NOAEL | J41: Insects: Sm Mam
B42: Larger Mammal (400g) | C42: No exposure assessment | F42: ='B02'!$E$6 -> 100 | G42: NOAEL | J42: Insects: Med Mam
B43: Small bird (10g) | C43: No exposure assessment | F43: ='B02'!$E$8 -> 750 | G43: NOAEL | J43: Insects: Sm Brd
A44: Consumption of small mammal (after direct spray) by predator
B45: Canid (5 kg) | C45: No exposure assessment | F45: ='B02'!$E$6 -> 100 | G45: NOAEL | J45: Canid Eats Sm Mam
B46: Carnivorous bird (640 g) | C46: No exposure assessment | F46: ='B02'!$E$8 -> 750 | G46: NOAEL | J46: Bird Eats Sm Mam
A47: Consumption of contaminated Fish
B48: Large Mammalian Carnivore (70 kg) | C48: =F09a!$C$47/$F$48 -> 0.002663087311 | D48: =F09a!$C$48/$F$48 -> 8.876957702e-06 | E48: =F09a!$C$49/$F$48 -> 0.05533303634 | F48: ='B02'!$E$6 -> 100 | G48: NOAEL | J48: Fish: Lrg Mam
B49: Canid (5 kg) | C49: =F09b!$C$47/$F$49 -> 0.003833108161 | D49: =F09b!$C$48/$F$49 -> 1.27770272e-05 | E49: =F09b!$C$49/$F$49 -> 0.07964346956 | F49: ='B02'!$E$6 -> 100 | G49: NOAEL | J49: Fish: Canid
B50: Fish-eating bird (2.4 kg) | C50: =F09c!$C$47/$F$50 -> 0.0005933668207 | D50: =F09c!$C$48/$F$50 -> 1.977889402e-06 | E50: =F09c!$C$49/$F$50 -> 0.01232884394 | F50: ='B02'!$E$8 -> 750 | G50: NOAEL | J50: Fish: Brd
A51: Chronic/Longer Term Exposures
A52: Contaminated Fruit (Lowest Residue Rate)
B53: Small mammal (20g) | C53: =F10a!$C$35/$F$53 -> 0.0001250503816 | D53: =F10a!$C$36/$F$53 -> 9.380806202e-06 | E53: =F10a!$C$37/$F$53 -> 0.0005239627011 | F53: ='B02'!$E$7 -> 2.4 | G53: NOAEL | I53: Grass: Sm Mam
B54: Larger Mammal (400g) | C54: =F10b!$C$35/$F$54 -> 2.855467578e-05 | D54: =F10b!$C$36/$F$54 -> 2.142063673e-06 | E54: =F10b!$C$37/$F$54 -> 0.0001196444574 | F54: ='B02'!$E$7 -> 2.4 | G54: NOAEL | I54: Grass: Med Mam
B55: Large Mammal (70g) | C55: =F10c!$C$35/$F$55 -> 1.626383039e-05 | D55: =F10c!$C$36/$F$55 -> 1.220050983e-06 | E55: =F10c!$C$37/$F$55 -> 6.814565772e-05 | F55: ='B02'!$E$7 -> 2.4 | G55: NOAEL | I55: Grass: Lrg Mam
B56: Small bird (10g) | C56: =F10d!$C$35/$F$56 -> 2.052784658e-05 | D56: =F10d!$C$36/$F$56 -> 1.539921335e-06 | E56: =F10d!$C$37/$F$56 -> 8.601194018e-05 | F56: ='B02'!$E$9 -> 32 | G56: NOAEL | I56: Grass: Sm Brd
B57: Large Bird (4 kg) | C57: =F10e!$C$35/$F$57 -> 2.334835882e-06 | D57: =F10e!$C$36/$F$57 -> 1.751505485e-07 | E57: =F10e!$C$37/$F$57 -> 9.782992262e-06 | F57: ='B02'!$E$9 -> 32 | G57: NOAEL | I57: Grass: Lrg Brd
A58: Contaminated Vegetation (Short Grass - Highest Residue Rate)
B59: Small mammal (20g) | C59: =F11a!$C$35/$F$59 -> 0.0003109310724 | D59: =F11a!$C$36/$F$59 -> 5.224349139e-05 | E59: =F11a!$C$37/$F$59 -> 0.0007554080441 | F59: ='B02'!$E$7 -> 2.4 | G59: NOAEL | I59: Veg: Sm Mam
B60: Larger Mammal (400g) | C60: =F11b!$C$35/$F$60 -> 7.09996711e-05 | D60: =F11b!$C$36/$F$60 -> 1.192955943e-05 | E60: =F11b!$C$37/$F$60 -> 0.0001724939301 | F60: ='B02'!$E$7 -> 2.4 | G60: NOAEL | I60: Veg: Med Mam
B61: Large Mammal (70g) | C61: =F11c!$C$35/$F$61 -> 4.04391427e-05 | D61: =F11c!$C$36/$F$61 -> 6.794695644e-06 | E61: =F11c!$C$37/$F$61 -> 9.824702772e-05 | F61: ='B02'!$E$7 -> 2.4 | G61: NOAEL | I61: Veg: Lrg Mam
B62: Small bird (10g) | C62: =F11d!$C$35/$F$62 -> 5.76767712e-05 | D62: =F11d!$C$36/$F$62 -> 9.691009252e-06 | E62: =F11d!$C$37/$F$62 -> 0.0001401259018 | F62: ='B02'!$E$9 -> 32 | G62: NOAEL | I62: Veg: Sm Brd
B63: Large Bird (4 kg) | C63: =F11e!$C$35/$F$63 -> 6.560152057e-06 | D63: =F11e!$C$36/$F$63 -> 1.102254737e-06 | E63: =F11e!$C$37/$F$63 -> 1.59379106e-05 | F63: ='B02'!$E$9 -> 32 | G63: NOAEL | I63: Veg: Lrg Brd
A64: Contaminated Water
B65: Small mammal (20g) | C65: =F12a!$C$18/$F$65 -> 4.574906438e-06 | D65: =F12a!$C$19/$F$65 -> 1.21997505e-08 | E65: =F12a!$C$20/$F$65 -> 2.4399501e-05 | F65: ='B02'!$E$7 -> 2.4 | G65: NOAEL | I65: Water: Sm Mam
B66: Larger Mammal (400g) | C66: =F12b!$C$18/$F$66 -> 3.390620763e-06 | D66: =F12b!$C$19/$F$66 -> 9.041655368e-09 | E66: =F12b!$C$20/$F$66 -> 1.808331074e-05 | F66: ='B02'!$E$7 -> 2.4 | G66: NOAEL | I66: Water: Med Mam
B67: Canid (5 kg) | C67: =F12c!$C$18/$F$67 -> 2.633832885e-06 | D67: =F12c!$C$19/$F$67 -> 7.023554361e-09 | E67: =F12c!$C$20/$F$67 -> 1.404710872e-05 | F67: ='B02'!$E$7 -> 2.4 | G67: NOAEL | I67: Water: Canid
B68: Large Mammal (70g) | C68: =F12d!$C$18/$F$68 -> 2.022904648e-06 | D68: =F12d!$C$19/$F$68 -> 5.394412395e-09 | E68: =F12d!$C$20/$F$68 -> 1.078882479e-05 | F68: ='B02'!$E$7 -> 2.4 | G68: NOAEL | I68: Water: Lrg Mam
B69: Small bird (10g) | C69: =F12e!$C$18/$F$69 -> 6.320672622e-07 | D69: =F12e!$C$19/$F$69 -> 1.685512699e-09 | E69: =F12e!$C$20/$F$69 -> 3.371025398e-06 | F69: ='B02'!$E$9 -> 32 | G69: NOAEL | I69: Water: Sm Brd
B70: Large Bird (4 kg) | C70: =F12f!$C$18/$F$70 -> 8.7515202e-08 | D70: =F12f!$C$19/$F$70 -> 2.33373872e-10 | E70: =F12f!$C$20/$F$70 -> 4.66747744e-07 | F70: ='B02'!$E$9 -> 32 | G70: NOAEL | I70: Water: Lrg Brd
A71: Consumption of contaminated Fish
B72: Large Mammalian Carnivore (70 kg) | C72: =F13a!$C$47/$F$72 -> 0.01387024641 | D72: =F13a!$C$48/$F$72 -> 3.698732376e-06 | E72: =F13a!$C$49/$F$72 -> 0.4191896692 | F72: ='B02'!$E$7 -> 2.4 | G72: NOAEL | I72: Fish: Lrg Mam
B73: Canid (5 kg) | C73: =F13b!$C$47/$F$73 -> 0.019964105 | D73: =F13b!$C$48/$F$73 -> 5.323761334e-06 | E73: =F13b!$C$49/$F$73 -> 0.6033596179 | F73: ='B02'!$E$7 -> 2.4 | G73: NOAEL | I73: Fish: Canid
B74: Fish-eating bird (2.4 kg) | C74: =F13c!$C$47/$F$74 -> 0.001738379358 | D74: =F13c!$C$48/$F$74 -> 4.635678287e-07 | E74: =F13c!$C$49/$F$74 -> 0.05253768725 | F74: ='B02'!$E$9 -> 32 | G74: NOAEL | I74: Fish: Brd

Sheet G03
A1: Worksheet G03: Summary of Hazard Quotients for Aquatic Species
A2: Application Rate: | B2: 1 | C2: lb a.i./acre | F2: AqToxSumV6
A3: Exposures | C3: Concentrations (mg/L)
B4: Scenario | C4: Central | D4: Lower | E4: Upper | F4: Worksheet
B5: Accidental Spill | C5: =B04b!Acute_C -> 4.542 | D5: =B04b!Acute_L -> 0.2271 | E5: =B04b!Acute_U -> 18.168 | F5: B04b
B6: Peak EEC | C6: =B04a!Acute_C -> 0.0006 | D6: =B04a!Acute_L -> 2e-05 | E6: =B04a!Acute_U -> 0.0022 | F6: B04a
B7: Chronic | C7: =B04a!Chronic_C -> 7.5e-05 | D7: =B04a!Chronic_L -> 2e-07 | E7: =B04a!Chronic_U -> 0.0004 | F7: B04a
A8: Receptor | B8: Type | C8: Hazard Quotients | F8: Toxicity Value | G8: Toxicity Endpoint
C9: Central | D9: Lower | E9: Upper
A10: Accidental Acute Exposures
A11: Fish | B11: Sensitive | C11: =C$5/$F11 -> 3493.846154 | D11: 174.6923077 | E11: 13975.38462 | F11: ='B02'!$E$18 -> 0.0013 | G11: NOAEC | J11: Fish Sn
B12: Tolerant | C12: 41.29090909 | D12: 2.064545455 | E12: 165.1636364 | F12: ='B02'!$E$19 -> 0.11 | G12: NOAEC* | J12: Fish Tl
A13: Amphibian | B13: Sensitive | C13: No toxicity data. | F13: N/A | J13: Amph Sn
B14: Tolerant | C14: 908.4 | D14: 45.42 | E14: 3633.6 | F14: ='B02'!$E$28 -> 0.005 | J14: Amph To
A15: Invertebrate | B15: Sensitive | C15: 349.3846154 | D15: 17.46923077 | E15: 1397.538462 | F15: ='B02'!$E$14 -> 0.013 | G15: NOAEC* | J15: Invt Sn
B16: Tolerant | C16: 3.493846154 | D16: 0.1746923077 | E16: 13.97538462 | F16: ='B02'!$E$15 -> 1.3 | G16: NOAEC* | J16: Invt Tl
A17: Macrophyte | B17: Sensitive | C17: 1816.8 | D17: 90.84 | E17: 7267.2 | F17: ='B02'!$E$24 -> 0.0025 | G17: NOAEC* | J17: Plant Sn
B18: Tolerant | C18: 60.56 | D18: 3.028 | E18: 242.24 | F18: ='B02'!$E$25 -> 0.075 | G18: NOAEC | J18: Plant Tl
A19: Algae | B19: Sensitive | C19: 987.3913043 | D19: 49.36956522 | E19: 3949.565217 | F19: ='B02'!$E$22 -> 0.0046 | G19: NOAEC | J19: Algae Sn
B20: Tolerant | C20: 51.03370787 | D20: 2.551685393 | E20: 204.1348315 | F20: ='B02'!$E$23 -> 0.089 | G20: NOAEC | J20: Algae Tl
A21: Non-Accidental Acute Exposures
A22: Fish | B22: Sensitive | C22: =C$6/$F22 -> 0.4615384615 | D22: 0.01538461538 | E22: 1.692307692 | F22: ='B02'!$E$18 -> 0.0013 | G22: NOAEC
B23: Tolerant | C23: 0.005454545455 | D23: 0.0001818181818 | E23: 0.02 | F23: ='B02'!$E$19 -> 0.11 | G23: NOAEC*
A24: Amphibian | B24: Sensitive | C24: No toxicity data. | F24: N/A
B25: Tolerant | C25: =C$6/$F25 -> 0.12 | D25: 0.004 | E25: 0.44 | F25: ='B02'!$E$28 -> 0.005 | G25: NOAEC*
A26: Invertebrate | B26: Sensitive | C26: 0.04615384615 | D26: 0.001538461538 | E26: 0.1692307692 | F26: ='B02'!$E$14 -> 0.013 | G26: NOAEC*
B27: Tolerant | C27: 0.0004615384615 | D27: 1.538461538e-05 | E27: 0.001692307692 | F27: ='B02'!$E$15 -> 1.3 | G27: NOAEC*
A28: Macrophyte | B28: Sensitive | C28: 0.24 | D28: 0.008 | E28: 0.88 | F28: ='B02'!$E$24 -> 0.0025 | G28: NOAEC*
B29: Tolerant | C29: 0.008 | D29: 0.0002666666667 | E29: 0.02933333333 | F29: ='B02'!$E$25 -> 0.075 | G29: NOAEC
A30: Algae | B30: Sensitive | C30: 0.1304347826 | D30: 0.004347826087 | E30: 0.4782608696 | F30: ='B02'!$E$22 -> 0.0046 | G30: NOAEC
B31: Tolerant | C31: 0.006741573034 | D31: 0.0002247191011 | E31: 0.02471910112 | F31: ='B02'!$E$23 -> 0.089 | G31: NOAEC
A32: Chronic/Longer Term Exposures
A33: Fish | B33: Sensitive | C33: =C$7/$F33 -> 0.05769230769 | D33: 0.0001538461538 | E33: 0.3076923077 | F33: ='B02'!$E$20 -> 0.0013 | G33: NOAEC
B34: Tolerant | C34: 0.02777777778 | D34: 7.407407407e-05 | E34: 0.1481481481 | F34: ='B02'!$E$21 -> 0.0027 | G34: NOAEC
A35: Amphibian | B35: Sensitive | C35: No toxicity data. | F35: N/A
B36: Tolerant | C36: No toxicity data. | F36: N/A
A37: Invertebrate | B37: Sensitive | C37: 0.03125 | D37: 8.333333333e-05 | E37: 0.1666666667 | F37: ='B02'!$E$16 -> 0.0024 | G37: NOAEC
B38: Tolerant | C38: 0.0015 | D38: 4e-06 | E38: 0.008 | F38: ='B02'!$E$17 -> 0.05 | G38: NOAEC
A39: Macrophyte | B39: Sensitive | C39: 0.03 | D39: 8e-05 | E39: 0.16 | F39: ='B02'!$E$24 -> 0.0025 | G39: NOAEC*
B40: Tolerant | C40: 0.001 | D40: 2.666666667e-06 | E40: 0.005333333333 | F40: ='B02'!$E$25 -> 0.075 | G40: NOAEC
A41: Algae | B41: Sensitive | C41: 0.01630434783 | D41: 4.347826087e-05 | E41: 0.08695652174 | F41: ='B02'!$E$22 -> 0.0046 | G41: NOAEC
B42: Tolerant | C42: 0.0008426966292 | D42: 2.247191011e-06 | E42: 0.004494382022 | F42: ='B02'!$E$23 -> 0.089 | G42: NOAEC

Sheet G04
A1: Summary of Exposure Assessment and Risk Characterization for Terrestrial Plants from Runoff
A2: Short Title | B2: Runoff to terrestrial plants
A3: Receptor | B3: Terrestrial vegetation
A4: Duration | B4: Acute
A5: User-Specified Gleams-Driver File | B5: None
A6: Parameter/Assumption | B6: Code / Range | C6: Value | D6: Units | E6: Reference
A7: Worksheet Application Rate | B7: ApRtWB | C7: ='A01'!ApRt_C -> 1 | D7: lb/acre | E7: Worksheeet A01
A8: Offsite Application Rates Inputs
A9: Run ID: | B9: Risk Assessment
A10: Application Rate Used in Run: | B10: ApRtRun | C10: 1 | D10: lb/acre
A11: Functional Off-site Application Rate | B11: ApRtOffsite
B12: Central | C12: 0.015 | D12: lb/acre
B13: Lower | C13: 7e-05
B14: Upper | C14: 0.11
A15: Calculated Values
A16: Normalized Off-site Functional Application Rate | B16: NormApRtOffsite | C16: ApRtOffsite / ApRtRun
B17: Central | C17: =C12/C$10 -> 0.015 | D17: Unitless | E17: Eq
B18: Lower | C18: =C13/C$10 -> 7e-05 | E18: Eq
B19: Upper | C19: =C14/C$10 -> 0.11 | E19: Eq
A20: Off-site Application Rate at Workbook Application Rate | B20: ApRtWB | C20: ApRtWB x NormApRtOffsite
B21: Central | C21: =C17*C$7 -> 0.015 | D21: lb/acre | E21: Eq
B22: Lower | C22: =C18*C$7 -> 7e-05 | E22: Eq
B23: Upper | C23: =C19*C$7 -> 0.11 | E23: Eq
A24: Toxicity Values (seedling emergence) in units of lbs/acre
C25: Sensitive | D25: Tolerant
B26: Endpoint | C26: NOAEL | D26: NOAEL
C27: ='B02'!$E$12 -> 0.06 | D27: ='B02'!$E$13 -> 2 | E27: Table 24
A28: Hazard Quotients
B29: Central | C29: =IF(ISNUMBER(C$27), $C21/C$27, "N/A") -> 0.25 | D29: 0.0075
B30: Lower | C30: 0.001166666667 | D30: 3.5e-05
B31: Upper | C31: 1.833333333 | D31: 0.055

Sheet G06a
A1: Potential exposure of non-target plants through the use of contaminated irrigation water based on estimates concentrations in ambient water.
A2: Short Title | B2: Irrigation Water | E2: PlntWatIrrg
A3: Receptor | B3: Non-target plants
A4: Duration | B4: Peak
A5: Parameter/Assumption | B5: Code / Range | C5: Equation/ Value | D5: Units | E5: Reference/Designation
A6: Application Rate | B6: ApRt | C6: ='A01'!ApRt_C -> 1 | D6: lb/acre | E6: Worksheet A01
A7: Toxicity Values (Post-emergence in lb/ac)
A8: Sensitive species | B8: NOAEL | C8: ='B02'!$E$10 -> 0.125 | D8: lb/acre | E8: Table 24
A9: Tolerant species | B9: NOAEL | C9: ='B02'!$E$11 -> 0.5 | D9: lb/acre | E9: Table 24
A10: Water contamination rate | B10: WCR
B11: Central | C11: =B04Rt!$C$4 -> 0.0006 | D11: mg/L per lb/acre
B12: Lower | C12: =B04Rt!$C$5 -> 2e-05
B13: Upper | C13: =B04Rt!$C$6 -> 0.0022
A14: Toxic Equivalency Factor for formulation: (See risk assessment if this has a value other than 1.) | B14: TEF
B15: Central | C15: ='A01'!C$35 -> 1 | D15: unitless | E15: Worksheet A01
B16: Lower | C16: ='A01'!C$36 -> 1 | E16: Worksheet A01
B17: Upper | C17: ='A01'!C$37 -> 1 | E17: Worksheet A01
A18: Concentration in irrigation water | B18: ConcWat | C18: ApRt × WCR × TEF
B19: Central | C19: =C$6*C11*C15 -> 0.0006 | D19: mg/L | E19: Eq
B20: Lower | C20: =C$6*C12*C16 -> 2e-05 | E20: Eq
B21: Upper | C21: =C$6*C13*C17 -> 0.0022 | E21: Eq
A22: Amount of irrigation water applied | B22: IrrigAmnt
B23: Central | C23: 1 | D23: inches | E23: Scenario parameter
B24: Lower | C24: 0.25 | E24: Scenario parameter
B25: Upper | C25: 2 | E25: Scenario parameter
A26: Gallons per Acre-Foot | B26: GalPerAc-Ft | C26: =A02d!$C$4 -> 325900 | D26: gal/acre-foot | E26: Budavari 1989
A27: Liters per Gallon | B27: LtPerGal | C27: =A02d!$C$5 -> 3.785 | D27: liters/gal | E27: Budavari 1989
A28: Liters of water applied per acre per inch of irrigation water (rounded to nearest liter) | B28: LpApI | C28: GalPerAc-Ft × LtPerGal ∕ 12
C29: =ROUND(C26*C27/12, 0) -> 102794 | D29: Lit/acre-inch | E29: Eq
A30: Liters of water applied per acre | B30: LPA | C30: IrrigAmnt × LpApl
B31: Central | C31: =C23*C$29 -> 102794 | D31: liters | E31: Eq
B32: Lower | C32: =C24*C$29 -> 25698.5 | E32: Eq
B33: Upper | C33: =C25*C$29 -> 205588 | E33: Eq
A34: Application Rate (mg/acre) | B34: ApRmg/a | C34: ConcWat × LPA
B35: Central | C35: =C19*C31 -> 61.6764 | D35: mg/acre | E35: Eq
B36: Lower | C36: =C20*C32 -> 0.51397 | E36: Eq
B37: Upper | C37: =C21*C33 -> 452.2936 | E37: Eq
A38: Conversion factor for mg to lb | B38: Conv | C38: =A02d!$C$9 -> 2.204e-06 | E38: Budavari 1989
A39: Functional application rate (lb/acre) | B39: FncApR | C39: ApRmg/a × Conv
B40: Central | C40: =C35*C$38 -> 0.0001359347856 | D40: lb/acre | E40: Eq
B41: Lower | C41: =C36*C$38 -> 1.13278988e-06 | E41: Eq
B42: Upper | C42: =C37*C$38 -> 0.0009968550944 | E42: Eq
A43: Hazard Quotients (Sensitive Species) | B43: HISens | C43: = FncApRt / ToxValSens
B44: Central | C44: =IF(ISNUMBER($C$8), C40/$C$8, "N/A") -> 0.001087478285
B45: Lower | C45: =IF(ISNUMBER($C$8), C41/$C$8, "N/A") -> 9.06231904e-06
B46: Upper | C46: 0.007974840755
A47: Hazard Quotients (Tolerant Species) | B47: HITol | C47: = FncApRt / ToxValTol
B48: Central | C48: =IF( ISNUMBER($C$9), C40/$C$9, "N/A") -> 0.0002718695712
B49: Lower | C49: =IF( ISNUMBER($C$9), C41/$C$9, "N/A") -> 2.26557976e-06
B50: Upper | C50: 0.001993710189

Sheet G06b
A1: Summary of Exposure Assessment and Risk Characterization for Sensitive and Tolerant Terrestrial Plants from Wind Erosion at the Specified Application Rate.
A2: Short Title | B2: Wind erosion, terrestrial plants | E2: PlntWind2
A3: Receptor | B3: Terrestrial vegetation
A4: Duration | B4: Acute
A5: Parameter/Assumption | B5: Code / Range | C5: Equation/ Value | D5: Units | E5: Reference/ Designation
A6: Application Rate | B6: ApRt | C6: ='A01'!ApRt_C -> 1 | D6: lb/acre | E6: Worksheet A01
A7: Toxicity Values (Post-emergence in lb/ac)
A8: Sensitive species | B8: NOAEL | C8: ='B02'!$E$10 -> 0.125 | D8: lb/acre | E8: Table 24
A9: Tolerant species | B9: NOAEL | C9: ='B02'!$E$11 -> 0.5 | D9: lb/acre | E9: Table 24
A10: Soil losses due to wind ersion | B10: Loss_TonHa
B11: Central | C11: 56.6 | D11: Tons per hectare per year | E11: Larney et al. (1999)
B12: Lower | C12: 56.6 | E12: Larney et al. (1999)
B13: Upper | C13: 56.6 | E13: Larney et al. (1999)
A14: Conversion for tons/ha to grams per cm2 | B14: Conv1 | C14: 0.01
A15: Soil losses in grams/square centimeter | B15: Loss_GrCm
B16: Central | C16: =Trigger*C$14 -> 0.566 | D16: g/cm2 per year | E16: Eq
B17: Lower | C17: =C12*C$14 -> 0.566 | E17: Eq
B18: Upper | C18: =C13*C$14 -> 0.566 | E18: Eq
A19: Soil Density | B19: Dens | C19: 2 | D19: g/cm2
A20: Soil losses in cm/day | B20: Loss_CmDay | C20: = Loss_GrCm /(Dens * 365)
B21: Central | C21: =C16/(C$19* 365) -> 0.0007753424658 | D21: cm per day | E21: Eq
B22: Lower | C22: =C17/(C$19* 365) -> 0.0007753424658 | E22: Eq
B23: Upper | C23: =C18/(C$19* 365) -> 0.0007753424658 | E23: Eq
A24: Depth of incorporation | B24: Depth | C24: 5 | D24: cm | E24: Scenario parameter
A25: Proportion of contaminated soil lost per day | B25: PropLost
B26: Central | C26: =C21/C$24 -> 0.0001550684932 | D26: unitless
B27: Lower | C27: =C22/C$24 -> 0.0001550684932
B28: Upper | C28: =C23/C$24 -> 0.0001550684932
A29: Estimates of functional offsite application rate | B29: OfsiteApRt | C29: =ApRt x PropLost
B30: Central | C30: =C$6*C26 -> 0.0001550684932 | D30: lb/acre | E30: Eq
B31: Lower | C31: =C$6*C27 -> 0.0001550684932 | E31: Eq
B32: Upper | C32: =C$6*C28 -> 0.0001550684932 | E32: Eq
A33: Hazard Quotients (Sensitive Species) | B33: HISens | C33: = OffsiteApRt / ToxValSens
B34: Central | C34: =IF(ISNUMBER($C$8), C30/$C$8, "N/A") -> 0.001240547945
B35: Lower | C35: =IF(ISNUMBER($C$8), C31/$C$8, "N/A") -> 0.001240547945
B36: Upper | C36: =IF(ISNUMBER($C$8), C32/$C$8, "N/A") -> 0.001240547945
A37: Hazard Quotients (Tolerant Species) | B37: HITol | C37: = OffsiteApRt / ToxValTol
B38: Central | C38: =IF( ISNUMBER($C$9), C30/$C$9, "N/A") -> 0.0003101369863
B39: Lower | C39: =IF( ISNUMBER($C$9), C31/$C$9, "N/A") -> 0.0003101369863
B40: Upper | C40: =IF( ISNUMBER($C$9), C32/$C$9, "N/A") -> 0.0003101369863

Sheet G07a
A1: Consumption of Seeds or Fruit by a Herbivorous Insect, Acute exposure.
A2: Short Title | B2: Fruit | E2: FdPropBWV6
A3: Receptor | B3: Herbivorous Insect
A4: Duration | B4: Acute | E4: Scenario parameter
A5: Material consumed | B5: Fruit
A6: Parameter/Assumption | B6: Code / Range | C6: Equation/ Value | D6: Units | E6: Reference/Designation
A7: Commodity
A8: Concentration on vegetation | B8: Conc
B9: Central | C9: =B05a!Acute_C -> 0.00279 | D9: mg/kg food | E9: ='B05a'!Acute_C
B10: Lower | C10: =B05a!Acute_L -> 0.000806 | E10: ='B05a'!Acute_L
B11: Upper | C11: =B05a!Acute_U -> 0.00651 | E11: ='B05a'!Acute_U
A12: Receptor
A13: Amount consumed per day per unit body weight | B13: Amnt
B14: Central | C14: ='A03'!$E$42 -> 1.3 | D14: kg food/kg BW per day | E14: Waldbauer 1968
B15: Lower | C15: ='A03'!$E$43 -> 0.6 | E15: Reichle et al. 1973
B16: Upper | C16: ='A03'!$E$44 -> 2.2 | E16: Waldbauer 1968
A17: Estimate
A18: Dose | B18: Dose | C18: Conc × Amnt
B19: Central | C19: =C14*C9 -> 0.003627 | D19: mg/kg bw | E19: Eq
B20: Lower | C20: =C15*C10 -> 0.0004836 | E20: Eq
B21: Upper | C21: =C16*C11 -> 0.014322 | E21: Eq

Sheet G07b
A1: Consumption of Broadleaf Vegetation by a Herbivorous Insect, Acute exposure.
A2: Short Title | B2: Broadleaf Vegetation | E2: FdPropBWV6
A3: Receptor | B3: Herbivorous Insect
A4: Duration | B4: Acute | E4: Scenario parameter
A5: Material consumed | B5: Broadleaf/Small Insects
A6: Parameter/Assumption | B6: Code / Range | C6: Equation/ Value | D6: Units | E6: Reference/Designation
A7: Commodity
A8: Concentration on vegetation | B8: Conc
B9: Central | C9: =B05b!Acute_C -> 0.02511 | D9: mg/kg food | E9: ='B05b'!Acute_C
B10: Lower | C10: =B05b!Acute_L -> 0.01922 | E10: ='B05b'!Acute_L
B11: Upper | C11: =B05b!Acute_U -> 0.0558 | E11: ='B05b'!Acute_U
A12: Receptor
A13: Amount consumed per day per unit body weight | B13: Amnt
B14: Central | C14: ='A03'!$E$39 -> 1.3 | D14: kg food/kg BW per day | E14: Waldbauer 1968
B15: Lower | C15: ='A03'!$E$40 -> 0.6 | E15: Reichle et al. 1973
B16: Upper | C16: ='A03'!$E$41 -> 2.2 | E16: Waldbauer 1968
A17: Estimate
A18: Dose | B18: Dose | C18: Conc × Amnt
B19: Central | C19: =C14*C9 -> 0.032643 | D19: mg/kg bw | E19: Eq
B20: Lower | C20: =C15*C10 -> 0.011532 | E20: Eq
B21: Upper | C21: =C16*C11 -> 0.12276 | E21: Eq

Sheet G07c
A1: Consumption of Short grass by a Herbivorous Insect, Acute exposure.
A2: Short Title | B2: Short Grass | E2: FdPropBWV6
A3: Receptor | B3: Herbivorous Insect
A4: Duration | B4: Acute | E4: Scenario parameter
A5: Material consumed | B5: Short grass
A6: Parameter/Assumption | B6: Code / Range | C6: Equation/ Value | D6: Units | E6: Reference/Designation
A7: Commodity
A8: Concentration on vegetation | B8: Conc
B9: Central | C9: =B05c!Acute_C -> 0.000527 | D9: mg/kg food | E9: ='B05c'!Acute_C
B10: Lower | C10: =B05c!Acute_L -> 0.000341 | E10: ='B05c'!Acute_L
B11: Upper | C11: =B05c!Acute_U -> 0.000713 | E11: ='B05c'!Acute_U
A12: Receptor
A13: Amount consumed per day per unit body weight | B13: Amnt
B14: Central | C14: ='A03'!$E$45 -> 1.3 | D14: kg food/kg BW per day | E14: Waldbauer 1968
B15: Lower | C15: ='A03'!$E$46 -> 0.6 | E15: Reichle et al. 1973
B16: Upper | C16: ='A03'!$E$47 -> 2.2 | E16: Waldbauer 1968
A17: Estimate
A18: Dose | B18: Dose | C18: Conc × Amnt
B19: Central | C19: =C14*C9 -> 0.0006851 | D19: mg/kg bw | E19: Eq
B20: Lower | C20: =C15*C10 -> 0.0002046 | E20: Eq
B21: Upper | C21: =C16*C11 -> 0.0015686 | E21: Eq

Sheet G07d
A1: Consumption of Tall Grass by a Herbivorous Insect, Acute exposure.
A2: Short Title | B2: Tall Grass | E2: FdPropBWV6
A3: Receptor | B3: Herbivorous Insect
A4: Duration | B4: Acute | E4: Scenario parameter
A5: Material consumed | B5: Tall Grass
A6: Parameter/Assumption | B6: Code / Range | C6: Equation/ Value | D6: Units | E6: Reference/Designation
A7: Commodity
A8: Concentration on vegetation | B8: Conc
B9: Central | C9: =B05d!Acute_C -> 0.000527 | D9: mg/kg food | E9: ='B05d'!Acute_C
B10: Lower | C10: =B05d!Acute_L -> 0.000341 | E10: ='B05d'!Acute_L
B11: Upper | C11: =B05d!Acute_U -> 0.000713 | E11: ='B05d'!Acute_U
A12: Receptor
A13: Amount consumed per day per unit body weight | B13: Amnt
B14: Central | C14: ='A03'!$E$48 -> 1.3 | D14: kg food/kg BW per day | E14: Waldbauer 1968
B15: Lower | C15: ='A03'!$E$49 -> 0.6 | E15: Reichle et al. 1973
B16: Upper | C16: ='A03'!$E$50 -> 2.2 | E16: Waldbauer 1968
A17: Estimate
A18: Dose | B18: Dose | C18: Conc × Amnt
B19: Central | C19: =C14*C9 -> 0.0006851 | D19: mg/kg bw | E19: Eq
B20: Lower | C20: =C15*C10 -> 0.0002046 | E20: Eq
B21: Upper | C21: =C16*C11 -> 0.0015686 | E21: Eq

Sheet G08a
A1: Summary of Exposure Assessments for the Herbivorous or Predatory Insects
A2: Application Rate: | B2: ='A01'!ApRt_C -> 1 | C2: lb a.i./acre | F2: InstHerbSum
A3: Food Item | B3: Receptor | C3: mg/kg/day or mg/kg/event | F3: Detail Worksheet
C4: Central | D4: Lower | E4: Upper
A5: Acute Exposures
A6: Seeds or Fruit | B6: Insect | C6: =G07a!Dose_C -> 0.003627 | D6: =G07a!Dose_L -> 0.0004836 | E6: =G07a!Dose_U -> 0.014322 | F6: G07a
A7: Broadleaf Vegetation | B7: Insect | C7: =G07b!Dose_C -> 0.032643 | D7: =G07b!Dose_L -> 0.011532 | E7: =G07b!Dose_U -> 0.12276 | F7: G07b
A8: Short Grass | B8: Insect | C8: =G07c!Dose_C -> 0.0006851 | D8: =G07c!Dose_L -> 0.0002046 | E8: =G07c!Dose_U -> 0.0015686 | F8: G07c
A9: Long Grass | B9: Insect | C9: =G07d!Dose_C -> 0.0006851 | D9: =G07d!Dose_L -> 0.0002046 | E9: =G07d!Dose_U -> 0.0015686 | F9: G07d

Sheet G08b
A1: Summary of Hazard Quotients (Toxicity) for the Herbivorous or Predatory Insects
A2: Application Rate: | B2: ='A01'!ApRt_C -> 1 | C2: lb a.i./acre | F2: InstHerbSum
A3: Food Item | B3: Receptor | C3: Hazard Quotients | F3: Toxicity Value
C4: Central | D4: Lower | E4: Upper
A5: Acute Exposures
A6: Seeds or Fruit | B6: Insect | C6: =G07a!$C$19/$F$6 -> 8.434883721e-06 | D6: =G07a!$C$20/$F$6 -> 1.124651163e-06 | E6: =G07a!$C$21/$F$6 -> 3.330697674e-05 | F6: ='B02'!$E$27 -> 430 | G6: >LD50
A7: Broadleaf Vegetation | B7: Insect | C7: =G07b!$C$19/$F$7 -> 7.591395349e-05 | D7: =G07b!$C$20/$F$7 -> 2.681860465e-05 | E7: =G07b!$C$21/$F$7 -> 0.0002854883721 | F7: ='B02'!$E$27 -> 430 | G7: >LD50
A8: Short Grass | B8: Insect | C8: =G07c!$C$19/$F$8 -> 1.593255814e-06 | D8: =G07c!$C$20/$F$8 -> 4.758139535e-07 | E8: =G07c!$C$21/$F$8 -> 3.647906977e-06 | F8: ='B02'!$E$27 -> 430 | G8: >LD50
A9: Long Grass | B9: Insect | C9: =G07d!$C$19/$F$9 -> 1.593255814e-06 | D9: =G07d!$C$20/$F$9 -> 4.758139535e-07 | E9: =G07d!$C$21/$F$9 -> 3.647906977e-06 | F9: ='B02'!$E$27 -> 430 | G9: >LD50

Sheet References
A1: References cited in workbook
A2: Citation | B2: Full Reference
A3: Boxenbaum and D’Souza 1990 | B3: Boxenbaum J; D'Souza R. 1990. Interspecies pharmacokinetic scaling, biological design and neoteny. Adv. Drug Res. 19: 139-195.
A4: Budavari 1989 | B4: Budavari S. (Ed). 1989. The Merck Index: An Encyclopedia of Chemicals, Drugs,and Biologicals, 11th ed. Merck & Co., Inc., Rahway, New Jersey.
A5: Burnmaster 1998 | B5: Burnmaster DE. 1998. Lognormal distribution for total water intake and tap water intake by pregnant and lactating women in the United States. Risk Analysis. 18(5): 215-219
A6: Default | B6: These are plausible default values that are typically used in SERA risk assessments.
A7: Dunning 1993 | B7: Dunning JB. 1993. CRC Handbook of Avian Body Masses. CRC Press, Boca Raton FL, 371 pp.
A8: Durkin et al. 1995 | B8: Durkin PR; Rubin L; Withey J; Meylan W. 1995. Methods of assessing dermal absorption with emphasis on uptake from contaminated vegetation. Toxicol. Indust. Health. 11(1): 63-79.
A9: Fletcher et al. 1994 | B9: Fletcher JS; Nellessen JE; Pfleeger TG. 1994. Literature review and evaluation of the EPA food-chain (Kenega) nomogram, an instrument for estimating pesticide residues on plants. Environ. Toxicol. Chem. 13(9):1383-1391.
A10: Harris and Solomon 1992 | B10: Harris SA; Solomon KR. 1992. Human exposure to 2,4-D following controlled activities on recently sprayed turf. J. Environ. Sci. Health. B27(1): 9-22.
A11: Hoerger and Kenaga 1972 | B11: Hoerger F; Kenaga EE. 1972. Pesticide residues on plants: Correlation of representative data as a basis for estimation of their magnitude in the environment. In: Environmental Quality and Safety, Volume I: Global Aspects of Toxicology and Technology as Applied to the Environment. F. Coulston and F. Kerte (eds.). Academic Press, New York, NY. pp. 9-28.
A12: Humphery and Dykes 2008 | B12: Humphrey JAC; Dykes ES. 2008. Thermal energy conduction in a honey bee comb due to cell-heating bees. J Theoretical Biology. 250 (1): 194-208.
A13: ICRP 1975 | B13: ICRP (International Commission on Radiologic Protection). 1975. Report of the Task Group on Reference Man. Recommendations of the International Commission on Radiological Protection (ICRP) Publ. No. 23. Pergamon Press, New York, NY.
A14: Knisel et al. 1992 | B14: Knisel WG; Davis FM; Leonard RA. 1992. GLEAMS Version 2.0 User Manual. U.S. Department of Agriculture, Agricultural Research Service, Southeast Watershed Research Laboratory, Tifton, GA. 202pp
A15: Manugistics 1995 | B15: Manugistics. 1995. Statgraphics Plus for Windows. Version 3. Available from Manugistics, Inc. Rockville, Maryland.
A16: Mason and Johnson 1987 | B16: Mason RW; Johnson BL. 1987. Ergonomic factors in chemical hazard control. In: Handbook of Human Factors. Salveny, G; ed. John Wiley and Sons, New York, NY. pp. 772-741.
A17: Mendenhall and Scheaffer 1973 | B17: Mendenhall W; Scheaffer RF. 1973. Mathematical Statistics with Applications. Duxbury Press, North Scituate, Massachusetts. 461 pp. plus appendices.
A18: N/A | B18: Not applicable
A19: Nagy 2005 | B19: Nagy KA. 2005. Field metabolic rate and body size. Journal of Experimental Biology. 208: 1621-1625.
A20: Ratnapalan et al. 2003 | B20: Ratnapalan S; Potylitsina Y; Tan LH; Roifman M; Koren G. 2003. Measuring a toddler's mouthful: toxicologic considerations. J Pediatr. 142(6):729-30.
A21: Reichle et al. 1973 | B21: Reichle DE, Goldstein RA; Van Hook RI; Dodson DJ. 1973. Analysis of Insect Consumption in a Forest Canopy. Ecology. 54: 1076-1084.
A22: Reid 2006 | B22: Reid FA. 2006. A Field Guide to Mammals of North America North of Mexico. Fourth Edition. The Peterson Field Guide Series. Houghton Mifflin Company, Boston MA. 570 pp.
A23: Ruffle et al. 1994 | B23: Ruffle B; Burmaster DE; Anderson PD; Gordon HD. 1994. Lognormal distributions for fish consumption by the general U.S. population. Risk Analy. 14(4): 395-404.
A24: SERA 1997 | B24: SERA (Syracuse Environmental Research Associates, Inc.). 1997. Reevaluation of Methods for Assessing Worker Exposure to Pesticides, SERA TR 96-21-08-01, draft dated December 31, 1997. Prepared under USDA/FS Contract 53-3187-5-12. Syracuse Environmental Research Associates, Inc., Fayetteville, NY.
A25: SERA 2005 | B25: SERA (Syracuse Environmental Research Associates, Inc.). 2005. Hexazinone - Human Health and Ecological Risk Assessment– Final Report, SERA SERA TR 05-43-20-03d, Final Report dated October 25, 2005. Available at: http://www.fs.fed.us/foresthealth/pesticide/risk.shtml.
A26: SERA 2007 | B26: SERA (Syracuse Environmental Research Associates, Inc.). 2007. Preparation of Environmental Documentation and Risk Assessments, SERA MD 2007-01a, draft dated July 2001. Syracuse Environmental Research Associates, Inc., Fayetteville, NY. Available at www.sera-inc.com.
A27: SERA 2010 | B27: SERA (Syracuse Environmental Research Associates, Inc.). 2010. Strychnine Human Health and Ecological Risk Assessment, SERA TR-052-17-02a, draft dated February 22, 2010. Syracuse Environmental Research Associates, Inc., Manlius, NY. Available at www.sera-inc.com.
A28: Sibley 2000 | B28: Sibley DA. 2000. The Sibley Guide to Birds. National Audubon Society, Chanticleer Press Edition. Alfred A. Knopf Inc., New York. 545 pp.
A29: Teske et al. 2001 | B29: Teske ME; Bird SL; Esterly DM; Ray SL; Perry SG. 2001. A User’s Guide for AgDRIFT 2.0: A Tiered Approach for the Assesment of Spray Drift. Continuum Dynamics, Inc. Public Use Version. C.D.I. Report No. 01-01. Available, with executable model at: http://www.agdrift.com
A30: U.S. EPA/OPP 1999 | B30: U.S. EPA/OPP ((U.S. Environmental Protection Agency/Office of Pesticide Programs). 1999. ECOFRAM: Terrestrial ECOFRAM Terrestrial Draft Report. Ecological Committee on FIFRA Risk Assessment Methods(ECOFRAM). Report dated May 10, 1999. Available at: http://www.epa.gov/oppefed1/ ecorisk/terrreport.pdf.
A31: U.S. EPA/ORD 1985 | B31: U.S. EPA/ORD (U.S. Environmental Protection Agency/Office of Research and Development). 1985. Development of Statistical Distributions or Ranges of Standard Factors Used in Exposure Assessments, Report prepared by GCA Corp., Chapel Hill. Available from NTIS: PB85-242667.
A32: U.S. EPA/ORD 1992 | B32: U.S. EPA/ORD (U.S. Environmental Protection Agency/Office of Research and Development). 1992. Dermal Exposure Assessment: Principles and Applications. EPA/600/8-91/011B. Interim Report. Exposure Assessment Group, Office of Health and Environmental Assessment, Washington, DC.
A33: U.S. EPA/ORD 1993 | B33: U.S. EPA/ORD (U.S. Environmental Protection Agency/Office of Research and Development). 1993. Wildlife Exposure Factors Handbook. Volumes 1 and 2. EPA/600/R-93/187a,b. Pagination not continuous. Available NTIS: PB94-174778 and PB94-174779.
A34: U.S. EPA/ORD 1996 | B34: U.S. EPA (U.S. Environmental Protection Agency/Office of Research and Development). 1996. Exposure Factors Handbook. National Center for Environmental Assessment, U.S. EPA, Washington, DC. EPA/600/P-95/002Ba-c. Avail. NTIS: PB97-117683, 97-117691, PB97-117709.
A35: U.S. EPA/ORD 1997 | B35: U.S. EPA (U.S. Environmental Protection Agency/Office of Research and Development). 1996. Exposure Factors Handbook. National Center for Environmental Assessment, U.S. EPA, Washington, DC. EPA/600/P-95/002Fa. Available at: http://rais.ornl.gov/homepage/EFH_Final_1997_EPA600P95002Fa.pdf
A36: USDA 1989a | B36: USDA (U.S. Department of Agriculture/Forest Service). 1989a. Final Environmental Impact Statement: Vegetation Management in the Coastal Plain/Piedmont, Management Bulletin R8-MB-23, dated January, 1989. 1213 pp.
A37: USDA 1989b | B37: USDA (U.S. Department of Agriculture/Forest Service). 1989b. Draft Environmental Impact Statement: Vegetation Management in the Ozark/Ouachita Mountains, Management Bulletin R8-MB-23, dated June, 1989. 499 pp.
A38: USDA 1989c | B38: USDA (U.S. Department of Agriculture/Forest Service). 1989c. Final Environmental Impact Statement: Vegetation Management in the Appalachian Mountains, Management Bulletin R8-MB-38, dated July, 1989. 1104 pp.
A39: Waldbauer 1968 | B39: Waldbauer GP. 1968. The consumption and utilization of food by insects. Advan Insect Physiol. 5: 229-288
A40: Winston 1987 | B40: Winston ML. 1987. The Biology of the Honey Bee. Harvard University Press, Cambridge, MA. ISBN 0-674-07409-2 280 pp.
A41: Wolfram Research 1997 | B41: Wolfram Research. 1997. Mathematica Version 3.0.1. Available from Wolfram Research, Inc. Champaign, IL.
